date,cmname,unit,category,price,currency,country,admname,adm1id,mktname,mktid,cmid,ptid,umid,catid,sn,default
2014-03-15,Rice - Retail,KG,cereals and tubers,8.6567,UAH,Ukraine,,0,National Average,1295,52,15,5,1,1295_52_15_5,
2014-04-15,Rice - Retail,KG,cereals and tubers,9.4033,UAH,Ukraine,,0,National Average,1295,52,15,5,1,1295_52_15_5,
2014-05-15,Rice - Retail,KG,cereals and tubers,9.8967,UAH,Ukraine,,0,National Average,1295,52,15,5,1,1295_52_15_5,
2014-06-15,Rice - Retail,KG,cereals and tubers,10.2567,UAH,Ukraine,,0,National Average,1295,52,15,5,1,1295_52_15_5,
2014-07-15,Rice - Retail,KG,cereals and tubers,10.2933,UAH,Ukraine,,0,National Average,1295,52,15,5,1,1295_52_15_5,
2014-08-15,Rice - Retail,KG,cereals and tubers,10.4033,UAH,Ukraine,,0,National Average,1295,52,15,5,1,1295_52_15_5,
2014-09-15,Rice - Retail,KG,cereals and tubers,11.45,UAH,Ukraine,,0,National Average,1295,52,15,5,1,1295_52_15_5,
2014-10-15,Rice - Retail,KG,cereals and tubers,12.7,UAH,Ukraine,,0,National Average,1295,52,15,5,1,1295_52_15_5,
2014-11-15,Rice - Retail,KG,cereals and tubers,13.3267,UAH,Ukraine,,0,National Average,1295,52,15,5,1,1295_52_15_5,
2014-12-15,Rice - Retail,KG,cereals and tubers,15.2,UAH,Ukraine,,0,National Average,1295,52,15,5,1,1295_52_15_5,
2015-01-15,Rice - Retail,KG,cereals and tubers,17.4533,UAH,Ukraine,,0,National Average,1295,52,15,5,1,1295_52_15_5,
2015-02-15,Rice - Retail,KG,cereals and tubers,18.7333,UAH,Ukraine,,0,National Average,1295,52,15,5,1,1295_52_15_5,
2015-03-15,Rice - Retail,KG,cereals and tubers,24.0067,UAH,Ukraine,,0,National Average,1295,52,15,5,1,1295_52_15_5,
2015-04-15,Rice - Retail,KG,cereals and tubers,23.1,UAH,Ukraine,,0,National Average,1295,52,15,5,1,1295_52_15_5,
2015-05-15,Rice - Retail,KG,cereals and tubers,21.8567,UAH,Ukraine,,0,National Average,1295,52,15,5,1,1295_52_15_5,
2015-06-15,Rice - Retail,KG,cereals and tubers,19.97,UAH,Ukraine,,0,National Average,1295,52,15,5,1,1295_52_15_5,
2015-07-15,Rice - Retail,KG,cereals and tubers,18.44,UAH,Ukraine,,0,National Average,1295,52,15,5,1,1295_52_15_5,
2015-08-15,Rice - Retail,KG,cereals and tubers,18.01,UAH,Ukraine,,0,National Average,1295,52,15,5,1,1295_52_15_5,
2015-09-15,Rice - Retail,KG,cereals and tubers,17.8133,UAH,Ukraine,,0,National Average,1295,52,15,5,1,1295_52_15_5,
2015-10-15,Rice - Retail,KG,cereals and tubers,17.3267,UAH,Ukraine,,0,National Average,1295,52,15,5,1,1295_52_15_5,
2015-11-15,Rice - Retail,KG,cereals and tubers,16.9367,UAH,Ukraine,,0,National Average,1295,52,15,5,1,1295_52_15_5,
2015-12-15,Rice - Retail,KG,cereals and tubers,17.06,UAH,Ukraine,,0,National Average,1295,52,15,5,1,1295_52_15_5,
2016-01-15,Rice - Retail,KG,cereals and tubers,16.9433,UAH,Ukraine,,0,National Average,1295,52,15,5,1,1295_52_15_5,
2016-02-15,Rice - Retail,KG,cereals and tubers,16.5867,UAH,Ukraine,,0,National Average,1295,52,15,5,1,1295_52_15_5,
2016-03-15,Rice - Retail,KG,cereals and tubers,16.2133,UAH,Ukraine,,0,National Average,1295,52,15,5,1,1295_52_15_5,
2016-04-15,Rice - Retail,KG,cereals and tubers,15.8367,UAH,Ukraine,,0,National Average,1295,52,15,5,1,1295_52_15_5,
2016-05-15,Rice - Retail,KG,cereals and tubers,15.65,UAH,Ukraine,,0,National Average,1295,52,15,5,1,1295_52_15_5,
2016-06-15,Rice - Retail,KG,cereals and tubers,15.28,UAH,Ukraine,,0,National Average,1295,52,15,5,1,1295_52_15_5,
2016-07-15,Rice - Retail,KG,cereals and tubers,15.34,UAH,Ukraine,,0,National Average,1295,52,15,5,1,1295_52_15_5,
2016-08-15,Rice - Retail,KG,cereals and tubers,15.46,UAH,Ukraine,,0,National Average,1295,52,15,5,1,1295_52_15_5,
2016-09-15,Rice - Retail,KG,cereals and tubers,15.9467,UAH,Ukraine,,0,National Average,1295,52,15,5,1,1295_52_15_5,
2016-10-15,Rice - Retail,KG,cereals and tubers,16.1733,UAH,Ukraine,,0,National Average,1295,52,15,5,1,1295_52_15_5,
2016-11-15,Rice - Retail,KG,cereals and tubers,16.23,UAH,Ukraine,,0,National Average,1295,52,15,5,1,1295_52_15_5,
2016-12-15,Rice - Retail,KG,cereals and tubers,16.2667,UAH,Ukraine,,0,National Average,1295,52,15,5,1,1295_52_15_5,
2017-01-15,Rice - Retail,KG,cereals and tubers,16.5533,UAH,Ukraine,,0,National Average,1295,52,15,5,1,1295_52_15_5,
2017-02-15,Rice - Retail,KG,cereals and tubers,16.7967,UAH,Ukraine,,0,National Average,1295,52,15,5,1,1295_52_15_5,
2017-03-15,Rice - Retail,KG,cereals and tubers,17.1167,UAH,Ukraine,,0,National Average,1295,52,15,5,1,1295_52_15_5,
2017-04-15,Rice - Retail,KG,cereals and tubers,17.26,UAH,Ukraine,,0,National Average,1295,52,15,5,1,1295_52_15_5,
2017-05-15,Rice - Retail,KG,cereals and tubers,17.5433,UAH,Ukraine,,0,National Average,1295,52,15,5,1,1295_52_15_5,
2017-06-15,Rice - Retail,KG,cereals and tubers,18.17,UAH,Ukraine,,0,National Average,1295,52,15,5,1,1295_52_15_5,
2017-07-15,Rice - Retail,KG,cereals and tubers,18.4567,UAH,Ukraine,,0,National Average,1295,52,15,5,1,1295_52_15_5,
2017-09-15,Rice - Retail,KG,cereals and tubers,19.44,UAH,Ukraine,,0,National Average,1295,52,15,5,1,1295_52_15_5,
2017-10-15,Rice - Retail,KG,cereals and tubers,19.7233,UAH,Ukraine,,0,National Average,1295,52,15,5,1,1295_52_15_5,
2017-11-15,Rice - Retail,KG,cereals and tubers,20.0567,UAH,Ukraine,,0,National Average,1295,52,15,5,1,1295_52_15_5,
2017-12-15,Rice - Retail,KG,cereals and tubers,19.8833,UAH,Ukraine,,0,National Average,1295,52,15,5,1,1295_52_15_5,
2014-03-15,Milk - Retail,L,milk and dairy,7.94,UAH,Ukraine,,0,National Average,1295,81,15,15,3,1295_81_15_15,
2014-04-15,Milk - Retail,L,milk and dairy,8.0733,UAH,Ukraine,,0,National Average,1295,81,15,15,3,1295_81_15_15,
2014-05-15,Milk - Retail,L,milk and dairy,8.15,UAH,Ukraine,,0,National Average,1295,81,15,15,3,1295_81_15_15,
2014-06-15,Milk - Retail,L,milk and dairy,8.1733,UAH,Ukraine,,0,National Average,1295,81,15,15,3,1295_81_15_15,
2014-07-15,Milk - Retail,L,milk and dairy,8.1667,UAH,Ukraine,,0,National Average,1295,81,15,15,3,1295_81_15_15,
2014-08-15,Milk - Retail,L,milk and dairy,8.1667,UAH,Ukraine,,0,National Average,1295,81,15,15,3,1295_81_15_15,
2014-09-15,Milk - Retail,L,milk and dairy,8.32,UAH,Ukraine,,0,National Average,1295,81,15,15,3,1295_81_15_15,
2014-10-15,Milk - Retail,L,milk and dairy,8.6767,UAH,Ukraine,,0,National Average,1295,81,15,15,3,1295_81_15_15,
2014-11-15,Milk - Retail,L,milk and dairy,8.7367,UAH,Ukraine,,0,National Average,1295,81,15,15,3,1295_81_15_15,
2014-12-15,Milk - Retail,L,milk and dairy,8.7933,UAH,Ukraine,,0,National Average,1295,81,15,15,3,1295_81_15_15,
2015-01-15,Milk - Retail,L,milk and dairy,9.0267,UAH,Ukraine,,0,National Average,1295,81,15,15,3,1295_81_15_15,
2015-02-15,Milk - Retail,L,milk and dairy,9.1833,UAH,Ukraine,,0,National Average,1295,81,15,15,3,1295_81_15_15,
2015-03-15,Milk - Retail,L,milk and dairy,9.67,UAH,Ukraine,,0,National Average,1295,81,15,15,3,1295_81_15_15,
2015-04-15,Milk - Retail,L,milk and dairy,10.09,UAH,Ukraine,,0,National Average,1295,81,15,15,3,1295_81_15_15,
2015-05-15,Milk - Retail,L,milk and dairy,10.2633,UAH,Ukraine,,0,National Average,1295,81,15,15,3,1295_81_15_15,
2015-06-15,Milk - Retail,L,milk and dairy,10.4267,UAH,Ukraine,,0,National Average,1295,81,15,15,3,1295_81_15_15,
2015-07-15,Milk - Retail,L,milk and dairy,10.5633,UAH,Ukraine,,0,National Average,1295,81,15,15,3,1295_81_15_15,
2015-08-15,Milk - Retail,L,milk and dairy,10.6667,UAH,Ukraine,,0,National Average,1295,81,15,15,3,1295_81_15_15,
2015-09-15,Milk - Retail,L,milk and dairy,10.85,UAH,Ukraine,,0,National Average,1295,81,15,15,3,1295_81_15_15,
2015-10-15,Milk - Retail,L,milk and dairy,11.0333,UAH,Ukraine,,0,National Average,1295,81,15,15,3,1295_81_15_15,
2015-11-15,Milk - Retail,L,milk and dairy,11.41,UAH,Ukraine,,0,National Average,1295,81,15,15,3,1295_81_15_15,
2015-12-15,Milk - Retail,L,milk and dairy,11.7833,UAH,Ukraine,,0,National Average,1295,81,15,15,3,1295_81_15_15,
2016-01-15,Milk - Retail,L,milk and dairy,11.9967,UAH,Ukraine,,0,National Average,1295,81,15,15,3,1295_81_15_15,
2016-02-15,Milk - Retail,L,milk and dairy,12.32,UAH,Ukraine,,0,National Average,1295,81,15,15,3,1295_81_15_15,
2016-03-15,Milk - Retail,L,milk and dairy,12.53,UAH,Ukraine,,0,National Average,1295,81,15,15,3,1295_81_15_15,
2016-04-15,Milk - Retail,L,milk and dairy,12.4233,UAH,Ukraine,,0,National Average,1295,81,15,15,3,1295_81_15_15,
2016-05-15,Milk - Retail,L,milk and dairy,12.4467,UAH,Ukraine,,0,National Average,1295,81,15,15,3,1295_81_15_15,
2016-06-15,Milk - Retail,L,milk and dairy,12.3867,UAH,Ukraine,,0,National Average,1295,81,15,15,3,1295_81_15_15,
2016-07-15,Milk - Retail,L,milk and dairy,12.4733,UAH,Ukraine,,0,National Average,1295,81,15,15,3,1295_81_15_15,
2016-08-15,Milk - Retail,L,milk and dairy,12.54,UAH,Ukraine,,0,National Average,1295,81,15,15,3,1295_81_15_15,
2016-09-15,Milk - Retail,L,milk and dairy,12.8233,UAH,Ukraine,,0,National Average,1295,81,15,15,3,1295_81_15_15,
2016-10-15,Milk - Retail,L,milk and dairy,13.35,UAH,Ukraine,,0,National Average,1295,81,15,15,3,1295_81_15_15,
2016-11-15,Milk - Retail,L,milk and dairy,14.1633,UAH,Ukraine,,0,National Average,1295,81,15,15,3,1295_81_15_15,
2016-12-15,Milk - Retail,L,milk and dairy,15.2033,UAH,Ukraine,,0,National Average,1295,81,15,15,3,1295_81_15_15,
2017-01-15,Milk - Retail,L,milk and dairy,15.7733,UAH,Ukraine,,0,National Average,1295,81,15,15,3,1295_81_15_15,
2017-02-15,Milk - Retail,L,milk and dairy,16.3733,UAH,Ukraine,,0,National Average,1295,81,15,15,3,1295_81_15_15,
2017-03-15,Milk - Retail,L,milk and dairy,16.5467,UAH,Ukraine,,0,National Average,1295,81,15,15,3,1295_81_15_15,
2017-04-15,Milk - Retail,L,milk and dairy,16.5833,UAH,Ukraine,,0,National Average,1295,81,15,15,3,1295_81_15_15,
2017-05-15,Milk - Retail,L,milk and dairy,16.49,UAH,Ukraine,,0,National Average,1295,81,15,15,3,1295_81_15_15,
2017-06-15,Milk - Retail,L,milk and dairy,16.5733,UAH,Ukraine,,0,National Average,1295,81,15,15,3,1295_81_15_15,
2017-07-15,Milk - Retail,L,milk and dairy,16.7333,UAH,Ukraine,,0,National Average,1295,81,15,15,3,1295_81_15_15,
2017-09-15,Milk - Retail,L,milk and dairy,17.3767,UAH,Ukraine,,0,National Average,1295,81,15,15,3,1295_81_15_15,
2017-10-15,Milk - Retail,L,milk and dairy,17.7833,UAH,Ukraine,,0,National Average,1295,81,15,15,3,1295_81_15_15,
2017-11-15,Milk - Retail,L,milk and dairy,18.1433,UAH,Ukraine,,0,National Average,1295,81,15,15,3,1295_81_15_15,
2017-12-15,Milk - Retail,L,milk and dairy,18.51,UAH,Ukraine,,0,National Average,1295,81,15,15,3,1295_81_15_15,
2014-03-15,Potatoes - Retail,KG,cereals and tubers,6.74,UAH,Ukraine,,0,National Average,1295,83,15,5,1,1295_83_15_5,
2014-04-15,Potatoes - Retail,KG,cereals and tubers,6.8833,UAH,Ukraine,,0,National Average,1295,83,15,5,1,1295_83_15_5,
2014-05-15,Potatoes - Retail,KG,cereals and tubers,7.5433,UAH,Ukraine,,0,National Average,1295,83,15,5,1,1295_83_15_5,
2014-06-15,Potatoes - Retail,KG,cereals and tubers,7.13,UAH,Ukraine,,0,National Average,1295,83,15,5,1,1295_83_15_5,
2014-07-15,Potatoes - Retail,KG,cereals and tubers,4.3233,UAH,Ukraine,,0,National Average,1295,83,15,5,1,1295_83_15_5,
2014-08-15,Potatoes - Retail,KG,cereals and tubers,3.1267,UAH,Ukraine,,0,National Average,1295,83,15,5,1,1295_83_15_5,
2014-09-15,Potatoes - Retail,KG,cereals and tubers,3.0,UAH,Ukraine,,0,National Average,1295,83,15,5,1,1295_83_15_5,
2014-10-15,Potatoes - Retail,KG,cereals and tubers,3.02,UAH,Ukraine,,0,National Average,1295,83,15,5,1,1295_83_15_5,
2014-11-15,Potatoes - Retail,KG,cereals and tubers,2.9867,UAH,Ukraine,,0,National Average,1295,83,15,5,1,1295_83_15_5,
2014-12-15,Potatoes - Retail,KG,cereals and tubers,3.1133,UAH,Ukraine,,0,National Average,1295,83,15,5,1,1295_83_15_5,
2015-01-15,Potatoes - Retail,KG,cereals and tubers,3.6667,UAH,Ukraine,,0,National Average,1295,83,15,5,1,1295_83_15_5,
2015-02-15,Potatoes - Retail,KG,cereals and tubers,3.98,UAH,Ukraine,,0,National Average,1295,83,15,5,1,1295_83_15_5,
2015-03-15,Potatoes - Retail,KG,cereals and tubers,4.4033,UAH,Ukraine,,0,National Average,1295,83,15,5,1,1295_83_15_5,
2015-04-15,Potatoes - Retail,KG,cereals and tubers,4.04,UAH,Ukraine,,0,National Average,1295,83,15,5,1,1295_83_15_5,
2015-05-15,Potatoes - Retail,KG,cereals and tubers,3.97,UAH,Ukraine,,0,National Average,1295,83,15,5,1,1295_83_15_5,
2015-06-15,Potatoes - Retail,KG,cereals and tubers,5.9433,UAH,Ukraine,,0,National Average,1295,83,15,5,1,1295_83_15_5,
2015-07-15,Potatoes - Retail,KG,cereals and tubers,5.3,UAH,Ukraine,,0,National Average,1295,83,15,5,1,1295_83_15_5,
2015-08-15,Potatoes - Retail,KG,cereals and tubers,4.79,UAH,Ukraine,,0,National Average,1295,83,15,5,1,1295_83_15_5,
2015-09-15,Potatoes - Retail,KG,cereals and tubers,4.88,UAH,Ukraine,,0,National Average,1295,83,15,5,1,1295_83_15_5,
2015-10-15,Potatoes - Retail,KG,cereals and tubers,5.0533,UAH,Ukraine,,0,National Average,1295,83,15,5,1,1295_83_15_5,
2015-11-15,Potatoes - Retail,KG,cereals and tubers,5.8433,UAH,Ukraine,,0,National Average,1295,83,15,5,1,1295_83_15_5,
2015-12-15,Potatoes - Retail,KG,cereals and tubers,5.96,UAH,Ukraine,,0,National Average,1295,83,15,5,1,1295_83_15_5,
2016-01-15,Potatoes - Retail,KG,cereals and tubers,6.28,UAH,Ukraine,,0,National Average,1295,83,15,5,1,1295_83_15_5,
2016-02-15,Potatoes - Retail,KG,cereals and tubers,6.02,UAH,Ukraine,,0,National Average,1295,83,15,5,1,1295_83_15_5,
2016-03-15,Potatoes - Retail,KG,cereals and tubers,5.3833,UAH,Ukraine,,0,National Average,1295,83,15,5,1,1295_83_15_5,
2016-04-15,Potatoes - Retail,KG,cereals and tubers,5.17,UAH,Ukraine,,0,National Average,1295,83,15,5,1,1295_83_15_5,
2016-05-15,Potatoes - Retail,KG,cereals and tubers,5.8267,UAH,Ukraine,,0,National Average,1295,83,15,5,1,1295_83_15_5,
2016-06-15,Potatoes - Retail,KG,cereals and tubers,6.4633,UAH,Ukraine,,0,National Average,1295,83,15,5,1,1295_83_15_5,
2016-07-15,Potatoes - Retail,KG,cereals and tubers,5.3533,UAH,Ukraine,,0,National Average,1295,83,15,5,1,1295_83_15_5,
2016-08-15,Potatoes - Retail,KG,cereals and tubers,4.87,UAH,Ukraine,,0,National Average,1295,83,15,5,1,1295_83_15_5,
2016-09-15,Potatoes - Retail,KG,cereals and tubers,4.66,UAH,Ukraine,,0,National Average,1295,83,15,5,1,1295_83_15_5,
2016-10-15,Potatoes - Retail,KG,cereals and tubers,4.6567,UAH,Ukraine,,0,National Average,1295,83,15,5,1,1295_83_15_5,
2016-11-15,Potatoes - Retail,KG,cereals and tubers,4.9,UAH,Ukraine,,0,National Average,1295,83,15,5,1,1295_83_15_5,
2016-12-15,Potatoes - Retail,KG,cereals and tubers,5.1967,UAH,Ukraine,,0,National Average,1295,83,15,5,1,1295_83_15_5,
2017-01-15,Potatoes - Retail,KG,cereals and tubers,5.84,UAH,Ukraine,,0,National Average,1295,83,15,5,1,1295_83_15_5,
2017-02-15,Potatoes - Retail,KG,cereals and tubers,6.3067,UAH,Ukraine,,0,National Average,1295,83,15,5,1,1295_83_15_5,
2017-03-15,Potatoes - Retail,KG,cereals and tubers,6.3433,UAH,Ukraine,,0,National Average,1295,83,15,5,1,1295_83_15_5,
2017-04-15,Potatoes - Retail,KG,cereals and tubers,6.8,UAH,Ukraine,,0,National Average,1295,83,15,5,1,1295_83_15_5,
2017-05-15,Potatoes - Retail,KG,cereals and tubers,8.7333,UAH,Ukraine,,0,National Average,1295,83,15,5,1,1295_83_15_5,
2017-06-15,Potatoes - Retail,KG,cereals and tubers,10.4133,UAH,Ukraine,,0,National Average,1295,83,15,5,1,1295_83_15_5,
2017-07-15,Potatoes - Retail,KG,cereals and tubers,8.3867,UAH,Ukraine,,0,National Average,1295,83,15,5,1,1295_83_15_5,
2017-09-15,Potatoes - Retail,KG,cereals and tubers,6.4867,UAH,Ukraine,,0,National Average,1295,83,15,5,1,1295_83_15_5,
2017-10-15,Potatoes - Retail,KG,cereals and tubers,6.0633,UAH,Ukraine,,0,National Average,1295,83,15,5,1,1295_83_15_5,
2017-11-15,Potatoes - Retail,KG,cereals and tubers,5.78,UAH,Ukraine,,0,National Average,1295,83,15,5,1,1295_83_15_5,
2017-12-15,Potatoes - Retail,KG,cereals and tubers,5.9333,UAH,Ukraine,,0,National Average,1295,83,15,5,1,1295_83_15_5,
"2014-03-15,Eggs - Retail,10 pcs,""meat, fish and eggs"",9.4867,UAH,Ukraine,,0,National Average,1295,92,15,81,2,1295_92_15_81,"
"2014-04-15,Eggs - Retail,10 pcs,""meat, fish and eggs"",7.8433,UAH,Ukraine,,0,National Average,1295,92,15,81,2,1295_92_15_81,"
"2014-05-15,Eggs - Retail,10 pcs,""meat, fish and eggs"",7.3967,UAH,Ukraine,,0,National Average,1295,92,15,81,2,1295_92_15_81,"
"2014-06-15,Eggs - Retail,10 pcs,""meat, fish and eggs"",6.8467,UAH,Ukraine,,0,National Average,1295,92,15,81,2,1295_92_15_81,"
"2014-07-15,Eggs - Retail,10 pcs,""meat, fish and eggs"",8.9267,UAH,Ukraine,,0,National Average,1295,92,15,81,2,1295_92_15_81,"
"2014-08-15,Eggs - Retail,10 pcs,""meat, fish and eggs"",10.1067,UAH,Ukraine,,0,National Average,1295,92,15,81,2,1295_92_15_81,"
"2014-09-15,Eggs - Retail,10 pcs,""meat, fish and eggs"",11.7333,UAH,Ukraine,,0,National Average,1295,92,15,81,2,1295_92_15_81,"
"2014-10-15,Eggs - Retail,10 pcs,""meat, fish and eggs"",13.3233,UAH,Ukraine,,0,National Average,1295,92,15,81,2,1295_92_15_81,"
"2014-11-15,Eggs - Retail,10 pcs,""meat, fish and eggs"",13.39,UAH,Ukraine,,0,National Average,1295,92,15,81,2,1295_92_15_81,"
"2014-12-15,Eggs - Retail,10 pcs,""meat, fish and eggs"",14.3767,UAH,Ukraine,,0,National Average,1295,92,15,81,2,1295_92_15_81,"
"2015-01-15,Eggs - Retail,10 pcs,""meat, fish and eggs"",14.4867,UAH,Ukraine,,0,National Average,1295,92,15,81,2,1295_92_15_81,"
"2015-02-15,Eggs - Retail,10 pcs,""meat, fish and eggs"",13.8533,UAH,Ukraine,,0,National Average,1295,92,15,81,2,1295_92_15_81,"
"2015-03-15,Eggs - Retail,10 pcs,""meat, fish and eggs"",13.74,UAH,Ukraine,,0,National Average,1295,92,15,81,2,1295_92_15_81,"
"2015-04-15,Eggs - Retail,10 pcs,""meat, fish and eggs"",12.5233,UAH,Ukraine,,0,National Average,1295,92,15,81,2,1295_92_15_81,"
"2015-05-15,Eggs - Retail,10 pcs,""meat, fish and eggs"",15.08,UAH,Ukraine,,0,National Average,1295,92,15,81,2,1295_92_15_81,"
"2015-06-15,Eggs - Retail,10 pcs,""meat, fish and eggs"",14.7433,UAH,Ukraine,,0,National Average,1295,92,15,81,2,1295_92_15_81,"
"2015-07-15,Eggs - Retail,10 pcs,""meat, fish and eggs"",13.3833,UAH,Ukraine,,0,National Average,1295,92,15,81,2,1295_92_15_81,"
"2015-08-15,Eggs - Retail,10 pcs,""meat, fish and eggs"",14.6867,UAH,Ukraine,,0,National Average,1295,92,15,81,2,1295_92_15_81,"
"2015-09-15,Eggs - Retail,10 pcs,""meat, fish and eggs"",16.7,UAH,Ukraine,,0,National Average,1295,92,15,81,2,1295_92_15_81,"
"2015-10-15,Eggs - Retail,10 pcs,""meat, fish and eggs"",18.26,UAH,Ukraine,,0,National Average,1295,92,15,81,2,1295_92_15_81,"
"2015-11-15,Eggs - Retail,10 pcs,""meat, fish and eggs"",20.8,UAH,Ukraine,,0,National Average,1295,92,15,81,2,1295_92_15_81,"
"2015-12-15,Eggs - Retail,10 pcs,""meat, fish and eggs"",23.61,UAH,Ukraine,,0,National Average,1295,92,15,81,2,1295_92_15_81,"
"2016-01-15,Eggs - Retail,10 pcs,""meat, fish and eggs"",22.87,UAH,Ukraine,,0,National Average,1295,92,15,81,2,1295_92_15_81,"
"2016-02-15,Eggs - Retail,10 pcs,""meat, fish and eggs"",14.8667,UAH,Ukraine,,0,National Average,1295,92,15,81,2,1295_92_15_81,"
"2016-03-15,Eggs - Retail,10 pcs,""meat, fish and eggs"",11.9433,UAH,Ukraine,,0,National Average,1295,92,15,81,2,1295_92_15_81,"
"2016-04-15,Eggs - Retail,10 pcs,""meat, fish and eggs"",9.97,UAH,Ukraine,,0,National Average,1295,92,15,81,2,1295_92_15_81,"
"2016-05-15,Eggs - Retail,10 pcs,""meat, fish and eggs"",11.6567,UAH,Ukraine,,0,National Average,1295,92,15,81,2,1295_92_15_81,"
"2016-06-15,Eggs - Retail,10 pcs,""meat, fish and eggs"",12.1767,UAH,Ukraine,,0,National Average,1295,92,15,81,2,1295_92_15_81,"
"2016-07-15,Eggs - Retail,10 pcs,""meat, fish and eggs"",13.1067,UAH,Ukraine,,0,National Average,1295,92,15,81,2,1295_92_15_81,"
"2016-08-15,Eggs - Retail,10 pcs,""meat, fish and eggs"",13.13,UAH,Ukraine,,0,National Average,1295,92,15,81,2,1295_92_15_81,"
"2016-09-15,Eggs - Retail,10 pcs,""meat, fish and eggs"",13.33,UAH,Ukraine,,0,National Average,1295,92,15,81,2,1295_92_15_81,"
"2016-10-15,Eggs - Retail,10 pcs,""meat, fish and eggs"",21.46,UAH,Ukraine,,0,National Average,1295,92,15,81,2,1295_92_15_81,"
"2016-11-15,Eggs - Retail,10 pcs,""meat, fish and eggs"",20.2133,UAH,Ukraine,,0,National Average,1295,92,15,81,2,1295_92_15_81,"
"2016-12-15,Eggs - Retail,10 pcs,""meat, fish and eggs"",20.6233,UAH,Ukraine,,0,National Average,1295,92,15,81,2,1295_92_15_81,"
"2017-01-15,Eggs - Retail,10 pcs,""meat, fish and eggs"",19.8767,UAH,Ukraine,,0,National Average,1295,92,15,81,2,1295_92_15_81,"
"2017-02-15,Eggs - Retail,10 pcs,""meat, fish and eggs"",14.91,UAH,Ukraine,,0,National Average,1295,92,15,81,2,1295_92_15_81,"
"2017-03-15,Eggs - Retail,10 pcs,""meat, fish and eggs"",13.8467,UAH,Ukraine,,0,National Average,1295,92,15,81,2,1295_92_15_81,"
"2017-04-15,Eggs - Retail,10 pcs,""meat, fish and eggs"",10.64,UAH,Ukraine,,0,National Average,1295,92,15,81,2,1295_92_15_81,"
"2017-05-15,Eggs - Retail,10 pcs,""meat, fish and eggs"",9.1967,UAH,Ukraine,,0,National Average,1295,92,15,81,2,1295_92_15_81,"
"2017-06-15,Eggs - Retail,10 pcs,""meat, fish and eggs"",12.67,UAH,Ukraine,,0,National Average,1295,92,15,81,2,1295_92_15_81,"
"2017-07-15,Eggs - Retail,10 pcs,""meat, fish and eggs"",10.18,UAH,Ukraine,,0,National Average,1295,92,15,81,2,1295_92_15_81,"
"2017-09-15,Eggs - Retail,10 pcs,""meat, fish and eggs"",18.5967,UAH,Ukraine,,0,National Average,1295,92,15,81,2,1295_92_15_81,"
"2017-10-15,Eggs - Retail,10 pcs,""meat, fish and eggs"",21.62,UAH,Ukraine,,0,National Average,1295,92,15,81,2,1295_92_15_81,"
"2017-11-15,Eggs - Retail,10 pcs,""meat, fish and eggs"",23.8033,UAH,Ukraine,,0,National Average,1295,92,15,81,2,1295_92_15_81,"
"2017-12-15,Eggs - Retail,10 pcs,""meat, fish and eggs"",25.53,UAH,Ukraine,,0,National Average,1295,92,15,81,2,1295_92_15_81,"
2014-03-15,Sugar - Retail,KG,miscellaneous food,8.9033,UAH,Ukraine,,0,National Average,1295,97,15,5,7,1295_97_15_5,
2014-04-15,Sugar - Retail,KG,miscellaneous food,9.4667,UAH,Ukraine,,0,National Average,1295,97,15,5,7,1295_97_15_5,
2014-05-15,Sugar - Retail,KG,miscellaneous food,10.1467,UAH,Ukraine,,0,National Average,1295,97,15,5,7,1295_97_15_5,
2014-06-15,Sugar - Retail,KG,miscellaneous food,9.94,UAH,Ukraine,,0,National Average,1295,97,15,5,7,1295_97_15_5,
2014-07-15,Sugar - Retail,KG,miscellaneous food,10.0067,UAH,Ukraine,,0,National Average,1295,97,15,5,7,1295_97_15_5,
2014-08-15,Sugar - Retail,KG,miscellaneous food,9.9867,UAH,Ukraine,,0,National Average,1295,97,15,5,7,1295_97_15_5,
2014-09-15,Sugar - Retail,KG,miscellaneous food,9.9633,UAH,Ukraine,,0,National Average,1295,97,15,5,7,1295_97_15_5,
2014-10-15,Sugar - Retail,KG,miscellaneous food,8.8767,UAH,Ukraine,,0,National Average,1295,97,15,5,7,1295_97_15_5,
2014-11-15,Sugar - Retail,KG,miscellaneous food,8.1633,UAH,Ukraine,,0,National Average,1295,97,15,5,7,1295_97_15_5,
2014-12-15,Sugar - Retail,KG,miscellaneous food,8.0233,UAH,Ukraine,,0,National Average,1295,97,15,5,7,1295_97_15_5,
2015-01-15,Sugar - Retail,KG,miscellaneous food,8.7067,UAH,Ukraine,,0,National Average,1295,97,15,5,7,1295_97_15_5,
2015-02-15,Sugar - Retail,KG,miscellaneous food,10.48,UAH,Ukraine,,0,National Average,1295,97,15,5,7,1295_97_15_5,
2015-03-15,Sugar - Retail,KG,miscellaneous food,13.96,UAH,Ukraine,,0,National Average,1295,97,15,5,7,1295_97_15_5,
2015-04-15,Sugar - Retail,KG,miscellaneous food,11.4267,UAH,Ukraine,,0,National Average,1295,97,15,5,7,1295_97_15_5,
2015-05-15,Sugar - Retail,KG,miscellaneous food,11.0967,UAH,Ukraine,,0,National Average,1295,97,15,5,7,1295_97_15_5,
2015-06-15,Sugar - Retail,KG,miscellaneous food,11.0767,UAH,Ukraine,,0,National Average,1295,97,15,5,7,1295_97_15_5,
2015-07-15,Sugar - Retail,KG,miscellaneous food,11.73,UAH,Ukraine,,0,National Average,1295,97,15,5,7,1295_97_15_5,
2015-08-15,Sugar - Retail,KG,miscellaneous food,11.63,UAH,Ukraine,,0,National Average,1295,97,15,5,7,1295_97_15_5,
2015-09-15,Sugar - Retail,KG,miscellaneous food,11.9467,UAH,Ukraine,,0,National Average,1295,97,15,5,7,1295_97_15_5,
2015-10-15,Sugar - Retail,KG,miscellaneous food,14.3033,UAH,Ukraine,,0,National Average,1295,97,15,5,7,1295_97_15_5,
2015-11-15,Sugar - Retail,KG,miscellaneous food,15.23,UAH,Ukraine,,0,National Average,1295,97,15,5,7,1295_97_15_5,
2015-12-15,Sugar - Retail,KG,miscellaneous food,15.1233,UAH,Ukraine,,0,National Average,1295,97,15,5,7,1295_97_15_5,
2016-01-15,Sugar - Retail,KG,miscellaneous food,15.0833,UAH,Ukraine,,0,National Average,1295,97,15,5,7,1295_97_15_5,
2016-02-15,Sugar - Retail,KG,miscellaneous food,14.9267,UAH,Ukraine,,0,National Average,1295,97,15,5,7,1295_97_15_5,
2016-03-15,Sugar - Retail,KG,miscellaneous food,14.69,UAH,Ukraine,,0,National Average,1295,97,15,5,7,1295_97_15_5,
2016-04-15,Sugar - Retail,KG,miscellaneous food,14.1833,UAH,Ukraine,,0,National Average,1295,97,15,5,7,1295_97_15_5,
2016-05-15,Sugar - Retail,KG,miscellaneous food,13.85,UAH,Ukraine,,0,National Average,1295,97,15,5,7,1295_97_15_5,
2016-06-15,Sugar - Retail,KG,miscellaneous food,13.5633,UAH,Ukraine,,0,National Average,1295,97,15,5,7,1295_97_15_5,
2016-07-15,Sugar - Retail,KG,miscellaneous food,13.73,UAH,Ukraine,,0,National Average,1295,97,15,5,7,1295_97_15_5,
2016-08-15,Sugar - Retail,KG,miscellaneous food,13.68,UAH,Ukraine,,0,National Average,1295,97,15,5,7,1295_97_15_5,
2016-09-15,Sugar - Retail,KG,miscellaneous food,13.6567,UAH,Ukraine,,0,National Average,1295,97,15,5,7,1295_97_15_5,
2016-10-15,Sugar - Retail,KG,miscellaneous food,13.8867,UAH,Ukraine,,0,National Average,1295,97,15,5,7,1295_97_15_5,
2016-11-15,Sugar - Retail,KG,miscellaneous food,14.8033,UAH,Ukraine,,0,National Average,1295,97,15,5,7,1295_97_15_5,
2016-12-15,Sugar - Retail,KG,miscellaneous food,14.8367,UAH,Ukraine,,0,National Average,1295,97,15,5,7,1295_97_15_5,
2017-01-15,Sugar - Retail,KG,miscellaneous food,15.0367,UAH,Ukraine,,0,National Average,1295,97,15,5,7,1295_97_15_5,
2017-02-15,Sugar - Retail,KG,miscellaneous food,15.8667,UAH,Ukraine,,0,National Average,1295,97,15,5,7,1295_97_15_5,
2017-03-15,Sugar - Retail,KG,miscellaneous food,16.4133,UAH,Ukraine,,0,National Average,1295,97,15,5,7,1295_97_15_5,
2017-04-15,Sugar - Retail,KG,miscellaneous food,16.4733,UAH,Ukraine,,0,National Average,1295,97,15,5,7,1295_97_15_5,
2017-05-15,Sugar - Retail,KG,miscellaneous food,16.4967,UAH,Ukraine,,0,National Average,1295,97,15,5,7,1295_97_15_5,
2017-06-15,Sugar - Retail,KG,miscellaneous food,16.4,UAH,Ukraine,,0,National Average,1295,97,15,5,7,1295_97_15_5,
2017-07-15,Sugar - Retail,KG,miscellaneous food,16.2967,UAH,Ukraine,,0,National Average,1295,97,15,5,7,1295_97_15_5,
2017-09-15,Sugar - Retail,KG,miscellaneous food,15.9567,UAH,Ukraine,,0,National Average,1295,97,15,5,7,1295_97_15_5,
2017-10-15,Sugar - Retail,KG,miscellaneous food,14.3567,UAH,Ukraine,,0,National Average,1295,97,15,5,7,1295_97_15_5,
2017-11-15,Sugar - Retail,KG,miscellaneous food,13.2033,UAH,Ukraine,,0,National Average,1295,97,15,5,7,1295_97_15_5,
2017-12-15,Sugar - Retail,KG,miscellaneous food,12.6867,UAH,Ukraine,,0,National Average,1295,97,15,5,7,1295_97_15_5,
2014-03-15,Pasta - Retail,KG,cereals and tubers,5.3367,UAH,Ukraine,,0,National Average,1295,112,15,5,1,1295_112_15_5,
2014-04-15,Pasta - Retail,KG,cereals and tubers,5.6367,UAH,Ukraine,,0,National Average,1295,112,15,5,1,1295_112_15_5,
2014-05-15,Pasta - Retail,KG,cereals and tubers,6.0467,UAH,Ukraine,,0,National Average,1295,112,15,5,1,1295_112_15_5,
2014-06-15,Pasta - Retail,KG,cereals and tubers,6.3867,UAH,Ukraine,,0,National Average,1295,112,15,5,1,1295_112_15_5,
2014-07-15,Pasta - Retail,KG,cereals and tubers,6.4867,UAH,Ukraine,,0,National Average,1295,112,15,5,1,1295_112_15_5,
2014-08-15,Pasta - Retail,KG,cereals and tubers,6.4167,UAH,Ukraine,,0,National Average,1295,112,15,5,1,1295_112_15_5,
2014-09-15,Pasta - Retail,KG,cereals and tubers,6.38,UAH,Ukraine,,0,National Average,1295,112,15,5,1,1295_112_15_5,
2014-10-15,Pasta - Retail,KG,cereals and tubers,6.78,UAH,Ukraine,,0,National Average,1295,112,15,5,1,1295_112_15_5,
2014-11-15,Pasta - Retail,KG,cereals and tubers,6.8633,UAH,Ukraine,,0,National Average,1295,112,15,5,1,1295_112_15_5,
2014-12-15,Pasta - Retail,KG,cereals and tubers,6.96,UAH,Ukraine,,0,National Average,1295,112,15,5,1,1295_112_15_5,
2015-01-15,Pasta - Retail,KG,cereals and tubers,7.4733,UAH,Ukraine,,0,National Average,1295,112,15,5,1,1295_112_15_5,
2015-02-15,Pasta - Retail,KG,cereals and tubers,8.2967,UAH,Ukraine,,0,National Average,1295,112,15,5,1,1295_112_15_5,
2015-03-15,Pasta - Retail,KG,cereals and tubers,11.1467,UAH,Ukraine,,0,National Average,1295,112,15,5,1,1295_112_15_5,
2015-04-15,Pasta - Retail,KG,cereals and tubers,11.6133,UAH,Ukraine,,0,National Average,1295,112,15,5,1,1295_112_15_5,
2015-05-15,Pasta - Retail,KG,cereals and tubers,11.1667,UAH,Ukraine,,0,National Average,1295,112,15,5,1,1295_112_15_5,
2015-06-15,Pasta - Retail,KG,cereals and tubers,10.5467,UAH,Ukraine,,0,National Average,1295,112,15,5,1,1295_112_15_5,
2015-07-15,Pasta - Retail,KG,cereals and tubers,9.78,UAH,Ukraine,,0,National Average,1295,112,15,5,1,1295_112_15_5,
2015-08-15,Pasta - Retail,KG,cereals and tubers,9.6033,UAH,Ukraine,,0,National Average,1295,112,15,5,1,1295_112_15_5,
2015-09-15,Pasta - Retail,KG,cereals and tubers,9.31,UAH,Ukraine,,0,National Average,1295,112,15,5,1,1295_112_15_5,
2015-10-15,Pasta - Retail,KG,cereals and tubers,9.12,UAH,Ukraine,,0,National Average,1295,112,15,5,1,1295_112_15_5,
2015-11-15,Pasta - Retail,KG,cereals and tubers,9.3333,UAH,Ukraine,,0,National Average,1295,112,15,5,1,1295_112_15_5,
2015-12-15,Pasta - Retail,KG,cereals and tubers,9.7267,UAH,Ukraine,,0,National Average,1295,112,15,5,1,1295_112_15_5,
2016-01-15,Pasta - Retail,KG,cereals and tubers,9.8767,UAH,Ukraine,,0,National Average,1295,112,15,5,1,1295_112_15_5,
2016-02-15,Pasta - Retail,KG,cereals and tubers,9.8433,UAH,Ukraine,,0,National Average,1295,112,15,5,1,1295_112_15_5,
2016-03-15,Pasta - Retail,KG,cereals and tubers,9.8,UAH,Ukraine,,0,National Average,1295,112,15,5,1,1295_112_15_5,
2016-04-15,Pasta - Retail,KG,cereals and tubers,9.8033,UAH,Ukraine,,0,National Average,1295,112,15,5,1,1295_112_15_5,
2016-05-15,Pasta - Retail,KG,cereals and tubers,9.7167,UAH,Ukraine,,0,National Average,1295,112,15,5,1,1295_112_15_5,
2016-06-15,Pasta - Retail,KG,cereals and tubers,9.5433,UAH,Ukraine,,0,National Average,1295,112,15,5,1,1295_112_15_5,
2016-07-15,Pasta - Retail,KG,cereals and tubers,9.4333,UAH,Ukraine,,0,National Average,1295,112,15,5,1,1295_112_15_5,
2016-08-15,Pasta - Retail,KG,cereals and tubers,9.28,UAH,Ukraine,,0,National Average,1295,112,15,5,1,1295_112_15_5,
2016-09-15,Pasta - Retail,KG,cereals and tubers,9.31,UAH,Ukraine,,0,National Average,1295,112,15,5,1,1295_112_15_5,
2016-10-15,Pasta - Retail,KG,cereals and tubers,9.3367,UAH,Ukraine,,0,National Average,1295,112,15,5,1,1295_112_15_5,
2016-11-15,Pasta - Retail,KG,cereals and tubers,9.4033,UAH,Ukraine,,0,National Average,1295,112,15,5,1,1295_112_15_5,
2016-12-15,Pasta - Retail,KG,cereals and tubers,9.51,UAH,Ukraine,,0,National Average,1295,112,15,5,1,1295_112_15_5,
2017-01-15,Pasta - Retail,KG,cereals and tubers,9.71,UAH,Ukraine,,0,National Average,1295,112,15,5,1,1295_112_15_5,
2017-02-15,Pasta - Retail,KG,cereals and tubers,9.7667,UAH,Ukraine,,0,National Average,1295,112,15,5,1,1295_112_15_5,
2017-03-15,Pasta - Retail,KG,cereals and tubers,9.79,UAH,Ukraine,,0,National Average,1295,112,15,5,1,1295_112_15_5,
2017-04-15,Pasta - Retail,KG,cereals and tubers,9.8567,UAH,Ukraine,,0,National Average,1295,112,15,5,1,1295_112_15_5,
2017-05-15,Pasta - Retail,KG,cereals and tubers,9.8233,UAH,Ukraine,,0,National Average,1295,112,15,5,1,1295_112_15_5,
2017-06-15,Pasta - Retail,KG,cereals and tubers,9.76,UAH,Ukraine,,0,National Average,1295,112,15,5,1,1295_112_15_5,
2017-07-15,Pasta - Retail,KG,cereals and tubers,9.7433,UAH,Ukraine,,0,National Average,1295,112,15,5,1,1295_112_15_5,
2017-09-15,Pasta - Retail,KG,cereals and tubers,9.9167,UAH,Ukraine,,0,National Average,1295,112,15,5,1,1295_112_15_5,
2017-10-15,Pasta - Retail,KG,cereals and tubers,9.8533,UAH,Ukraine,,0,National Average,1295,112,15,5,1,1295_112_15_5,
2017-11-15,Pasta - Retail,KG,cereals and tubers,9.9033,UAH,Ukraine,,0,National Average,1295,112,15,5,1,1295_112_15_5,
2017-12-15,Pasta - Retail,KG,cereals and tubers,9.9867,UAH,Ukraine,,0,National Average,1295,112,15,5,1,1295_112_15_5,
"2014-03-15,""Meat (chicken, whole) - Retail"",KG,""meat, fish and eggs"",21.0267,UAH,Ukraine,,0,National Average,1295,125,15,5,2,1295_125_15_5,"
"2014-04-15,""Meat (chicken, whole) - Retail"",KG,""meat, fish and eggs"",21.75,UAH,Ukraine,,0,National Average,1295,125,15,5,2,1295_125_15_5,"
"2014-05-15,""Meat (chicken, whole) - Retail"",KG,""meat, fish and eggs"",23.7767,UAH,Ukraine,,0,National Average,1295,125,15,5,2,1295_125_15_5,"
"2014-06-15,""Meat (chicken, whole) - Retail"",KG,""meat, fish and eggs"",25.98,UAH,Ukraine,,0,National Average,1295,125,15,5,2,1295_125_15_5,"
"2014-07-15,""Meat (chicken, whole) - Retail"",KG,""meat, fish and eggs"",28.3533,UAH,Ukraine,,0,National Average,1295,125,15,5,2,1295_125_15_5,"
"2014-08-15,""Meat (chicken, whole) - Retail"",KG,""meat, fish and eggs"",28.0433,UAH,Ukraine,,0,National Average,1295,125,15,5,2,1295_125_15_5,"
"2014-09-15,""Meat (chicken, whole) - Retail"",KG,""meat, fish and eggs"",28.39,UAH,Ukraine,,0,National Average,1295,125,15,5,2,1295_125_15_5,"
"2014-10-15,""Meat (chicken, whole) - Retail"",KG,""meat, fish and eggs"",30.5933,UAH,Ukraine,,0,National Average,1295,125,15,5,2,1295_125_15_5,"
"2014-11-15,""Meat (chicken, whole) - Retail"",KG,""meat, fish and eggs"",30.6033,UAH,Ukraine,,0,National Average,1295,125,15,5,2,1295_125_15_5,"
"2014-12-15,""Meat (chicken, whole) - Retail"",KG,""meat, fish and eggs"",30.34,UAH,Ukraine,,0,National Average,1295,125,15,5,2,1295_125_15_5,"
"2015-01-15,""Meat (chicken, whole) - Retail"",KG,""meat, fish and eggs"",30.43,UAH,Ukraine,,0,National Average,1295,125,15,5,2,1295_125_15_5,"
"2015-02-15,""Meat (chicken, whole) - Retail"",KG,""meat, fish and eggs"",30.17,UAH,Ukraine,,0,National Average,1295,125,15,5,2,1295_125_15_5,"
"2015-03-15,""Meat (chicken, whole) - Retail"",KG,""meat, fish and eggs"",33.4167,UAH,Ukraine,,0,National Average,1295,125,15,5,2,1295_125_15_5,"
"2015-04-15,""Meat (chicken, whole) - Retail"",KG,""meat, fish and eggs"",35.71,UAH,Ukraine,,0,National Average,1295,125,15,5,2,1295_125_15_5,"
"2015-05-15,""Meat (chicken, whole) - Retail"",KG,""meat, fish and eggs"",35.99,UAH,Ukraine,,0,National Average,1295,125,15,5,2,1295_125_15_5,"
"2015-06-15,""Meat (chicken, whole) - Retail"",KG,""meat, fish and eggs"",36.16,UAH,Ukraine,,0,National Average,1295,125,15,5,2,1295_125_15_5,"
"2015-07-15,""Meat (chicken, whole) - Retail"",KG,""meat, fish and eggs"",36.0933,UAH,Ukraine,,0,National Average,1295,125,15,5,2,1295_125_15_5,"
"2015-08-15,""Meat (chicken, whole) - Retail"",KG,""meat, fish and eggs"",36.3733,UAH,Ukraine,,0,National Average,1295,125,15,5,2,1295_125_15_5,"
"2015-09-15,""Meat (chicken, whole) - Retail"",KG,""meat, fish and eggs"",36.9633,UAH,Ukraine,,0,National Average,1295,125,15,5,2,1295_125_15_5,"
"2015-10-15,""Meat (chicken, whole) - Retail"",KG,""meat, fish and eggs"",37.2233,UAH,Ukraine,,0,National Average,1295,125,15,5,2,1295_125_15_5,"
"2015-11-15,""Meat (chicken, whole) - Retail"",KG,""meat, fish and eggs"",38.0633,UAH,Ukraine,,0,National Average,1295,125,15,5,2,1295_125_15_5,"
"2015-12-15,""Meat (chicken, whole) - Retail"",KG,""meat, fish and eggs"",38.2533,UAH,Ukraine,,0,National Average,1295,125,15,5,2,1295_125_15_5,"
"2016-01-15,""Meat (chicken, whole) - Retail"",KG,""meat, fish and eggs"",38.92,UAH,Ukraine,,0,National Average,1295,125,15,5,2,1295_125_15_5,"
"2016-02-15,""Meat (chicken, whole) - Retail"",KG,""meat, fish and eggs"",38.24,UAH,Ukraine,,0,National Average,1295,125,15,5,2,1295_125_15_5,"
"2016-03-15,""Meat (chicken, whole) - Retail"",KG,""meat, fish and eggs"",37.8567,UAH,Ukraine,,0,National Average,1295,125,15,5,2,1295_125_15_5,"
"2016-04-15,""Meat (chicken, whole) - Retail"",KG,""meat, fish and eggs"",38.21,UAH,Ukraine,,0,National Average,1295,125,15,5,2,1295_125_15_5,"
"2016-05-15,""Meat (chicken, whole) - Retail"",KG,""meat, fish and eggs"",39.3467,UAH,Ukraine,,0,National Average,1295,125,15,5,2,1295_125_15_5,"
"2016-06-15,""Meat (chicken, whole) - Retail"",KG,""meat, fish and eggs"",39.4067,UAH,Ukraine,,0,National Average,1295,125,15,5,2,1295_125_15_5,"
"2016-07-15,""Meat (chicken, whole) - Retail"",KG,""meat, fish and eggs"",39.8633,UAH,Ukraine,,0,National Average,1295,125,15,5,2,1295_125_15_5,"
"2016-08-15,""Meat (chicken, whole) - Retail"",KG,""meat, fish and eggs"",39.58,UAH,Ukraine,,0,National Average,1295,125,15,5,2,1295_125_15_5,"
"2016-09-15,""Meat (chicken, whole) - Retail"",KG,""meat, fish and eggs"",41.14,UAH,Ukraine,,0,National Average,1295,125,15,5,2,1295_125_15_5,"
"2016-10-15,""Meat (chicken, whole) - Retail"",KG,""meat, fish and eggs"",41.6233,UAH,Ukraine,,0,National Average,1295,125,15,5,2,1295_125_15_5,"
"2016-11-15,""Meat (chicken, whole) - Retail"",KG,""meat, fish and eggs"",41.0267,UAH,Ukraine,,0,National Average,1295,125,15,5,2,1295_125_15_5,"
"2016-12-15,""Meat (chicken, whole) - Retail"",KG,""meat, fish and eggs"",41.5333,UAH,Ukraine,,0,National Average,1295,125,15,5,2,1295_125_15_5,"
"2017-01-15,""Meat (chicken, whole) - Retail"",KG,""meat, fish and eggs"",41.8933,UAH,Ukraine,,0,National Average,1295,125,15,5,2,1295_125_15_5,"
"2017-02-15,""Meat (chicken, whole) - Retail"",KG,""meat, fish and eggs"",42.0933,UAH,Ukraine,,0,National Average,1295,125,15,5,2,1295_125_15_5,"
"2017-03-15,""Meat (chicken, whole) - Retail"",KG,""meat, fish and eggs"",42.5433,UAH,Ukraine,,0,National Average,1295,125,15,5,2,1295_125_15_5,"
"2017-04-15,""Meat (chicken, whole) - Retail"",KG,""meat, fish and eggs"",43.2467,UAH,Ukraine,,0,National Average,1295,125,15,5,2,1295_125_15_5,"
"2017-05-15,""Meat (chicken, whole) - Retail"",KG,""meat, fish and eggs"",43.5267,UAH,Ukraine,,0,National Average,1295,125,15,5,2,1295_125_15_5,"
"2017-06-15,""Meat (chicken, whole) - Retail"",KG,""meat, fish and eggs"",44.4967,UAH,Ukraine,,0,National Average,1295,125,15,5,2,1295_125_15_5,"
"2017-07-15,""Meat (chicken, whole) - Retail"",KG,""meat, fish and eggs"",49.2033,UAH,Ukraine,,0,National Average,1295,125,15,5,2,1295_125_15_5,"
"2017-09-15,""Meat (chicken, whole) - Retail"",KG,""meat, fish and eggs"",55.2333,UAH,Ukraine,,0,National Average,1295,125,15,5,2,1295_125_15_5,"
"2017-10-15,""Meat (chicken, whole) - Retail"",KG,""meat, fish and eggs"",54.9367,UAH,Ukraine,,0,National Average,1295,125,15,5,2,1295_125_15_5,"
"2017-11-15,""Meat (chicken, whole) - Retail"",KG,""meat, fish and eggs"",53.4067,UAH,Ukraine,,0,National Average,1295,125,15,5,2,1295_125_15_5,"
"2017-12-15,""Meat (chicken, whole) - Retail"",KG,""meat, fish and eggs"",53.2,UAH,Ukraine,,0,National Average,1295,125,15,5,2,1295_125_15_5,"
"2014-03-15,Meat (pork) - Retail,KG,""meat, fish and eggs"",44.7833,UAH,Ukraine,,0,National Average,1295,140,15,5,2,1295_140_15_5,"
"2014-04-15,Meat (pork) - Retail,KG,""meat, fish and eggs"",50.9933,UAH,Ukraine,,0,National Average,1295,140,15,5,2,1295_140_15_5,"
"2014-05-15,Meat (pork) - Retail,KG,""meat, fish and eggs"",52.7433,UAH,Ukraine,,0,National Average,1295,140,15,5,2,1295_140_15_5,"
"2014-06-15,Meat (pork) - Retail,KG,""meat, fish and eggs"",53.11,UAH,Ukraine,,0,National Average,1295,140,15,5,2,1295_140_15_5,"
"2014-07-15,Meat (pork) - Retail,KG,""meat, fish and eggs"",54.5967,UAH,Ukraine,,0,National Average,1295,140,15,5,2,1295_140_15_5,"
"2014-08-15,Meat (pork) - Retail,KG,""meat, fish and eggs"",55.62,UAH,Ukraine,,0,National Average,1295,140,15,5,2,1295_140_15_5,"
"2014-09-15,Meat (pork) - Retail,KG,""meat, fish and eggs"",59.9933,UAH,Ukraine,,0,National Average,1295,140,15,5,2,1295_140_15_5,"
"2014-10-15,Meat (pork) - Retail,KG,""meat, fish and eggs"",61.2067,UAH,Ukraine,,0,National Average,1295,140,15,5,2,1295_140_15_5,"
"2014-11-15,Meat (pork) - Retail,KG,""meat, fish and eggs"",58.9533,UAH,Ukraine,,0,National Average,1295,140,15,5,2,1295_140_15_5,"
"2014-12-15,Meat (pork) - Retail,KG,""meat, fish and eggs"",59.39,UAH,Ukraine,,0,National Average,1295,140,15,5,2,1295_140_15_5,"
"2015-01-15,Meat (pork) - Retail,KG,""meat, fish and eggs"",58.9133,UAH,Ukraine,,0,National Average,1295,140,15,5,2,1295_140_15_5,"
"2015-02-15,Meat (pork) - Retail,KG,""meat, fish and eggs"",57.81,UAH,Ukraine,,0,National Average,1295,140,15,5,2,1295_140_15_5,"
"2015-03-15,Meat (pork) - Retail,KG,""meat, fish and eggs"",63.5033,UAH,Ukraine,,0,National Average,1295,140,15,5,2,1295_140_15_5,"
"2015-04-15,Meat (pork) - Retail,KG,""meat, fish and eggs"",67.36,UAH,Ukraine,,0,National Average,1295,140,15,5,2,1295_140_15_5,"
"2015-05-15,Meat (pork) - Retail,KG,""meat, fish and eggs"",69.16,UAH,Ukraine,,0,National Average,1295,140,15,5,2,1295_140_15_5,"
"2015-06-15,Meat (pork) - Retail,KG,""meat, fish and eggs"",69.9167,UAH,Ukraine,,0,National Average,1295,140,15,5,2,1295_140_15_5,"
"2015-07-15,Meat (pork) - Retail,KG,""meat, fish and eggs"",73.6633,UAH,Ukraine,,0,National Average,1295,140,15,5,2,1295_140_15_5,"
"2015-08-15,Meat (pork) - Retail,KG,""meat, fish and eggs"",78.2967,UAH,Ukraine,,0,National Average,1295,140,15,5,2,1295_140_15_5,"
"2015-09-15,Meat (pork) - Retail,KG,""meat, fish and eggs"",76.9067,UAH,Ukraine,,0,National Average,1295,140,15,5,2,1295_140_15_5,"
"2015-10-15,Meat (pork) - Retail,KG,""meat, fish and eggs"",73.03,UAH,Ukraine,,0,National Average,1295,140,15,5,2,1295_140_15_5,"
"2015-11-15,Meat (pork) - Retail,KG,""meat, fish and eggs"",70.9633,UAH,Ukraine,,0,National Average,1295,140,15,5,2,1295_140_15_5,"
"2015-12-15,Meat (pork) - Retail,KG,""meat, fish and eggs"",69.03,UAH,Ukraine,,0,National Average,1295,140,15,5,2,1295_140_15_5,"
"2016-01-15,Meat (pork) - Retail,KG,""meat, fish and eggs"",68.4,UAH,Ukraine,,0,National Average,1295,140,15,5,2,1295_140_15_5,"
"2016-02-15,Meat (pork) - Retail,KG,""meat, fish and eggs"",64.6833,UAH,Ukraine,,0,National Average,1295,140,15,5,2,1295_140_15_5,"
"2016-03-15,Meat (pork) - Retail,KG,""meat, fish and eggs"",63.9133,UAH,Ukraine,,0,National Average,1295,140,15,5,2,1295_140_15_5,"
"2016-04-15,Meat (pork) - Retail,KG,""meat, fish and eggs"",66.6967,UAH,Ukraine,,0,National Average,1295,140,15,5,2,1295_140_15_5,"
"2016-05-15,Meat (pork) - Retail,KG,""meat, fish and eggs"",67.94,UAH,Ukraine,,0,National Average,1295,140,15,5,2,1295_140_15_5,"
"2016-06-15,Meat (pork) - Retail,KG,""meat, fish and eggs"",66.09,UAH,Ukraine,,0,National Average,1295,140,15,5,2,1295_140_15_5,"
"2016-07-15,Meat (pork) - Retail,KG,""meat, fish and eggs"",67.8133,UAH,Ukraine,,0,National Average,1295,140,15,5,2,1295_140_15_5,"
"2016-08-15,Meat (pork) - Retail,KG,""meat, fish and eggs"",67.99,UAH,Ukraine,,0,National Average,1295,140,15,5,2,1295_140_15_5,"
"2016-09-15,Meat (pork) - Retail,KG,""meat, fish and eggs"",71.75,UAH,Ukraine,,0,National Average,1295,140,15,5,2,1295_140_15_5,"
"2016-10-15,Meat (pork) - Retail,KG,""meat, fish and eggs"",69.9733,UAH,Ukraine,,0,National Average,1295,140,15,5,2,1295_140_15_5,"
"2016-11-15,Meat (pork) - Retail,KG,""meat, fish and eggs"",69.2067,UAH,Ukraine,,0,National Average,1295,140,15,5,2,1295_140_15_5,"
"2016-12-15,Meat (pork) - Retail,KG,""meat, fish and eggs"",71.5733,UAH,Ukraine,,0,National Average,1295,140,15,5,2,1295_140_15_5,"
"2017-01-15,Meat (pork) - Retail,KG,""meat, fish and eggs"",71.6567,UAH,Ukraine,,0,National Average,1295,140,15,5,2,1295_140_15_5,"
"2017-02-15,Meat (pork) - Retail,KG,""meat, fish and eggs"",74.5033,UAH,Ukraine,,0,National Average,1295,140,15,5,2,1295_140_15_5,"
"2017-03-15,Meat (pork) - Retail,KG,""meat, fish and eggs"",74.3233,UAH,Ukraine,,0,National Average,1295,140,15,5,2,1295_140_15_5,"
"2017-04-15,Meat (pork) - Retail,KG,""meat, fish and eggs"",79.95,UAH,Ukraine,,0,National Average,1295,140,15,5,2,1295_140_15_5,"
"2017-05-15,Meat (pork) - Retail,KG,""meat, fish and eggs"",85.8,UAH,Ukraine,,0,National Average,1295,140,15,5,2,1295_140_15_5,"
"2017-06-15,Meat (pork) - Retail,KG,""meat, fish and eggs"",94.2967,UAH,Ukraine,,0,National Average,1295,140,15,5,2,1295_140_15_5,"
"2017-07-15,Meat (pork) - Retail,KG,""meat, fish and eggs"",98.1033,UAH,Ukraine,,0,National Average,1295,140,15,5,2,1295_140_15_5,"
"2017-09-15,Meat (pork) - Retail,KG,""meat, fish and eggs"",103.66,UAH,Ukraine,,0,National Average,1295,140,15,5,2,1295_140_15_5,"
"2017-10-15,Meat (pork) - Retail,KG,""meat, fish and eggs"",101.6933,UAH,Ukraine,,0,National Average,1295,140,15,5,2,1295_140_15_5,"
"2017-11-15,Meat (pork) - Retail,KG,""meat, fish and eggs"",99.1933,UAH,Ukraine,,0,National Average,1295,140,15,5,2,1295_140_15_5,"
"2017-12-15,Meat (pork) - Retail,KG,""meat, fish and eggs"",99.67,UAH,Ukraine,,0,National Average,1295,140,15,5,2,1295_140_15_5,"
"2014-03-15,Meat (beef) - Retail,KG,""meat, fish and eggs"",53.8333,UAH,Ukraine,,0,National Average,1295,141,15,5,2,1295_141_15_5,"
"2014-04-15,Meat (beef) - Retail,KG,""meat, fish and eggs"",55.0033,UAH,Ukraine,,0,National Average,1295,141,15,5,2,1295_141_15_5,"
"2014-05-15,Meat (beef) - Retail,KG,""meat, fish and eggs"",55.9067,UAH,Ukraine,,0,National Average,1295,141,15,5,2,1295_141_15_5,"
"2014-06-15,Meat (beef) - Retail,KG,""meat, fish and eggs"",57.8733,UAH,Ukraine,,0,National Average,1295,141,15,5,2,1295_141_15_5,"
"2014-07-15,Meat (beef) - Retail,KG,""meat, fish and eggs"",59.6067,UAH,Ukraine,,0,National Average,1295,141,15,5,2,1295_141_15_5,"
"2014-08-15,Meat (beef) - Retail,KG,""meat, fish and eggs"",60.9633,UAH,Ukraine,,0,National Average,1295,141,15,5,2,1295_141_15_5,"
"2014-09-15,Meat (beef) - Retail,KG,""meat, fish and eggs"",63.84,UAH,Ukraine,,0,National Average,1295,141,15,5,2,1295_141_15_5,"
"2014-10-15,Meat (beef) - Retail,KG,""meat, fish and eggs"",65.93,UAH,Ukraine,,0,National Average,1295,141,15,5,2,1295_141_15_5,"
"2014-11-15,Meat (beef) - Retail,KG,""meat, fish and eggs"",67.1467,UAH,Ukraine,,0,National Average,1295,141,15,5,2,1295_141_15_5,"
"2014-12-15,Meat (beef) - Retail,KG,""meat, fish and eggs"",69.91,UAH,Ukraine,,0,National Average,1295,141,15,5,2,1295_141_15_5,"
"2015-01-15,Meat (beef) - Retail,KG,""meat, fish and eggs"",70.9733,UAH,Ukraine,,0,National Average,1295,141,15,5,2,1295_141_15_5,"
"2015-02-15,Meat (beef) - Retail,KG,""meat, fish and eggs"",73.2933,UAH,Ukraine,,0,National Average,1295,141,15,5,2,1295_141_15_5,"
"2015-03-15,Meat (beef) - Retail,KG,""meat, fish and eggs"",76.75,UAH,Ukraine,,0,National Average,1295,141,15,5,2,1295_141_15_5,"
"2015-04-15,Meat (beef) - Retail,KG,""meat, fish and eggs"",78.7,UAH,Ukraine,,0,National Average,1295,141,15,5,2,1295_141_15_5,"
"2015-05-15,Meat (beef) - Retail,KG,""meat, fish and eggs"",79.2767,UAH,Ukraine,,0,National Average,1295,141,15,5,2,1295_141_15_5,"
"2015-06-15,Meat (beef) - Retail,KG,""meat, fish and eggs"",79.85,UAH,Ukraine,,0,National Average,1295,141,15,5,2,1295_141_15_5,"
"2015-07-15,Meat (beef) - Retail,KG,""meat, fish and eggs"",81.1933,UAH,Ukraine,,0,National Average,1295,141,15,5,2,1295_141_15_5,"
"2015-08-15,Meat (beef) - Retail,KG,""meat, fish and eggs"",84.1867,UAH,Ukraine,,0,National Average,1295,141,15,5,2,1295_141_15_5,"
"2015-09-15,Meat (beef) - Retail,KG,""meat, fish and eggs"",84.52,UAH,Ukraine,,0,National Average,1295,141,15,5,2,1295_141_15_5,"
"2015-10-15,Meat (beef) - Retail,KG,""meat, fish and eggs"",83.8933,UAH,Ukraine,,0,National Average,1295,141,15,5,2,1295_141_15_5,"
"2015-11-15,Meat (beef) - Retail,KG,""meat, fish and eggs"",83.5767,UAH,Ukraine,,0,National Average,1295,141,15,5,2,1295_141_15_5,"
"2015-12-15,Meat (beef) - Retail,KG,""meat, fish and eggs"",83.9433,UAH,Ukraine,,0,National Average,1295,141,15,5,2,1295_141_15_5,"
"2016-01-15,Meat (beef) - Retail,KG,""meat, fish and eggs"",83.3933,UAH,Ukraine,,0,National Average,1295,141,15,5,2,1295_141_15_5,"
"2016-02-15,Meat (beef) - Retail,KG,""meat, fish and eggs"",82.64,UAH,Ukraine,,0,National Average,1295,141,15,5,2,1295_141_15_5,"
"2016-03-15,Meat (beef) - Retail,KG,""meat, fish and eggs"",82.3,UAH,Ukraine,,0,National Average,1295,141,15,5,2,1295_141_15_5,"
"2016-04-15,Meat (beef) - Retail,KG,""meat, fish and eggs"",82.36,UAH,Ukraine,,0,National Average,1295,141,15,5,2,1295_141_15_5,"
"2016-05-15,Meat (beef) - Retail,KG,""meat, fish and eggs"",82.4533,UAH,Ukraine,,0,National Average,1295,141,15,5,2,1295_141_15_5,"
"2016-06-15,Meat (beef) - Retail,KG,""meat, fish and eggs"",81.34,UAH,Ukraine,,0,National Average,1295,141,15,5,2,1295_141_15_5,"
"2016-07-15,Meat (beef) - Retail,KG,""meat, fish and eggs"",81.22,UAH,Ukraine,,0,National Average,1295,141,15,5,2,1295_141_15_5,"
"2016-08-15,Meat (beef) - Retail,KG,""meat, fish and eggs"",81.86,UAH,Ukraine,,0,National Average,1295,141,15,5,2,1295_141_15_5,"
"2016-09-15,Meat (beef) - Retail,KG,""meat, fish and eggs"",82.7533,UAH,Ukraine,,0,National Average,1295,141,15,5,2,1295_141_15_5,"
"2016-10-15,Meat (beef) - Retail,KG,""meat, fish and eggs"",83.5867,UAH,Ukraine,,0,National Average,1295,141,15,5,2,1295_141_15_5,"
"2016-11-15,Meat (beef) - Retail,KG,""meat, fish and eggs"",83.8033,UAH,Ukraine,,0,National Average,1295,141,15,5,2,1295_141_15_5,"
"2016-12-15,Meat (beef) - Retail,KG,""meat, fish and eggs"",85.48,UAH,Ukraine,,0,National Average,1295,141,15,5,2,1295_141_15_5,"
"2017-01-15,Meat (beef) - Retail,KG,""meat, fish and eggs"",89.6667,UAH,Ukraine,,0,National Average,1295,141,15,5,2,1295_141_15_5,"
"2017-02-15,Meat (beef) - Retail,KG,""meat, fish and eggs"",94.5167,UAH,Ukraine,,0,National Average,1295,141,15,5,2,1295_141_15_5,"
"2017-03-15,Meat (beef) - Retail,KG,""meat, fish and eggs"",95.86,UAH,Ukraine,,0,National Average,1295,141,15,5,2,1295_141_15_5,"
"2017-04-15,Meat (beef) - Retail,KG,""meat, fish and eggs"",98.1733,UAH,Ukraine,,0,National Average,1295,141,15,5,2,1295_141_15_5,"
"2017-05-15,Meat (beef) - Retail,KG,""meat, fish and eggs"",99.0367,UAH,Ukraine,,0,National Average,1295,141,15,5,2,1295_141_15_5,"
"2017-06-15,Meat (beef) - Retail,KG,""meat, fish and eggs"",103.0333,UAH,Ukraine,,0,National Average,1295,141,15,5,2,1295_141_15_5,"
"2017-07-15,Meat (beef) - Retail,KG,""meat, fish and eggs"",105.7167,UAH,Ukraine,,0,National Average,1295,141,15,5,2,1295_141_15_5,"
"2017-09-15,Meat (beef) - Retail,KG,""meat, fish and eggs"",110.6667,UAH,Ukraine,,0,National Average,1295,141,15,5,2,1295_141_15_5,"
"2017-10-15,Meat (beef) - Retail,KG,""meat, fish and eggs"",111.6133,UAH,Ukraine,,0,National Average,1295,141,15,5,2,1295_141_15_5,"
"2017-11-15,Meat (beef) - Retail,KG,""meat, fish and eggs"",112.7,UAH,Ukraine,,0,National Average,1295,141,15,5,2,1295_141_15_5,"
"2017-12-15,Meat (beef) - Retail,KG,""meat, fish and eggs"",114.16,UAH,Ukraine,,0,National Average,1295,141,15,5,2,1295_141_15_5,"
2014-03-15,Carrots - Retail,KG,vegetables and fruits,3.7867,UAH,Ukraine,,0,National Average,1295,166,15,5,4,1295_166_15_5,
2014-04-15,Carrots - Retail,KG,vegetables and fruits,5.1633,UAH,Ukraine,,0,National Average,1295,166,15,5,4,1295_166_15_5,
2014-05-15,Carrots - Retail,KG,vegetables and fruits,6.47,UAH,Ukraine,,0,National Average,1295,166,15,5,4,1295_166_15_5,
2014-06-15,Carrots - Retail,KG,vegetables and fruits,8.1133,UAH,Ukraine,,0,National Average,1295,166,15,5,4,1295_166_15_5,
2014-07-15,Carrots - Retail,KG,vegetables and fruits,4.3833,UAH,Ukraine,,0,National Average,1295,166,15,5,4,1295_166_15_5,
2014-08-15,Carrots - Retail,KG,vegetables and fruits,2.6733,UAH,Ukraine,,0,National Average,1295,166,15,5,4,1295_166_15_5,
2014-09-15,Carrots - Retail,KG,vegetables and fruits,2.4433,UAH,Ukraine,,0,National Average,1295,166,15,5,4,1295_166_15_5,
2014-10-15,Carrots - Retail,KG,vegetables and fruits,2.4533,UAH,Ukraine,,0,National Average,1295,166,15,5,4,1295_166_15_5,
2014-11-15,Carrots - Retail,KG,vegetables and fruits,2.43,UAH,Ukraine,,0,National Average,1295,166,15,5,4,1295_166_15_5,
2014-12-15,Carrots - Retail,KG,vegetables and fruits,2.8,UAH,Ukraine,,0,National Average,1295,166,15,5,4,1295_166_15_5,
2015-01-15,Carrots - Retail,KG,vegetables and fruits,3.51,UAH,Ukraine,,0,National Average,1295,166,15,5,4,1295_166_15_5,
2015-02-15,Carrots - Retail,KG,vegetables and fruits,4.5133,UAH,Ukraine,,0,National Average,1295,166,15,5,4,1295_166_15_5,
2015-03-15,Carrots - Retail,KG,vegetables and fruits,6.1467,UAH,Ukraine,,0,National Average,1295,166,15,5,4,1295_166_15_5,
2015-04-15,Carrots - Retail,KG,vegetables and fruits,9.4867,UAH,Ukraine,,0,National Average,1295,166,15,5,4,1295_166_15_5,
2015-05-15,Carrots - Retail,KG,vegetables and fruits,16.2933,UAH,Ukraine,,0,National Average,1295,166,15,5,4,1295_166_15_5,
2015-06-15,Carrots - Retail,KG,vegetables and fruits,23.18,UAH,Ukraine,,0,National Average,1295,166,15,5,4,1295_166_15_5,
2015-07-15,Carrots - Retail,KG,vegetables and fruits,16.3467,UAH,Ukraine,,0,National Average,1295,166,15,5,4,1295_166_15_5,
2015-08-15,Carrots - Retail,KG,vegetables and fruits,8.2633,UAH,Ukraine,,0,National Average,1295,166,15,5,4,1295_166_15_5,
2015-09-15,Carrots - Retail,KG,vegetables and fruits,7.82,UAH,Ukraine,,0,National Average,1295,166,15,5,4,1295_166_15_5,
2015-10-15,Carrots - Retail,KG,vegetables and fruits,9.38,UAH,Ukraine,,0,National Average,1295,166,15,5,4,1295_166_15_5,
2015-11-15,Carrots - Retail,KG,vegetables and fruits,10.7233,UAH,Ukraine,,0,National Average,1295,166,15,5,4,1295_166_15_5,
2015-12-15,Carrots - Retail,KG,vegetables and fruits,10.26,UAH,Ukraine,,0,National Average,1295,166,15,5,4,1295_166_15_5,
2016-01-15,Carrots - Retail,KG,vegetables and fruits,11.2133,UAH,Ukraine,,0,National Average,1295,166,15,5,4,1295_166_15_5,
2016-02-15,Carrots - Retail,KG,vegetables and fruits,11.6667,UAH,Ukraine,,0,National Average,1295,166,15,5,4,1295_166_15_5,
2016-03-15,Carrots - Retail,KG,vegetables and fruits,11.09,UAH,Ukraine,,0,National Average,1295,166,15,5,4,1295_166_15_5,
2016-04-15,Carrots - Retail,KG,vegetables and fruits,11.06,UAH,Ukraine,,0,National Average,1295,166,15,5,4,1295_166_15_5,
2016-05-15,Carrots - Retail,KG,vegetables and fruits,13.5333,UAH,Ukraine,,0,National Average,1295,166,15,5,4,1295_166_15_5,
2016-06-15,Carrots - Retail,KG,vegetables and fruits,10.7367,UAH,Ukraine,,0,National Average,1295,166,15,5,4,1295_166_15_5,
2016-07-15,Carrots - Retail,KG,vegetables and fruits,6.07,UAH,Ukraine,,0,National Average,1295,166,15,5,4,1295_166_15_5,
2016-08-15,Carrots - Retail,KG,vegetables and fruits,4.74,UAH,Ukraine,,0,National Average,1295,166,15,5,4,1295_166_15_5,
2016-09-15,Carrots - Retail,KG,vegetables and fruits,4.2133,UAH,Ukraine,,0,National Average,1295,166,15,5,4,1295_166_15_5,
2016-10-15,Carrots - Retail,KG,vegetables and fruits,4.2367,UAH,Ukraine,,0,National Average,1295,166,15,5,4,1295_166_15_5,
2016-11-15,Carrots - Retail,KG,vegetables and fruits,3.9167,UAH,Ukraine,,0,National Average,1295,166,15,5,4,1295_166_15_5,
2016-12-15,Carrots - Retail,KG,vegetables and fruits,4.0067,UAH,Ukraine,,0,National Average,1295,166,15,5,4,1295_166_15_5,
2017-01-15,Carrots - Retail,KG,vegetables and fruits,4.3833,UAH,Ukraine,,0,National Average,1295,166,15,5,4,1295_166_15_5,
2017-02-15,Carrots - Retail,KG,vegetables and fruits,4.5967,UAH,Ukraine,,0,National Average,1295,166,15,5,4,1295_166_15_5,
2017-03-15,Carrots - Retail,KG,vegetables and fruits,4.51,UAH,Ukraine,,0,National Average,1295,166,15,5,4,1295_166_15_5,
2017-04-15,Carrots - Retail,KG,vegetables and fruits,6.71,UAH,Ukraine,,0,National Average,1295,166,15,5,4,1295_166_15_5,
2017-05-15,Carrots - Retail,KG,vegetables and fruits,11.8967,UAH,Ukraine,,0,National Average,1295,166,15,5,4,1295_166_15_5,
2017-06-15,Carrots - Retail,KG,vegetables and fruits,14.08,UAH,Ukraine,,0,National Average,1295,166,15,5,4,1295_166_15_5,
2017-07-15,Carrots - Retail,KG,vegetables and fruits,12.91,UAH,Ukraine,,0,National Average,1295,166,15,5,4,1295_166_15_5,
2017-09-15,Carrots - Retail,KG,vegetables and fruits,7.94,UAH,Ukraine,,0,National Average,1295,166,15,5,4,1295_166_15_5,
2017-10-15,Carrots - Retail,KG,vegetables and fruits,7.0033,UAH,Ukraine,,0,National Average,1295,166,15,5,4,1295_166_15_5,
2017-11-15,Carrots - Retail,KG,vegetables and fruits,6.4033,UAH,Ukraine,,0,National Average,1295,166,15,5,4,1295_166_15_5,
2017-12-15,Carrots - Retail,KG,vegetables and fruits,6.4067,UAH,Ukraine,,0,National Average,1295,166,15,5,4,1295_166_15_5,
2014-03-15,Onions - Retail,KG,vegetables and fruits,7.8033,UAH,Ukraine,,0,National Average,1295,173,15,5,4,1295_173_15_5,
2014-04-15,Onions - Retail,KG,vegetables and fruits,11.06,UAH,Ukraine,,0,National Average,1295,173,15,5,4,1295_173_15_5,
2014-05-15,Onions - Retail,KG,vegetables and fruits,12.41,UAH,Ukraine,,0,National Average,1295,173,15,5,4,1295_173_15_5,
2014-06-15,Onions - Retail,KG,vegetables and fruits,11.2867,UAH,Ukraine,,0,National Average,1295,173,15,5,4,1295_173_15_5,
2014-07-15,Onions - Retail,KG,vegetables and fruits,4.6533,UAH,Ukraine,,0,National Average,1295,173,15,5,4,1295_173_15_5,
2014-08-15,Onions - Retail,KG,vegetables and fruits,2.8467,UAH,Ukraine,,0,National Average,1295,173,15,5,4,1295_173_15_5,
2014-09-15,Onions - Retail,KG,vegetables and fruits,2.82,UAH,Ukraine,,0,National Average,1295,173,15,5,4,1295_173_15_5,
2014-10-15,Onions - Retail,KG,vegetables and fruits,2.6633,UAH,Ukraine,,0,National Average,1295,173,15,5,4,1295_173_15_5,
2014-11-15,Onions - Retail,KG,vegetables and fruits,2.7267,UAH,Ukraine,,0,National Average,1295,173,15,5,4,1295_173_15_5,
2014-12-15,Onions - Retail,KG,vegetables and fruits,3.0633,UAH,Ukraine,,0,National Average,1295,173,15,5,4,1295_173_15_5,
2015-01-15,Onions - Retail,KG,vegetables and fruits,3.66,UAH,Ukraine,,0,National Average,1295,173,15,5,4,1295_173_15_5,
2015-02-15,Onions - Retail,KG,vegetables and fruits,5.3267,UAH,Ukraine,,0,National Average,1295,173,15,5,4,1295_173_15_5,
2015-03-15,Onions - Retail,KG,vegetables and fruits,6.35,UAH,Ukraine,,0,National Average,1295,173,15,5,4,1295_173_15_5,
2015-04-15,Onions - Retail,KG,vegetables and fruits,6.6633,UAH,Ukraine,,0,National Average,1295,173,15,5,4,1295_173_15_5,
2015-05-15,Onions - Retail,KG,vegetables and fruits,9.4767,UAH,Ukraine,,0,National Average,1295,173,15,5,4,1295_173_15_5,
2015-06-15,Onions - Retail,KG,vegetables and fruits,9.4533,UAH,Ukraine,,0,National Average,1295,173,15,5,4,1295_173_15_5,
2015-07-15,Onions - Retail,KG,vegetables and fruits,7.0067,UAH,Ukraine,,0,National Average,1295,173,15,5,4,1295_173_15_5,
2015-08-15,Onions - Retail,KG,vegetables and fruits,6.03,UAH,Ukraine,,0,National Average,1295,173,15,5,4,1295_173_15_5,
2015-09-15,Onions - Retail,KG,vegetables and fruits,6.02,UAH,Ukraine,,0,National Average,1295,173,15,5,4,1295_173_15_5,
2015-10-15,Onions - Retail,KG,vegetables and fruits,9.83,UAH,Ukraine,,0,National Average,1295,173,15,5,4,1295_173_15_5,
2015-11-15,Onions - Retail,KG,vegetables and fruits,11.1167,UAH,Ukraine,,0,National Average,1295,173,15,5,4,1295_173_15_5,
2015-12-15,Onions - Retail,KG,vegetables and fruits,10.01,UAH,Ukraine,,0,National Average,1295,173,15,5,4,1295_173_15_5,
2016-01-15,Onions - Retail,KG,vegetables and fruits,9.9567,UAH,Ukraine,,0,National Average,1295,173,15,5,4,1295_173_15_5,
2016-02-15,Onions - Retail,KG,vegetables and fruits,9.3433,UAH,Ukraine,,0,National Average,1295,173,15,5,4,1295_173_15_5,
2016-03-15,Onions - Retail,KG,vegetables and fruits,8.58,UAH,Ukraine,,0,National Average,1295,173,15,5,4,1295_173_15_5,
2016-04-15,Onions - Retail,KG,vegetables and fruits,7.8633,UAH,Ukraine,,0,National Average,1295,173,15,5,4,1295_173_15_5,
2016-05-15,Onions - Retail,KG,vegetables and fruits,8.3333,UAH,Ukraine,,0,National Average,1295,173,15,5,4,1295_173_15_5,
2016-06-15,Onions - Retail,KG,vegetables and fruits,8.0,UAH,Ukraine,,0,National Average,1295,173,15,5,4,1295_173_15_5,
2016-07-15,Onions - Retail,KG,vegetables and fruits,5.3467,UAH,Ukraine,,0,National Average,1295,173,15,5,4,1295_173_15_5,
2016-08-15,Onions - Retail,KG,vegetables and fruits,4.68,UAH,Ukraine,,0,National Average,1295,173,15,5,4,1295_173_15_5,
2016-09-15,Onions - Retail,KG,vegetables and fruits,4.8467,UAH,Ukraine,,0,National Average,1295,173,15,5,4,1295_173_15_5,
2016-10-15,Onions - Retail,KG,vegetables and fruits,4.4967,UAH,Ukraine,,0,National Average,1295,173,15,5,4,1295_173_15_5,
2016-11-15,Onions - Retail,KG,vegetables and fruits,4.2533,UAH,Ukraine,,0,National Average,1295,173,15,5,4,1295_173_15_5,
2016-12-15,Onions - Retail,KG,vegetables and fruits,4.3233,UAH,Ukraine,,0,National Average,1295,173,15,5,4,1295_173_15_5,
2017-01-15,Onions - Retail,KG,vegetables and fruits,4.5967,UAH,Ukraine,,0,National Average,1295,173,15,5,4,1295_173_15_5,
2017-02-15,Onions - Retail,KG,vegetables and fruits,4.3533,UAH,Ukraine,,0,National Average,1295,173,15,5,4,1295_173_15_5,
2017-03-15,Onions - Retail,KG,vegetables and fruits,3.8733,UAH,Ukraine,,0,National Average,1295,173,15,5,4,1295_173_15_5,
2017-04-15,Onions - Retail,KG,vegetables and fruits,4.7267,UAH,Ukraine,,0,National Average,1295,173,15,5,4,1295_173_15_5,
2017-05-15,Onions - Retail,KG,vegetables and fruits,8.2267,UAH,Ukraine,,0,National Average,1295,173,15,5,4,1295_173_15_5,
2017-06-15,Onions - Retail,KG,vegetables and fruits,11.73,UAH,Ukraine,,0,National Average,1295,173,15,5,4,1295_173_15_5,
2017-07-15,Onions - Retail,KG,vegetables and fruits,11.1267,UAH,Ukraine,,0,National Average,1295,173,15,5,4,1295_173_15_5,
2017-09-15,Onions - Retail,KG,vegetables and fruits,6.3733,UAH,Ukraine,,0,National Average,1295,173,15,5,4,1295_173_15_5,
2017-10-15,Onions - Retail,KG,vegetables and fruits,5.4233,UAH,Ukraine,,0,National Average,1295,173,15,5,4,1295_173_15_5,
2017-11-15,Onions - Retail,KG,vegetables and fruits,5.1233,UAH,Ukraine,,0,National Average,1295,173,15,5,4,1295_173_15_5,
2017-12-15,Onions - Retail,KG,vegetables and fruits,5.2367,UAH,Ukraine,,0,National Average,1295,173,15,5,4,1295_173_15_5,
2014-03-15,Wheat flour (first grade) - Retail,KG,cereals and tubers,4.4867,UAH,Ukraine,,0,National Average,1295,177,15,5,1,1295_177_15_5,
2014-04-15,Wheat flour (first grade) - Retail,KG,cereals and tubers,4.7233,UAH,Ukraine,,0,National Average,1295,177,15,5,1,1295_177_15_5,
2014-05-15,Wheat flour (first grade) - Retail,KG,cereals and tubers,5.1433,UAH,Ukraine,,0,National Average,1295,177,15,5,1,1295_177_15_5,
2014-06-15,Wheat flour (first grade) - Retail,KG,cereals and tubers,5.4233,UAH,Ukraine,,0,National Average,1295,177,15,5,1,1295_177_15_5,
2014-07-15,Wheat flour (first grade) - Retail,KG,cereals and tubers,5.53,UAH,Ukraine,,0,National Average,1295,177,15,5,1,1295_177_15_5,
2014-08-15,Wheat flour (first grade) - Retail,KG,cereals and tubers,5.61,UAH,Ukraine,,0,National Average,1295,177,15,5,1,1295_177_15_5,
2014-09-15,Wheat flour (first grade) - Retail,KG,cereals and tubers,5.5967,UAH,Ukraine,,0,National Average,1295,177,15,5,1,1295_177_15_5,
2014-10-15,Wheat flour (first grade) - Retail,KG,cereals and tubers,5.6767,UAH,Ukraine,,0,National Average,1295,177,15,5,1,1295_177_15_5,
2014-11-15,Wheat flour (first grade) - Retail,KG,cereals and tubers,5.7567,UAH,Ukraine,,0,National Average,1295,177,15,5,1,1295_177_15_5,
2014-12-15,Wheat flour (first grade) - Retail,KG,cereals and tubers,5.8933,UAH,Ukraine,,0,National Average,1295,177,15,5,1,1295_177_15_5,
2015-01-15,Wheat flour (first grade) - Retail,KG,cereals and tubers,6.3133,UAH,Ukraine,,0,National Average,1295,177,15,5,1,1295_177_15_5,
2015-02-15,Wheat flour (first grade) - Retail,KG,cereals and tubers,7.19,UAH,Ukraine,,0,National Average,1295,177,15,5,1,1295_177_15_5,
2015-03-15,Wheat flour (first grade) - Retail,KG,cereals and tubers,10.7267,UAH,Ukraine,,0,National Average,1295,177,15,5,1,1295_177_15_5,
2015-04-15,Wheat flour (first grade) - Retail,KG,cereals and tubers,10.7767,UAH,Ukraine,,0,National Average,1295,177,15,5,1,1295_177_15_5,
2015-05-15,Wheat flour (first grade) - Retail,KG,cereals and tubers,10.12,UAH,Ukraine,,0,National Average,1295,177,15,5,1,1295_177_15_5,
2015-06-15,Wheat flour (first grade) - Retail,KG,cereals and tubers,9.55,UAH,Ukraine,,0,National Average,1295,177,15,5,1,1295_177_15_5,
2015-07-15,Wheat flour (first grade) - Retail,KG,cereals and tubers,9.0567,UAH,Ukraine,,0,National Average,1295,177,15,5,1,1295_177_15_5,
2015-08-15,Wheat flour (first grade) - Retail,KG,cereals and tubers,8.8933,UAH,Ukraine,,0,National Average,1295,177,15,5,1,1295_177_15_5,
2015-09-15,Wheat flour (first grade) - Retail,KG,cereals and tubers,8.5667,UAH,Ukraine,,0,National Average,1295,177,15,5,1,1295_177_15_5,
2015-10-15,Wheat flour (first grade) - Retail,KG,cereals and tubers,8.34,UAH,Ukraine,,0,National Average,1295,177,15,5,1,1295_177_15_5,
2015-11-15,Wheat flour (first grade) - Retail,KG,cereals and tubers,8.39,UAH,Ukraine,,0,National Average,1295,177,15,5,1,1295_177_15_5,
2015-12-15,Wheat flour (first grade) - Retail,KG,cereals and tubers,8.64,UAH,Ukraine,,0,National Average,1295,177,15,5,1,1295_177_15_5,
2016-01-15,Wheat flour (first grade) - Retail,KG,cereals and tubers,8.6667,UAH,Ukraine,,0,National Average,1295,177,15,5,1,1295_177_15_5,
2016-02-15,Wheat flour (first grade) - Retail,KG,cereals and tubers,8.6333,UAH,Ukraine,,0,National Average,1295,177,15,5,1,1295_177_15_5,
2016-03-15,Wheat flour (first grade) - Retail,KG,cereals and tubers,8.6,UAH,Ukraine,,0,National Average,1295,177,15,5,1,1295_177_15_5,
2016-04-15,Wheat flour (first grade) - Retail,KG,cereals and tubers,8.57,UAH,Ukraine,,0,National Average,1295,177,15,5,1,1295_177_15_5,
2016-05-15,Wheat flour (first grade) - Retail,KG,cereals and tubers,8.5733,UAH,Ukraine,,0,National Average,1295,177,15,5,1,1295_177_15_5,
2016-06-15,Wheat flour (first grade) - Retail,KG,cereals and tubers,8.49,UAH,Ukraine,,0,National Average,1295,177,15,5,1,1295_177_15_5,
2016-07-15,Wheat flour (first grade) - Retail,KG,cereals and tubers,8.46,UAH,Ukraine,,0,National Average,1295,177,15,5,1,1295_177_15_5,
2016-08-15,Wheat flour (first grade) - Retail,KG,cereals and tubers,8.43,UAH,Ukraine,,0,National Average,1295,177,15,5,1,1295_177_15_5,
2016-09-15,Wheat flour (first grade) - Retail,KG,cereals and tubers,8.43,UAH,Ukraine,,0,National Average,1295,177,15,5,1,1295_177_15_5,
2016-10-15,Wheat flour (first grade) - Retail,KG,cereals and tubers,8.47,UAH,Ukraine,,0,National Average,1295,177,15,5,1,1295_177_15_5,
2016-11-15,Wheat flour (first grade) - Retail,KG,cereals and tubers,8.6033,UAH,Ukraine,,0,National Average,1295,177,15,5,1,1295_177_15_5,
2016-12-15,Wheat flour (first grade) - Retail,KG,cereals and tubers,8.73,UAH,Ukraine,,0,National Average,1295,177,15,5,1,1295_177_15_5,
2017-01-15,Wheat flour (first grade) - Retail,KG,cereals and tubers,8.8333,UAH,Ukraine,,0,National Average,1295,177,15,5,1,1295_177_15_5,
2017-02-15,Wheat flour (first grade) - Retail,KG,cereals and tubers,9.0767,UAH,Ukraine,,0,National Average,1295,177,15,5,1,1295_177_15_5,
2017-03-15,Wheat flour (first grade) - Retail,KG,cereals and tubers,9.3433,UAH,Ukraine,,0,National Average,1295,177,15,5,1,1295_177_15_5,
2017-04-15,Wheat flour (first grade) - Retail,KG,cereals and tubers,9.35,UAH,Ukraine,,0,National Average,1295,177,15,5,1,1295_177_15_5,
2017-05-15,Wheat flour (first grade) - Retail,KG,cereals and tubers,9.4567,UAH,Ukraine,,0,National Average,1295,177,15,5,1,1295_177_15_5,
2017-06-15,Wheat flour (first grade) - Retail,KG,cereals and tubers,9.4867,UAH,Ukraine,,0,National Average,1295,177,15,5,1,1295_177_15_5,
2017-07-15,Wheat flour (first grade) - Retail,KG,cereals and tubers,9.5233,UAH,Ukraine,,0,National Average,1295,177,15,5,1,1295_177_15_5,
2017-09-15,Wheat flour (first grade) - Retail,KG,cereals and tubers,9.6767,UAH,Ukraine,,0,National Average,1295,177,15,5,1,1295_177_15_5,
2017-10-15,Wheat flour (first grade) - Retail,KG,cereals and tubers,9.7333,UAH,Ukraine,,0,National Average,1295,177,15,5,1,1295_177_15_5,
2017-11-15,Wheat flour (first grade) - Retail,KG,cereals and tubers,9.8267,UAH,Ukraine,,0,National Average,1295,177,15,5,1,1295_177_15_5,
2017-12-15,Wheat flour (first grade) - Retail,KG,cereals and tubers,10.0567,UAH,Ukraine,,0,National Average,1295,177,15,5,1,1295_177_15_5,
2014-03-15,Cabbage - Retail,KG,vegetables and fruits,3.6267,UAH,Ukraine,,0,National Average,1295,181,15,5,4,1295_181_15_5,
2014-04-15,Cabbage - Retail,KG,vegetables and fruits,8.42,UAH,Ukraine,,0,National Average,1295,181,15,5,4,1295_181_15_5,
2014-05-15,Cabbage - Retail,KG,vegetables and fruits,8.95,UAH,Ukraine,,0,National Average,1295,181,15,5,4,1295_181_15_5,
2014-06-15,Cabbage - Retail,KG,vegetables and fruits,3.8367,UAH,Ukraine,,0,National Average,1295,181,15,5,4,1295_181_15_5,
2014-07-15,Cabbage - Retail,KG,vegetables and fruits,2.34,UAH,Ukraine,,0,National Average,1295,181,15,5,4,1295_181_15_5,
2014-08-15,Cabbage - Retail,KG,vegetables and fruits,1.8233,UAH,Ukraine,,0,National Average,1295,181,15,5,4,1295_181_15_5,
2014-09-15,Cabbage - Retail,KG,vegetables and fruits,1.9167,UAH,Ukraine,,0,National Average,1295,181,15,5,4,1295_181_15_5,
2014-10-15,Cabbage - Retail,KG,vegetables and fruits,1.9933,UAH,Ukraine,,0,National Average,1295,181,15,5,4,1295_181_15_5,
2014-11-15,Cabbage - Retail,KG,vegetables and fruits,1.9067,UAH,Ukraine,,0,National Average,1295,181,15,5,4,1295_181_15_5,
2014-12-15,Cabbage - Retail,KG,vegetables and fruits,2.62,UAH,Ukraine,,0,National Average,1295,181,15,5,4,1295_181_15_5,
2015-01-15,Cabbage - Retail,KG,vegetables and fruits,4.0567,UAH,Ukraine,,0,National Average,1295,181,15,5,4,1295_181_15_5,
2015-02-15,Cabbage - Retail,KG,vegetables and fruits,6.0633,UAH,Ukraine,,0,National Average,1295,181,15,5,4,1295_181_15_5,
2015-03-15,Cabbage - Retail,KG,vegetables and fruits,7.52,UAH,Ukraine,,0,National Average,1295,181,15,5,4,1295_181_15_5,
2015-04-15,Cabbage - Retail,KG,vegetables and fruits,9.7167,UAH,Ukraine,,0,National Average,1295,181,15,5,4,1295_181_15_5,
2015-05-15,Cabbage - Retail,KG,vegetables and fruits,12.9067,UAH,Ukraine,,0,National Average,1295,181,15,5,4,1295_181_15_5,
2015-06-15,Cabbage - Retail,KG,vegetables and fruits,6.3333,UAH,Ukraine,,0,National Average,1295,181,15,5,4,1295_181_15_5,
2015-07-15,Cabbage - Retail,KG,vegetables and fruits,4.3867,UAH,Ukraine,,0,National Average,1295,181,15,5,4,1295_181_15_5,
2015-08-15,Cabbage - Retail,KG,vegetables and fruits,6.21,UAH,Ukraine,,0,National Average,1295,181,15,5,4,1295_181_15_5,
2015-09-15,Cabbage - Retail,KG,vegetables and fruits,8.1433,UAH,Ukraine,,0,National Average,1295,181,15,5,4,1295_181_15_5,
2015-10-15,Cabbage - Retail,KG,vegetables and fruits,8.4333,UAH,Ukraine,,0,National Average,1295,181,15,5,4,1295_181_15_5,
2015-11-15,Cabbage - Retail,KG,vegetables and fruits,10.2567,UAH,Ukraine,,0,National Average,1295,181,15,5,4,1295_181_15_5,
2015-12-15,Cabbage - Retail,KG,vegetables and fruits,10.1367,UAH,Ukraine,,0,National Average,1295,181,15,5,4,1295_181_15_5,
2016-01-15,Cabbage - Retail,KG,vegetables and fruits,11.5567,UAH,Ukraine,,0,National Average,1295,181,15,5,4,1295_181_15_5,
2016-02-15,Cabbage - Retail,KG,vegetables and fruits,11.2767,UAH,Ukraine,,0,National Average,1295,181,15,5,4,1295_181_15_5,
2016-03-15,Cabbage - Retail,KG,vegetables and fruits,10.0167,UAH,Ukraine,,0,National Average,1295,181,15,5,4,1295_181_15_5,
2016-04-15,Cabbage - Retail,KG,vegetables and fruits,10.0267,UAH,Ukraine,,0,National Average,1295,181,15,5,4,1295_181_15_5,
2016-05-15,Cabbage - Retail,KG,vegetables and fruits,6.5467,UAH,Ukraine,,0,National Average,1295,181,15,5,4,1295_181_15_5,
2016-06-15,Cabbage - Retail,KG,vegetables and fruits,3.0167,UAH,Ukraine,,0,National Average,1295,181,15,5,4,1295_181_15_5,
2016-07-15,Cabbage - Retail,KG,vegetables and fruits,2.78,UAH,Ukraine,,0,National Average,1295,181,15,5,4,1295_181_15_5,
2016-08-15,Cabbage - Retail,KG,vegetables and fruits,2.85,UAH,Ukraine,,0,National Average,1295,181,15,5,4,1295_181_15_5,
2016-09-15,Cabbage - Retail,KG,vegetables and fruits,3.3533,UAH,Ukraine,,0,National Average,1295,181,15,5,4,1295_181_15_5,
2016-10-15,Cabbage - Retail,KG,vegetables and fruits,3.9667,UAH,Ukraine,,0,National Average,1295,181,15,5,4,1295_181_15_5,
2016-11-15,Cabbage - Retail,KG,vegetables and fruits,3.6467,UAH,Ukraine,,0,National Average,1295,181,15,5,4,1295_181_15_5,
2016-12-15,Cabbage - Retail,KG,vegetables and fruits,3.7333,UAH,Ukraine,,0,National Average,1295,181,15,5,4,1295_181_15_5,
2017-01-15,Cabbage - Retail,KG,vegetables and fruits,4.03,UAH,Ukraine,,0,National Average,1295,181,15,5,4,1295_181_15_5,
2017-02-15,Cabbage - Retail,KG,vegetables and fruits,4.2233,UAH,Ukraine,,0,National Average,1295,181,15,5,4,1295_181_15_5,
2017-03-15,Cabbage - Retail,KG,vegetables and fruits,4.0633,UAH,Ukraine,,0,National Average,1295,181,15,5,4,1295_181_15_5,
2017-04-15,Cabbage - Retail,KG,vegetables and fruits,6.0267,UAH,Ukraine,,0,National Average,1295,181,15,5,4,1295_181_15_5,
2017-05-15,Cabbage - Retail,KG,vegetables and fruits,10.1433,UAH,Ukraine,,0,National Average,1295,181,15,5,4,1295_181_15_5,
2017-06-15,Cabbage - Retail,KG,vegetables and fruits,15.59,UAH,Ukraine,,0,National Average,1295,181,15,5,4,1295_181_15_5,
2017-07-15,Cabbage - Retail,KG,vegetables and fruits,12.5967,UAH,Ukraine,,0,National Average,1295,181,15,5,4,1295_181_15_5,
2017-09-15,Cabbage - Retail,KG,vegetables and fruits,5.77,UAH,Ukraine,,0,National Average,1295,181,15,5,4,1295_181_15_5,
2017-10-15,Cabbage - Retail,KG,vegetables and fruits,4.85,UAH,Ukraine,,0,National Average,1295,181,15,5,4,1295_181_15_5,
2017-11-15,Cabbage - Retail,KG,vegetables and fruits,4.21,UAH,Ukraine,,0,National Average,1295,181,15,5,4,1295_181_15_5,
2017-12-15,Cabbage - Retail,KG,vegetables and fruits,4.33,UAH,Ukraine,,0,National Average,1295,181,15,5,4,1295_181_15_5,
2014-03-15,Oil (sunflower) - Retail,L,oil and fats,13.29,UAH,Ukraine,,0,National Average,1295,184,15,15,6,1295_184_15_15,
2014-04-15,Oil (sunflower) - Retail,L,oil and fats,13.63,UAH,Ukraine,,0,National Average,1295,184,15,15,6,1295_184_15_15,
2014-05-15,Oil (sunflower) - Retail,L,oil and fats,14.2033,UAH,Ukraine,,0,National Average,1295,184,15,15,6,1295_184_15_15,
2014-06-15,Oil (sunflower) - Retail,L,oil and fats,14.7133,UAH,Ukraine,,0,National Average,1295,184,15,15,6,1295_184_15_15,
2014-07-15,Oil (sunflower) - Retail,L,oil and fats,15.3167,UAH,Ukraine,,0,National Average,1295,184,15,15,6,1295_184_15_15,
2014-08-15,Oil (sunflower) - Retail,L,oil and fats,15.85,UAH,Ukraine,,0,National Average,1295,184,15,15,6,1295_184_15_15,
2014-09-15,Oil (sunflower) - Retail,L,oil and fats,16.0767,UAH,Ukraine,,0,National Average,1295,184,15,15,6,1295_184_15_15,
2014-10-15,Oil (sunflower) - Retail,L,oil and fats,16.5267,UAH,Ukraine,,0,National Average,1295,184,15,15,6,1295_184_15_15,
2014-11-15,Oil (sunflower) - Retail,L,oil and fats,16.8767,UAH,Ukraine,,0,National Average,1295,184,15,15,6,1295_184_15_15,
2014-12-15,Oil (sunflower) - Retail,L,oil and fats,18.08,UAH,Ukraine,,0,National Average,1295,184,15,15,6,1295_184_15_15,
2015-01-15,Oil (sunflower) - Retail,L,oil and fats,19.3633,UAH,Ukraine,,0,National Average,1295,184,15,15,6,1295_184_15_15,
2015-02-15,Oil (sunflower) - Retail,L,oil and fats,21.7167,UAH,Ukraine,,0,National Average,1295,184,15,15,6,1295_184_15_15,
2015-03-15,Oil (sunflower) - Retail,L,oil and fats,27.9333,UAH,Ukraine,,0,National Average,1295,184,15,15,6,1295_184_15_15,
2015-04-15,Oil (sunflower) - Retail,L,oil and fats,29.8833,UAH,Ukraine,,0,National Average,1295,184,15,15,6,1295_184_15_15,
2015-05-15,Oil (sunflower) - Retail,L,oil and fats,30.0033,UAH,Ukraine,,0,National Average,1295,184,15,15,6,1295_184_15_15,
2015-06-15,Oil (sunflower) - Retail,L,oil and fats,29.7633,UAH,Ukraine,,0,National Average,1295,184,15,15,6,1295_184_15_15,
2015-07-15,Oil (sunflower) - Retail,L,oil and fats,29.5367,UAH,Ukraine,,0,National Average,1295,184,15,15,6,1295_184_15_15,
2015-08-15,Oil (sunflower) - Retail,L,oil and fats,29.4,UAH,Ukraine,,0,National Average,1295,184,15,15,6,1295_184_15_15,
2015-09-15,Oil (sunflower) - Retail,L,oil and fats,28.93,UAH,Ukraine,,0,National Average,1295,184,15,15,6,1295_184_15_15,
2015-10-15,Oil (sunflower) - Retail,L,oil and fats,28.3267,UAH,Ukraine,,0,National Average,1295,184,15,15,6,1295_184_15_15,
2015-11-15,Oil (sunflower) - Retail,L,oil and fats,28.4767,UAH,Ukraine,,0,National Average,1295,184,15,15,6,1295_184_15_15,
2015-12-15,Oil (sunflower) - Retail,L,oil and fats,29.27,UAH,Ukraine,,0,National Average,1295,184,15,15,6,1295_184_15_15,
2016-01-15,Oil (sunflower) - Retail,L,oil and fats,29.9733,UAH,Ukraine,,0,National Average,1295,184,15,15,6,1295_184_15_15,
2016-02-15,Oil (sunflower) - Retail,L,oil and fats,30.2033,UAH,Ukraine,,0,National Average,1295,184,15,15,6,1295_184_15_15,
2016-03-15,Oil (sunflower) - Retail,L,oil and fats,30.4633,UAH,Ukraine,,0,National Average,1295,184,15,15,6,1295_184_15_15,
2016-04-15,Oil (sunflower) - Retail,L,oil and fats,30.8133,UAH,Ukraine,,0,National Average,1295,184,15,15,6,1295_184_15_15,
2016-05-15,Oil (sunflower) - Retail,L,oil and fats,31.23,UAH,Ukraine,,0,National Average,1295,184,15,15,6,1295_184_15_15,
2016-06-15,Oil (sunflower) - Retail,L,oil and fats,31.51,UAH,Ukraine,,0,National Average,1295,184,15,15,6,1295_184_15_15,
2016-07-15,Oil (sunflower) - Retail,L,oil and fats,31.7867,UAH,Ukraine,,0,National Average,1295,184,15,15,6,1295_184_15_15,
2016-08-15,Oil (sunflower) - Retail,L,oil and fats,31.54,UAH,Ukraine,,0,National Average,1295,184,15,15,6,1295_184_15_15,
2016-09-15,Oil (sunflower) - Retail,L,oil and fats,32.27,UAH,Ukraine,,0,National Average,1295,184,15,15,6,1295_184_15_15,
2016-10-15,Oil (sunflower) - Retail,L,oil and fats,32.2467,UAH,Ukraine,,0,National Average,1295,184,15,15,6,1295_184_15_15,
2016-11-15,Oil (sunflower) - Retail,L,oil and fats,32.41,UAH,Ukraine,,0,National Average,1295,184,15,15,6,1295_184_15_15,
2016-12-15,Oil (sunflower) - Retail,L,oil and fats,32.2067,UAH,Ukraine,,0,National Average,1295,184,15,15,6,1295_184_15_15,
2017-01-15,Oil (sunflower) - Retail,L,oil and fats,32.42,UAH,Ukraine,,0,National Average,1295,184,15,15,6,1295_184_15_15,
2017-02-15,Oil (sunflower) - Retail,L,oil and fats,32.7133,UAH,Ukraine,,0,National Average,1295,184,15,15,6,1295_184_15_15,
2017-03-15,Oil (sunflower) - Retail,L,oil and fats,32.65,UAH,Ukraine,,0,National Average,1295,184,15,15,6,1295_184_15_15,
2017-04-15,Oil (sunflower) - Retail,L,oil and fats,32.9367,UAH,Ukraine,,0,National Average,1295,184,15,15,6,1295_184_15_15,
2017-05-15,Oil (sunflower) - Retail,L,oil and fats,32.9933,UAH,Ukraine,,0,National Average,1295,184,15,15,6,1295_184_15_15,
2017-06-15,Oil (sunflower) - Retail,L,oil and fats,33.01,UAH,Ukraine,,0,National Average,1295,184,15,15,6,1295_184_15_15,
2017-07-15,Oil (sunflower) - Retail,L,oil and fats,32.78,UAH,Ukraine,,0,National Average,1295,184,15,15,6,1295_184_15_15,
2017-09-15,Oil (sunflower) - Retail,L,oil and fats,32.6833,UAH,Ukraine,,0,National Average,1295,184,15,15,6,1295_184_15_15,
2017-10-15,Oil (sunflower) - Retail,L,oil and fats,32.9433,UAH,Ukraine,,0,National Average,1295,184,15,15,6,1295_184_15_15,
2017-11-15,Oil (sunflower) - Retail,L,oil and fats,33.2033,UAH,Ukraine,,0,National Average,1295,184,15,15,6,1295_184_15_15,
2017-12-15,Oil (sunflower) - Retail,L,oil and fats,33.1567,UAH,Ukraine,,0,National Average,1295,184,15,15,6,1295_184_15_15,
2014-03-15,Fuel (diesel) - Retail,L,non-food,11.5933,UAH,Ukraine,,0,National Average,1295,284,15,15,8,1295_284_15_15,
2014-04-15,Fuel (diesel) - Retail,L,non-food,14.3567,UAH,Ukraine,,0,National Average,1295,284,15,15,8,1295_284_15_15,
2014-05-15,Fuel (diesel) - Retail,L,non-food,14.7533,UAH,Ukraine,,0,National Average,1295,284,15,15,8,1295_284_15_15,
2014-06-15,Fuel (diesel) - Retail,L,non-food,14.7333,UAH,Ukraine,,0,National Average,1295,284,15,15,8,1295_284_15_15,
2014-07-15,Fuel (diesel) - Retail,L,non-food,14.74,UAH,Ukraine,,0,National Average,1295,284,15,15,8,1295_284_15_15,
2014-08-15,Fuel (diesel) - Retail,L,non-food,15.6167,UAH,Ukraine,,0,National Average,1295,284,15,15,8,1295_284_15_15,
2014-09-15,Fuel (diesel) - Retail,L,non-food,16.2133,UAH,Ukraine,,0,National Average,1295,284,15,15,8,1295_284_15_15,
2014-10-15,Fuel (diesel) - Retail,L,non-food,16.1033,UAH,Ukraine,,0,National Average,1295,284,15,15,8,1295_284_15_15,
2014-11-15,Fuel (diesel) - Retail,L,non-food,16.6067,UAH,Ukraine,,0,National Average,1295,284,15,15,8,1295_284_15_15,
2014-12-15,Fuel (diesel) - Retail,L,non-food,16.78,UAH,Ukraine,,0,National Average,1295,284,15,15,8,1295_284_15_15,
2015-01-15,Fuel (diesel) - Retail,L,non-food,16.78,UAH,Ukraine,,0,National Average,1295,284,15,15,8,1295_284_15_15,
2015-02-15,Fuel (diesel) - Retail,L,non-food,21.82,UAH,Ukraine,,0,National Average,1295,284,15,15,8,1295_284_15_15,
2015-03-15,Fuel (diesel) - Retail,L,non-food,23.1933,UAH,Ukraine,,0,National Average,1295,284,15,15,8,1295_284_15_15,
2015-04-15,Fuel (diesel) - Retail,L,non-food,20.5933,UAH,Ukraine,,0,National Average,1295,284,15,15,8,1295_284_15_15,
2015-05-15,Fuel (diesel) - Retail,L,non-food,20.39,UAH,Ukraine,,0,National Average,1295,284,15,15,8,1295_284_15_15,
2015-06-15,Fuel (diesel) - Retail,L,non-food,20.1567,UAH,Ukraine,,0,National Average,1295,284,15,15,8,1295_284_15_15,
2015-07-15,Fuel (diesel) - Retail,L,non-food,19.56,UAH,Ukraine,,0,National Average,1295,284,15,15,8,1295_284_15_15,
2015-08-15,Fuel (diesel) - Retail,L,non-food,18.3967,UAH,Ukraine,,0,National Average,1295,284,15,15,8,1295_284_15_15,
2015-09-15,Fuel (diesel) - Retail,L,non-food,17.63,UAH,Ukraine,,0,National Average,1295,284,15,15,8,1295_284_15_15,
2015-10-15,Fuel (diesel) - Retail,L,non-food,17.4,UAH,Ukraine,,0,National Average,1295,284,15,15,8,1295_284_15_15,
2015-11-15,Fuel (diesel) - Retail,L,non-food,17.1733,UAH,Ukraine,,0,National Average,1295,284,15,15,8,1295_284_15_15,
2015-12-15,Fuel (diesel) - Retail,L,non-food,17.0467,UAH,Ukraine,,0,National Average,1295,284,15,15,8,1295_284_15_15,
2016-01-15,Fuel (diesel) - Retail,L,non-food,16.1333,UAH,Ukraine,,0,National Average,1295,284,15,15,8,1295_284_15_15,
2016-02-15,Fuel (diesel) - Retail,L,non-food,15.7633,UAH,Ukraine,,0,National Average,1295,284,15,15,8,1295_284_15_15,
2016-03-15,Fuel (diesel) - Retail,L,non-food,16.5,UAH,Ukraine,,0,National Average,1295,284,15,15,8,1295_284_15_15,
2016-04-15,Fuel (diesel) - Retail,L,non-food,17.8067,UAH,Ukraine,,0,National Average,1295,284,15,15,8,1295_284_15_15,
2016-05-15,Fuel (diesel) - Retail,L,non-food,18.8833,UAH,Ukraine,,0,National Average,1295,284,15,15,8,1295_284_15_15,
2016-06-15,Fuel (diesel) - Retail,L,non-food,19.32,UAH,Ukraine,,0,National Average,1295,284,15,15,8,1295_284_15_15,
2016-07-15,Fuel (diesel) - Retail,L,non-food,19.38,UAH,Ukraine,,0,National Average,1295,284,15,15,8,1295_284_15_15,
2016-08-15,Fuel (diesel) - Retail,L,non-food,19.32,UAH,Ukraine,,0,National Average,1295,284,15,15,8,1295_284_15_15,
2016-09-15,Fuel (diesel) - Retail,L,non-food,19.5467,UAH,Ukraine,,0,National Average,1295,284,15,15,8,1295_284_15_15,
2016-10-15,Fuel (diesel) - Retail,L,non-food,19.86,UAH,Ukraine,,0,National Average,1295,284,15,15,8,1295_284_15_15,
2016-11-15,Fuel (diesel) - Retail,L,non-food,20.46,UAH,Ukraine,,0,National Average,1295,284,15,15,8,1295_284_15_15,
2016-12-15,Fuel (diesel) - Retail,L,non-food,20.6767,UAH,Ukraine,,0,National Average,1295,284,15,15,8,1295_284_15_15,
2017-01-15,Fuel (diesel) - Retail,L,non-food,21.5833,UAH,Ukraine,,0,National Average,1295,284,15,15,8,1295_284_15_15,
2017-02-15,Fuel (diesel) - Retail,L,non-food,22.1933,UAH,Ukraine,,0,National Average,1295,284,15,15,8,1295_284_15_15,
2017-03-15,Fuel (diesel) - Retail,L,non-food,22.1667,UAH,Ukraine,,0,National Average,1295,284,15,15,8,1295_284_15_15,
2017-04-15,Fuel (diesel) - Retail,L,non-food,22.4233,UAH,Ukraine,,0,National Average,1295,284,15,15,8,1295_284_15_15,
2017-05-15,Fuel (diesel) - Retail,L,non-food,22.7767,UAH,Ukraine,,0,National Average,1295,284,15,15,8,1295_284_15_15,
2017-06-15,Fuel (diesel) - Retail,L,non-food,22.5033,UAH,Ukraine,,0,National Average,1295,284,15,15,8,1295_284_15_15,
2017-07-15,Fuel (diesel) - Retail,L,non-food,22.14,UAH,Ukraine,,0,National Average,1295,284,15,15,8,1295_284_15_15,
2017-09-15,Fuel (diesel) - Retail,L,non-food,22.7467,UAH,Ukraine,,0,National Average,1295,284,15,15,8,1295_284_15_15,
2017-10-15,Fuel (diesel) - Retail,L,non-food,24.2967,UAH,Ukraine,,0,National Average,1295,284,15,15,8,1295_284_15_15,
2017-11-15,Fuel (diesel) - Retail,L,non-food,25.4,UAH,Ukraine,,0,National Average,1295,284,15,15,8,1295_284_15_15,
2017-12-15,Fuel (diesel) - Retail,L,non-food,25.9267,UAH,Ukraine,,0,National Average,1295,284,15,15,8,1295_284_15_15,
2014-03-15,Fuel (petrol-gasoline) - Retail,L,non-food,12.6733,UAH,Ukraine,,0,National Average,1295,285,15,15,8,1295_285_15_15,
2014-04-15,Fuel (petrol-gasoline) - Retail,L,non-food,14.94,UAH,Ukraine,,0,National Average,1295,285,15,15,8,1295_285_15_15,
2014-05-15,Fuel (petrol-gasoline) - Retail,L,non-food,15.3467,UAH,Ukraine,,0,National Average,1295,285,15,15,8,1295_285_15_15,
2014-06-15,Fuel (petrol-gasoline) - Retail,L,non-food,15.3467,UAH,Ukraine,,0,National Average,1295,285,15,15,8,1295_285_15_15,
2014-07-15,Fuel (petrol-gasoline) - Retail,L,non-food,15.44,UAH,Ukraine,,0,National Average,1295,285,15,15,8,1295_285_15_15,
2014-08-15,Fuel (petrol-gasoline) - Retail,L,non-food,16.2833,UAH,Ukraine,,0,National Average,1295,285,15,15,8,1295_285_15_15,
2014-09-15,Fuel (petrol-gasoline) - Retail,L,non-food,16.84,UAH,Ukraine,,0,National Average,1295,285,15,15,8,1295_285_15_15,
2014-10-15,Fuel (petrol-gasoline) - Retail,L,non-food,16.45,UAH,Ukraine,,0,National Average,1295,285,15,15,8,1295_285_15_15,
2014-11-15,Fuel (petrol-gasoline) - Retail,L,non-food,16.9,UAH,Ukraine,,0,National Average,1295,285,15,15,8,1295_285_15_15,
2014-12-15,Fuel (petrol-gasoline) - Retail,L,non-food,17.1167,UAH,Ukraine,,0,National Average,1295,285,15,15,8,1295_285_15_15,
2015-01-15,Fuel (petrol-gasoline) - Retail,L,non-food,17.1533,UAH,Ukraine,,0,National Average,1295,285,15,15,8,1295_285_15_15,
2015-02-15,Fuel (petrol-gasoline) - Retail,L,non-food,21.9633,UAH,Ukraine,,0,National Average,1295,285,15,15,8,1295_285_15_15,
2015-03-15,Fuel (petrol-gasoline) - Retail,L,non-food,21.8967,UAH,Ukraine,,0,National Average,1295,285,15,15,8,1295_285_15_15,
2015-04-15,Fuel (petrol-gasoline) - Retail,L,non-food,20.7867,UAH,Ukraine,,0,National Average,1295,285,15,15,8,1295_285_15_15,
2015-05-15,Fuel (petrol-gasoline) - Retail,L,non-food,20.8967,UAH,Ukraine,,0,National Average,1295,285,15,15,8,1295_285_15_15,
2015-06-15,Fuel (petrol-gasoline) - Retail,L,non-food,20.9033,UAH,Ukraine,,0,National Average,1295,285,15,15,8,1295_285_15_15,
2015-07-15,Fuel (petrol-gasoline) - Retail,L,non-food,20.9067,UAH,Ukraine,,0,National Average,1295,285,15,15,8,1295_285_15_15,
2015-08-15,Fuel (petrol-gasoline) - Retail,L,non-food,20.6933,UAH,Ukraine,,0,National Average,1295,285,15,15,8,1295_285_15_15,
2015-09-15,Fuel (petrol-gasoline) - Retail,L,non-food,20.0833,UAH,Ukraine,,0,National Average,1295,285,15,15,8,1295_285_15_15,
2015-10-15,Fuel (petrol-gasoline) - Retail,L,non-food,19.8,UAH,Ukraine,,0,National Average,1295,285,15,15,8,1295_285_15_15,
2015-11-15,Fuel (petrol-gasoline) - Retail,L,non-food,19.69,UAH,Ukraine,,0,National Average,1295,285,15,15,8,1295_285_15_15,
2015-12-15,Fuel (petrol-gasoline) - Retail,L,non-food,19.6167,UAH,Ukraine,,0,National Average,1295,285,15,15,8,1295_285_15_15,
2016-01-15,Fuel (petrol-gasoline) - Retail,L,non-food,19.4767,UAH,Ukraine,,0,National Average,1295,285,15,15,8,1295_285_15_15,
2016-02-15,Fuel (petrol-gasoline) - Retail,L,non-food,19.4033,UAH,Ukraine,,0,National Average,1295,285,15,15,8,1295_285_15_15,
2016-03-15,Fuel (petrol-gasoline) - Retail,L,non-food,19.7667,UAH,Ukraine,,0,National Average,1295,285,15,15,8,1295_285_15_15,
2016-04-15,Fuel (petrol-gasoline) - Retail,L,non-food,20.8267,UAH,Ukraine,,0,National Average,1295,285,15,15,8,1295_285_15_15,
2016-05-15,Fuel (petrol-gasoline) - Retail,L,non-food,21.9933,UAH,Ukraine,,0,National Average,1295,285,15,15,8,1295_285_15_15,
2016-06-15,Fuel (petrol-gasoline) - Retail,L,non-food,22.4167,UAH,Ukraine,,0,National Average,1295,285,15,15,8,1295_285_15_15,
2016-07-15,Fuel (petrol-gasoline) - Retail,L,non-food,22.4867,UAH,Ukraine,,0,National Average,1295,285,15,15,8,1295_285_15_15,
2016-08-15,Fuel (petrol-gasoline) - Retail,L,non-food,22.46,UAH,Ukraine,,0,National Average,1295,285,15,15,8,1295_285_15_15,
2016-09-15,Fuel (petrol-gasoline) - Retail,L,non-food,22.5333,UAH,Ukraine,,0,National Average,1295,285,15,15,8,1295_285_15_15,
2016-10-15,Fuel (petrol-gasoline) - Retail,L,non-food,22.8167,UAH,Ukraine,,0,National Average,1295,285,15,15,8,1295_285_15_15,
2016-11-15,Fuel (petrol-gasoline) - Retail,L,non-food,23.1733,UAH,Ukraine,,0,National Average,1295,285,15,15,8,1295_285_15_15,
2016-12-15,Fuel (petrol-gasoline) - Retail,L,non-food,23.3433,UAH,Ukraine,,0,National Average,1295,285,15,15,8,1295_285_15_15,
2017-01-15,Fuel (petrol-gasoline) - Retail,L,non-food,24.1,UAH,Ukraine,,0,National Average,1295,285,15,15,8,1295_285_15_15,
2017-02-15,Fuel (petrol-gasoline) - Retail,L,non-food,24.67,UAH,Ukraine,,0,National Average,1295,285,15,15,8,1295_285_15_15,
2017-03-15,Fuel (petrol-gasoline) - Retail,L,non-food,24.6767,UAH,Ukraine,,0,National Average,1295,285,15,15,8,1295_285_15_15,
2017-04-15,Fuel (petrol-gasoline) - Retail,L,non-food,24.93,UAH,Ukraine,,0,National Average,1295,285,15,15,8,1295_285_15_15,
2017-05-15,Fuel (petrol-gasoline) - Retail,L,non-food,25.1567,UAH,Ukraine,,0,National Average,1295,285,15,15,8,1295_285_15_15,
2017-06-15,Fuel (petrol-gasoline) - Retail,L,non-food,24.8733,UAH,Ukraine,,0,National Average,1295,285,15,15,8,1295_285_15_15,
2017-07-15,Fuel (petrol-gasoline) - Retail,L,non-food,24.7033,UAH,Ukraine,,0,National Average,1295,285,15,15,8,1295_285_15_15,
2017-09-15,Fuel (petrol-gasoline) - Retail,L,non-food,25.4433,UAH,Ukraine,,0,National Average,1295,285,15,15,8,1295_285_15_15,
2017-10-15,Fuel (petrol-gasoline) - Retail,L,non-food,26.66,UAH,Ukraine,,0,National Average,1295,285,15,15,8,1295_285_15_15,
2017-11-15,Fuel (petrol-gasoline) - Retail,L,non-food,27.61,UAH,Ukraine,,0,National Average,1295,285,15,15,8,1295_285_15_15,
2017-12-15,Fuel (petrol-gasoline) - Retail,L,non-food,28.1967,UAH,Ukraine,,0,National Average,1295,285,15,15,8,1295_285_15_15,
2014-03-15,Curd - Retail,KG,milk and dairy,49.4667,UAH,Ukraine,,0,National Average,1295,367,15,5,3,1295_367_15_5,
2014-04-15,Curd - Retail,KG,milk and dairy,50.36,UAH,Ukraine,,0,National Average,1295,367,15,5,3,1295_367_15_5,
2014-05-15,Curd - Retail,KG,milk and dairy,50.61,UAH,Ukraine,,0,National Average,1295,367,15,5,3,1295_367_15_5,
2014-06-15,Curd - Retail,KG,milk and dairy,50.9667,UAH,Ukraine,,0,National Average,1295,367,15,5,3,1295_367_15_5,
2014-07-15,Curd - Retail,KG,milk and dairy,51.1467,UAH,Ukraine,,0,National Average,1295,367,15,5,3,1295_367_15_5,
2014-08-15,Curd - Retail,KG,milk and dairy,52.1633,UAH,Ukraine,,0,National Average,1295,367,15,5,3,1295_367_15_5,
2014-09-15,Curd - Retail,KG,milk and dairy,52.5867,UAH,Ukraine,,0,National Average,1295,367,15,5,3,1295_367_15_5,
2014-10-15,Curd - Retail,KG,milk and dairy,53.13,UAH,Ukraine,,0,National Average,1295,367,15,5,3,1295_367_15_5,
2014-11-15,Curd - Retail,KG,milk and dairy,53.4833,UAH,Ukraine,,0,National Average,1295,367,15,5,3,1295_367_15_5,
2014-12-15,Curd - Retail,KG,milk and dairy,53.9833,UAH,Ukraine,,0,National Average,1295,367,15,5,3,1295_367_15_5,
2015-01-15,Curd - Retail,KG,milk and dairy,54.0367,UAH,Ukraine,,0,National Average,1295,367,15,5,3,1295_367_15_5,
2015-02-15,Curd - Retail,KG,milk and dairy,54.58,UAH,Ukraine,,0,National Average,1295,367,15,5,3,1295_367_15_5,
2015-03-15,Curd - Retail,KG,milk and dairy,56.4233,UAH,Ukraine,,0,National Average,1295,367,15,5,3,1295_367_15_5,
2015-04-15,Curd - Retail,KG,milk and dairy,58.94,UAH,Ukraine,,0,National Average,1295,367,15,5,3,1295_367_15_5,
2015-05-15,Curd - Retail,KG,milk and dairy,62.57,UAH,Ukraine,,0,National Average,1295,367,15,5,3,1295_367_15_5,
2015-06-15,Curd - Retail,KG,milk and dairy,62.77,UAH,Ukraine,,0,National Average,1295,367,15,5,3,1295_367_15_5,
2015-07-15,Curd - Retail,KG,milk and dairy,63.43,UAH,Ukraine,,0,National Average,1295,367,15,5,3,1295_367_15_5,
2015-08-15,Curd - Retail,KG,milk and dairy,63.62,UAH,Ukraine,,0,National Average,1295,367,15,5,3,1295_367_15_5,
2015-09-15,Curd - Retail,KG,milk and dairy,64.3,UAH,Ukraine,,0,National Average,1295,367,15,5,3,1295_367_15_5,
2015-10-15,Curd - Retail,KG,milk and dairy,65.1667,UAH,Ukraine,,0,National Average,1295,367,15,5,3,1295_367_15_5,
2015-11-15,Curd - Retail,KG,milk and dairy,66.1233,UAH,Ukraine,,0,National Average,1295,367,15,5,3,1295_367_15_5,
2015-12-15,Curd - Retail,KG,milk and dairy,67.0667,UAH,Ukraine,,0,National Average,1295,367,15,5,3,1295_367_15_5,
2016-01-15,Curd - Retail,KG,milk and dairy,68.2067,UAH,Ukraine,,0,National Average,1295,367,15,5,3,1295_367_15_5,
2016-02-15,Curd - Retail,KG,milk and dairy,69.9433,UAH,Ukraine,,0,National Average,1295,367,15,5,3,1295_367_15_5,
2016-03-15,Curd - Retail,KG,milk and dairy,71.6533,UAH,Ukraine,,0,National Average,1295,367,15,5,3,1295_367_15_5,
2016-04-15,Curd - Retail,KG,milk and dairy,71.3033,UAH,Ukraine,,0,National Average,1295,367,15,5,3,1295_367_15_5,
2016-05-15,Curd - Retail,KG,milk and dairy,71.2967,UAH,Ukraine,,0,National Average,1295,367,15,5,3,1295_367_15_5,
2016-06-15,Curd - Retail,KG,milk and dairy,71.75,UAH,Ukraine,,0,National Average,1295,367,15,5,3,1295_367_15_5,
2016-07-15,Curd - Retail,KG,milk and dairy,71.9267,UAH,Ukraine,,0,National Average,1295,367,15,5,3,1295_367_15_5,
2016-08-15,Curd - Retail,KG,milk and dairy,71.8,UAH,Ukraine,,0,National Average,1295,367,15,5,3,1295_367_15_5,
2016-09-15,Curd - Retail,KG,milk and dairy,72.6367,UAH,Ukraine,,0,National Average,1295,367,15,5,3,1295_367_15_5,
2016-10-15,Curd - Retail,KG,milk and dairy,73.8067,UAH,Ukraine,,0,National Average,1295,367,15,5,3,1295_367_15_5,
2016-11-15,Curd - Retail,KG,milk and dairy,76.5333,UAH,Ukraine,,0,National Average,1295,367,15,5,3,1295_367_15_5,
2016-12-15,Curd - Retail,KG,milk and dairy,80.1833,UAH,Ukraine,,0,National Average,1295,367,15,5,3,1295_367_15_5,
2017-01-15,Curd - Retail,KG,milk and dairy,83.56,UAH,Ukraine,,0,National Average,1295,367,15,5,3,1295_367_15_5,
2017-02-15,Curd - Retail,KG,milk and dairy,87.1067,UAH,Ukraine,,0,National Average,1295,367,15,5,3,1295_367_15_5,
2017-03-15,Curd - Retail,KG,milk and dairy,89.86,UAH,Ukraine,,0,National Average,1295,367,15,5,3,1295_367_15_5,
2017-04-15,Curd - Retail,KG,milk and dairy,90.63,UAH,Ukraine,,0,National Average,1295,367,15,5,3,1295_367_15_5,
2017-05-15,Curd - Retail,KG,milk and dairy,92.2,UAH,Ukraine,,0,National Average,1295,367,15,5,3,1295_367_15_5,
2017-06-15,Curd - Retail,KG,milk and dairy,92.38,UAH,Ukraine,,0,National Average,1295,367,15,5,3,1295_367_15_5,
2017-07-15,Curd - Retail,KG,milk and dairy,93.0767,UAH,Ukraine,,0,National Average,1295,367,15,5,3,1295_367_15_5,
2017-09-15,Curd - Retail,KG,milk and dairy,95.5267,UAH,Ukraine,,0,National Average,1295,367,15,5,3,1295_367_15_5,
2017-10-15,Curd - Retail,KG,milk and dairy,98.5033,UAH,Ukraine,,0,National Average,1295,367,15,5,3,1295_367_15_5,
2017-11-15,Curd - Retail,KG,milk and dairy,99.8933,UAH,Ukraine,,0,National Average,1295,367,15,5,3,1295_367_15_5,
2017-12-15,Curd - Retail,KG,milk and dairy,101.4933,UAH,Ukraine,,0,National Average,1295,367,15,5,3,1295_367_15_5,
2014-03-15,Sour cream - Retail,L,milk and dairy,20.7067,UAH,Ukraine,,0,National Average,1295,368,15,15,3,1295_368_15_15,
2014-04-15,Sour cream - Retail,L,milk and dairy,20.7933,UAH,Ukraine,,0,National Average,1295,368,15,15,3,1295_368_15_15,
2014-05-15,Sour cream - Retail,L,milk and dairy,21.1867,UAH,Ukraine,,0,National Average,1295,368,15,15,3,1295_368_15_15,
2014-06-15,Sour cream - Retail,L,milk and dairy,21.2467,UAH,Ukraine,,0,National Average,1295,368,15,15,3,1295_368_15_15,
2014-07-15,Sour cream - Retail,L,milk and dairy,21.1033,UAH,Ukraine,,0,National Average,1295,368,15,15,3,1295_368_15_15,
2014-08-15,Sour cream - Retail,L,milk and dairy,21.1033,UAH,Ukraine,,0,National Average,1295,368,15,15,3,1295_368_15_15,
2014-09-15,Sour cream - Retail,L,milk and dairy,21.3567,UAH,Ukraine,,0,National Average,1295,368,15,15,3,1295_368_15_15,
2014-10-15,Sour cream - Retail,L,milk and dairy,22.2333,UAH,Ukraine,,0,National Average,1295,368,15,15,3,1295_368_15_15,
2014-11-15,Sour cream - Retail,L,milk and dairy,22.4667,UAH,Ukraine,,0,National Average,1295,368,15,15,3,1295_368_15_15,
2014-12-15,Sour cream - Retail,L,milk and dairy,22.4367,UAH,Ukraine,,0,National Average,1295,368,15,15,3,1295_368_15_15,
2015-01-15,Sour cream - Retail,L,milk and dairy,23.16,UAH,Ukraine,,0,National Average,1295,368,15,15,3,1295_368_15_15,
2015-02-15,Sour cream - Retail,L,milk and dairy,23.7533,UAH,Ukraine,,0,National Average,1295,368,15,15,3,1295_368_15_15,
2015-03-15,Sour cream - Retail,L,milk and dairy,24.93,UAH,Ukraine,,0,National Average,1295,368,15,15,3,1295_368_15_15,
2015-04-15,Sour cream - Retail,L,milk and dairy,25.87,UAH,Ukraine,,0,National Average,1295,368,15,15,3,1295_368_15_15,
2015-05-15,Sour cream - Retail,L,milk and dairy,26.59,UAH,Ukraine,,0,National Average,1295,368,15,15,3,1295_368_15_15,
2015-06-15,Sour cream - Retail,L,milk and dairy,26.33,UAH,Ukraine,,0,National Average,1295,368,15,15,3,1295_368_15_15,
2015-07-15,Sour cream - Retail,L,milk and dairy,26.4567,UAH,Ukraine,,0,National Average,1295,368,15,15,3,1295_368_15_15,
2015-08-15,Sour cream - Retail,L,milk and dairy,26.5233,UAH,Ukraine,,0,National Average,1295,368,15,15,3,1295_368_15_15,
2015-09-15,Sour cream - Retail,L,milk and dairy,27.03,UAH,Ukraine,,0,National Average,1295,368,15,15,3,1295_368_15_15,
2015-10-15,Sour cream - Retail,L,milk and dairy,27.89,UAH,Ukraine,,0,National Average,1295,368,15,15,3,1295_368_15_15,
2015-11-15,Sour cream - Retail,L,milk and dairy,28.58,UAH,Ukraine,,0,National Average,1295,368,15,15,3,1295_368_15_15,
2015-12-15,Sour cream - Retail,L,milk and dairy,29.63,UAH,Ukraine,,0,National Average,1295,368,15,15,3,1295_368_15_15,
2016-01-15,Sour cream - Retail,L,milk and dairy,30.26,UAH,Ukraine,,0,National Average,1295,368,15,15,3,1295_368_15_15,
2016-02-15,Sour cream - Retail,L,milk and dairy,31.3167,UAH,Ukraine,,0,National Average,1295,368,15,15,3,1295_368_15_15,
2016-03-15,Sour cream - Retail,L,milk and dairy,31.8367,UAH,Ukraine,,0,National Average,1295,368,15,15,3,1295_368_15_15,
2016-04-15,Sour cream - Retail,L,milk and dairy,32.0433,UAH,Ukraine,,0,National Average,1295,368,15,15,3,1295_368_15_15,
2016-05-15,Sour cream - Retail,L,milk and dairy,32.2,UAH,Ukraine,,0,National Average,1295,368,15,15,3,1295_368_15_15,
2016-06-15,Sour cream - Retail,L,milk and dairy,31.9,UAH,Ukraine,,0,National Average,1295,368,15,15,3,1295_368_15_15,
2016-07-15,Sour cream - Retail,L,milk and dairy,32.2433,UAH,Ukraine,,0,National Average,1295,368,15,15,3,1295_368_15_15,
2016-08-15,Sour cream - Retail,L,milk and dairy,32.47,UAH,Ukraine,,0,National Average,1295,368,15,15,3,1295_368_15_15,
2016-09-15,Sour cream - Retail,L,milk and dairy,33.0633,UAH,Ukraine,,0,National Average,1295,368,15,15,3,1295_368_15_15,
2016-10-15,Sour cream - Retail,L,milk and dairy,34.43,UAH,Ukraine,,0,National Average,1295,368,15,15,3,1295_368_15_15,
2016-11-15,Sour cream - Retail,L,milk and dairy,36.4033,UAH,Ukraine,,0,National Average,1295,368,15,15,3,1295_368_15_15,
2016-12-15,Sour cream - Retail,L,milk and dairy,38.63,UAH,Ukraine,,0,National Average,1295,368,15,15,3,1295_368_15_15,
2017-01-15,Sour cream - Retail,L,milk and dairy,40.4967,UAH,Ukraine,,0,National Average,1295,368,15,15,3,1295_368_15_15,
2017-02-15,Sour cream - Retail,L,milk and dairy,41.7867,UAH,Ukraine,,0,National Average,1295,368,15,15,3,1295_368_15_15,
2017-03-15,Sour cream - Retail,L,milk and dairy,43.2333,UAH,Ukraine,,0,National Average,1295,368,15,15,3,1295_368_15_15,
2017-04-15,Sour cream - Retail,L,milk and dairy,43.8867,UAH,Ukraine,,0,National Average,1295,368,15,15,3,1295_368_15_15,
2017-05-15,Sour cream - Retail,L,milk and dairy,43.99,UAH,Ukraine,,0,National Average,1295,368,15,15,3,1295_368_15_15,
2017-06-15,Sour cream - Retail,L,milk and dairy,43.91,UAH,Ukraine,,0,National Average,1295,368,15,15,3,1295_368_15_15,
2017-07-15,Sour cream - Retail,L,milk and dairy,44.24,UAH,Ukraine,,0,National Average,1295,368,15,15,3,1295_368_15_15,
2017-09-15,Sour cream - Retail,L,milk and dairy,45.3133,UAH,Ukraine,,0,National Average,1295,368,15,15,3,1295_368_15_15,
2017-10-15,Sour cream - Retail,L,milk and dairy,46.4067,UAH,Ukraine,,0,National Average,1295,368,15,15,3,1295_368_15_15,
2017-11-15,Sour cream - Retail,L,milk and dairy,47.6667,UAH,Ukraine,,0,National Average,1295,368,15,15,3,1295_368_15_15,
2017-12-15,Sour cream - Retail,L,milk and dairy,49.0867,UAH,Ukraine,,0,National Average,1295,368,15,15,3,1295_368_15_15,
"2014-03-15,""Meat (mixed, sausage) - Retail"",KG,""meat, fish and eggs"",33.04,UAH,Ukraine,,0,National Average,1295,369,15,5,2,1295_369_15_5,"
"2014-04-15,""Meat (mixed, sausage) - Retail"",KG,""meat, fish and eggs"",33.6067,UAH,Ukraine,,0,National Average,1295,369,15,5,2,1295_369_15_5,"
"2014-05-15,""Meat (mixed, sausage) - Retail"",KG,""meat, fish and eggs"",34.8467,UAH,Ukraine,,0,National Average,1295,369,15,5,2,1295_369_15_5,"
"2014-06-15,""Meat (mixed, sausage) - Retail"",KG,""meat, fish and eggs"",35.6933,UAH,Ukraine,,0,National Average,1295,369,15,5,2,1295_369_15_5,"
"2014-07-15,""Meat (mixed, sausage) - Retail"",KG,""meat, fish and eggs"",37.0267,UAH,Ukraine,,0,National Average,1295,369,15,5,2,1295_369_15_5,"
"2014-08-15,""Meat (mixed, sausage) - Retail"",KG,""meat, fish and eggs"",37.73,UAH,Ukraine,,0,National Average,1295,369,15,5,2,1295_369_15_5,"
"2014-09-15,""Meat (mixed, sausage) - Retail"",KG,""meat, fish and eggs"",38.7233,UAH,Ukraine,,0,National Average,1295,369,15,5,2,1295_369_15_5,"
"2014-10-15,""Meat (mixed, sausage) - Retail"",KG,""meat, fish and eggs"",41.04,UAH,Ukraine,,0,National Average,1295,369,15,5,2,1295_369_15_5,"
"2014-11-15,""Meat (mixed, sausage) - Retail"",KG,""meat, fish and eggs"",41.7467,UAH,Ukraine,,0,National Average,1295,369,15,5,2,1295_369_15_5,"
"2014-12-15,""Meat (mixed, sausage) - Retail"",KG,""meat, fish and eggs"",42.28,UAH,Ukraine,,0,National Average,1295,369,15,5,2,1295_369_15_5,"
"2015-01-15,""Meat (mixed, sausage) - Retail"",KG,""meat, fish and eggs"",42.7133,UAH,Ukraine,,0,National Average,1295,369,15,5,2,1295_369_15_5,"
"2015-02-15,""Meat (mixed, sausage) - Retail"",KG,""meat, fish and eggs"",43.2667,UAH,Ukraine,,0,National Average,1295,369,15,5,2,1295_369_15_5,"
"2015-03-15,""Meat (mixed, sausage) - Retail"",KG,""meat, fish and eggs"",46.6633,UAH,Ukraine,,0,National Average,1295,369,15,5,2,1295_369_15_5,"
"2015-04-15,""Meat (mixed, sausage) - Retail"",KG,""meat, fish and eggs"",49.1767,UAH,Ukraine,,0,National Average,1295,369,15,5,2,1295_369_15_5,"
"2015-05-15,""Meat (mixed, sausage) - Retail"",KG,""meat, fish and eggs"",50.5733,UAH,Ukraine,,0,National Average,1295,369,15,5,2,1295_369_15_5,"
"2015-06-15,""Meat (mixed, sausage) - Retail"",KG,""meat, fish and eggs"",51.7867,UAH,Ukraine,,0,National Average,1295,369,15,5,2,1295_369_15_5,"
"2015-07-15,""Meat (mixed, sausage) - Retail"",KG,""meat, fish and eggs"",52.0967,UAH,Ukraine,,0,National Average,1295,369,15,5,2,1295_369_15_5,"
"2015-08-15,""Meat (mixed, sausage) - Retail"",KG,""meat, fish and eggs"",52.6567,UAH,Ukraine,,0,National Average,1295,369,15,5,2,1295_369_15_5,"
"2015-09-15,""Meat (mixed, sausage) - Retail"",KG,""meat, fish and eggs"",53.8067,UAH,Ukraine,,0,National Average,1295,369,15,5,2,1295_369_15_5,"
"2015-10-15,""Meat (mixed, sausage) - Retail"",KG,""meat, fish and eggs"",54.01,UAH,Ukraine,,0,National Average,1295,369,15,5,2,1295_369_15_5,"
"2015-11-15,""Meat (mixed, sausage) - Retail"",KG,""meat, fish and eggs"",54.7433,UAH,Ukraine,,0,National Average,1295,369,15,5,2,1295_369_15_5,"
"2015-12-15,""Meat (mixed, sausage) - Retail"",KG,""meat, fish and eggs"",55.6333,UAH,Ukraine,,0,National Average,1295,369,15,5,2,1295_369_15_5,"
"2016-01-15,""Meat (mixed, sausage) - Retail"",KG,""meat, fish and eggs"",55.7233,UAH,Ukraine,,0,National Average,1295,369,15,5,2,1295_369_15_5,"
"2016-02-15,""Meat (mixed, sausage) - Retail"",KG,""meat, fish and eggs"",55.5533,UAH,Ukraine,,0,National Average,1295,369,15,5,2,1295_369_15_5,"
"2016-03-15,""Meat (mixed, sausage) - Retail"",KG,""meat, fish and eggs"",56.16,UAH,Ukraine,,0,National Average,1295,369,15,5,2,1295_369_15_5,"
"2016-04-15,""Meat (mixed, sausage) - Retail"",KG,""meat, fish and eggs"",56.1367,UAH,Ukraine,,0,National Average,1295,369,15,5,2,1295_369_15_5,"
"2016-05-15,""Meat (mixed, sausage) - Retail"",KG,""meat, fish and eggs"",56.71,UAH,Ukraine,,0,National Average,1295,369,15,5,2,1295_369_15_5,"
"2016-06-15,""Meat (mixed, sausage) - Retail"",KG,""meat, fish and eggs"",56.9933,UAH,Ukraine,,0,National Average,1295,369,15,5,2,1295_369_15_5,"
"2016-07-15,""Meat (mixed, sausage) - Retail"",KG,""meat, fish and eggs"",57.2,UAH,Ukraine,,0,National Average,1295,369,15,5,2,1295_369_15_5,"
"2016-08-15,""Meat (mixed, sausage) - Retail"",KG,""meat, fish and eggs"",57.58,UAH,Ukraine,,0,National Average,1295,369,15,5,2,1295_369_15_5,"
"2016-09-15,""Meat (mixed, sausage) - Retail"",KG,""meat, fish and eggs"",58.0633,UAH,Ukraine,,0,National Average,1295,369,15,5,2,1295_369_15_5,"
"2016-10-15,""Meat (mixed, sausage) - Retail"",KG,""meat, fish and eggs"",59.5,UAH,Ukraine,,0,National Average,1295,369,15,5,2,1295_369_15_5,"
"2016-11-15,""Meat (mixed, sausage) - Retail"",KG,""meat, fish and eggs"",59.9533,UAH,Ukraine,,0,National Average,1295,369,15,5,2,1295_369_15_5,"
"2016-12-15,""Meat (mixed, sausage) - Retail"",KG,""meat, fish and eggs"",60.5167,UAH,Ukraine,,0,National Average,1295,369,15,5,2,1295_369_15_5,"
"2017-01-15,""Meat (mixed, sausage) - Retail"",KG,""meat, fish and eggs"",61.15,UAH,Ukraine,,0,National Average,1295,369,15,5,2,1295_369_15_5,"
"2017-02-15,""Meat (mixed, sausage) - Retail"",KG,""meat, fish and eggs"",62.36,UAH,Ukraine,,0,National Average,1295,369,15,5,2,1295_369_15_5,"
"2017-03-15,""Meat (mixed, sausage) - Retail"",KG,""meat, fish and eggs"",63.3767,UAH,Ukraine,,0,National Average,1295,369,15,5,2,1295_369_15_5,"
"2017-04-15,""Meat (mixed, sausage) - Retail"",KG,""meat, fish and eggs"",64.3467,UAH,Ukraine,,0,National Average,1295,369,15,5,2,1295_369_15_5,"
"2017-05-15,""Meat (mixed, sausage) - Retail"",KG,""meat, fish and eggs"",64.9867,UAH,Ukraine,,0,National Average,1295,369,15,5,2,1295_369_15_5,"
"2017-06-15,""Meat (mixed, sausage) - Retail"",KG,""meat, fish and eggs"",66.4133,UAH,Ukraine,,0,National Average,1295,369,15,5,2,1295_369_15_5,"
"2017-07-15,""Meat (mixed, sausage) - Retail"",KG,""meat, fish and eggs"",68.1733,UAH,Ukraine,,0,National Average,1295,369,15,5,2,1295_369_15_5,"
"2017-09-15,""Meat (mixed, sausage) - Retail"",KG,""meat, fish and eggs"",71.96,UAH,Ukraine,,0,National Average,1295,369,15,5,2,1295_369_15_5,"
"2017-10-15,""Meat (mixed, sausage) - Retail"",KG,""meat, fish and eggs"",74.1967,UAH,Ukraine,,0,National Average,1295,369,15,5,2,1295_369_15_5,"
"2017-11-15,""Meat (mixed, sausage) - Retail"",KG,""meat, fish and eggs"",74.96,UAH,Ukraine,,0,National Average,1295,369,15,5,2,1295_369_15_5,"
"2017-12-15,""Meat (mixed, sausage) - Retail"",KG,""meat, fish and eggs"",76.0933,UAH,Ukraine,,0,National Average,1295,369,15,5,2,1295_369_15_5,"
2014-03-15,Beetroots - Retail,KG,vegetables and fruits,3.68,UAH,Ukraine,,0,National Average,1295,370,15,5,4,1295_370_15_5,
2014-04-15,Beetroots - Retail,KG,vegetables and fruits,4.04,UAH,Ukraine,,0,National Average,1295,370,15,5,4,1295_370_15_5,
2014-05-15,Beetroots - Retail,KG,vegetables and fruits,4.42,UAH,Ukraine,,0,National Average,1295,370,15,5,4,1295_370_15_5,
2014-06-15,Beetroots - Retail,KG,vegetables and fruits,4.8333,UAH,Ukraine,,0,National Average,1295,370,15,5,4,1295_370_15_5,
2014-07-15,Beetroots - Retail,KG,vegetables and fruits,3.2133,UAH,Ukraine,,0,National Average,1295,370,15,5,4,1295_370_15_5,
2014-08-15,Beetroots - Retail,KG,vegetables and fruits,2.2867,UAH,Ukraine,,0,National Average,1295,370,15,5,4,1295_370_15_5,
2014-09-15,Beetroots - Retail,KG,vegetables and fruits,2.2033,UAH,Ukraine,,0,National Average,1295,370,15,5,4,1295_370_15_5,
2014-10-15,Beetroots - Retail,KG,vegetables and fruits,2.25,UAH,Ukraine,,0,National Average,1295,370,15,5,4,1295_370_15_5,
2014-11-15,Beetroots - Retail,KG,vegetables and fruits,2.28,UAH,Ukraine,,0,National Average,1295,370,15,5,4,1295_370_15_5,
2014-12-15,Beetroots - Retail,KG,vegetables and fruits,2.98,UAH,Ukraine,,0,National Average,1295,370,15,5,4,1295_370_15_5,
2015-01-15,Beetroots - Retail,KG,vegetables and fruits,3.5867,UAH,Ukraine,,0,National Average,1295,370,15,5,4,1295_370_15_5,
2015-02-15,Beetroots - Retail,KG,vegetables and fruits,4.1433,UAH,Ukraine,,0,National Average,1295,370,15,5,4,1295_370_15_5,
2015-03-15,Beetroots - Retail,KG,vegetables and fruits,5.06,UAH,Ukraine,,0,National Average,1295,370,15,5,4,1295_370_15_5,
2015-04-15,Beetroots - Retail,KG,vegetables and fruits,5.7467,UAH,Ukraine,,0,National Average,1295,370,15,5,4,1295_370_15_5,
2015-05-15,Beetroots - Retail,KG,vegetables and fruits,7.5433,UAH,Ukraine,,0,National Average,1295,370,15,5,4,1295_370_15_5,
2015-06-15,Beetroots - Retail,KG,vegetables and fruits,16.26,UAH,Ukraine,,0,National Average,1295,370,15,5,4,1295_370_15_5,
2015-07-15,Beetroots - Retail,KG,vegetables and fruits,10.46,UAH,Ukraine,,0,National Average,1295,370,15,5,4,1295_370_15_5,
2015-08-15,Beetroots - Retail,KG,vegetables and fruits,5.4833,UAH,Ukraine,,0,National Average,1295,370,15,5,4,1295_370_15_5,
2015-09-15,Beetroots - Retail,KG,vegetables and fruits,5.3867,UAH,Ukraine,,0,National Average,1295,370,15,5,4,1295_370_15_5,
2015-10-15,Beetroots - Retail,KG,vegetables and fruits,6.24,UAH,Ukraine,,0,National Average,1295,370,15,5,4,1295_370_15_5,
2015-11-15,Beetroots - Retail,KG,vegetables and fruits,7.5767,UAH,Ukraine,,0,National Average,1295,370,15,5,4,1295_370_15_5,
2015-12-15,Beetroots - Retail,KG,vegetables and fruits,7.56,UAH,Ukraine,,0,National Average,1295,370,15,5,4,1295_370_15_5,
2016-01-15,Beetroots - Retail,KG,vegetables and fruits,8.2967,UAH,Ukraine,,0,National Average,1295,370,15,5,4,1295_370_15_5,
2016-02-15,Beetroots - Retail,KG,vegetables and fruits,8.5533,UAH,Ukraine,,0,National Average,1295,370,15,5,4,1295_370_15_5,
2016-03-15,Beetroots - Retail,KG,vegetables and fruits,8.61,UAH,Ukraine,,0,National Average,1295,370,15,5,4,1295_370_15_5,
2016-04-15,Beetroots - Retail,KG,vegetables and fruits,9.72,UAH,Ukraine,,0,National Average,1295,370,15,5,4,1295_370_15_5,
2016-05-15,Beetroots - Retail,KG,vegetables and fruits,10.67,UAH,Ukraine,,0,National Average,1295,370,15,5,4,1295_370_15_5,
2016-06-15,Beetroots - Retail,KG,vegetables and fruits,9.1933,UAH,Ukraine,,0,National Average,1295,370,15,5,4,1295_370_15_5,
2016-07-15,Beetroots - Retail,KG,vegetables and fruits,4.5467,UAH,Ukraine,,0,National Average,1295,370,15,5,4,1295_370_15_5,
2016-08-15,Beetroots - Retail,KG,vegetables and fruits,3.38,UAH,Ukraine,,0,National Average,1295,370,15,5,4,1295_370_15_5,
2016-09-15,Beetroots - Retail,KG,vegetables and fruits,3.33,UAH,Ukraine,,0,National Average,1295,370,15,5,4,1295_370_15_5,
2016-10-15,Beetroots - Retail,KG,vegetables and fruits,3.6567,UAH,Ukraine,,0,National Average,1295,370,15,5,4,1295_370_15_5,
2016-11-15,Beetroots - Retail,KG,vegetables and fruits,3.6533,UAH,Ukraine,,0,National Average,1295,370,15,5,4,1295_370_15_5,
2016-12-15,Beetroots - Retail,KG,vegetables and fruits,3.7,UAH,Ukraine,,0,National Average,1295,370,15,5,4,1295_370_15_5,
2017-01-15,Beetroots - Retail,KG,vegetables and fruits,4.0133,UAH,Ukraine,,0,National Average,1295,370,15,5,4,1295_370_15_5,
2017-02-15,Beetroots - Retail,KG,vegetables and fruits,4.2733,UAH,Ukraine,,0,National Average,1295,370,15,5,4,1295_370_15_5,
2017-03-15,Beetroots - Retail,KG,vegetables and fruits,4.2267,UAH,Ukraine,,0,National Average,1295,370,15,5,4,1295_370_15_5,
2017-04-15,Beetroots - Retail,KG,vegetables and fruits,4.8467,UAH,Ukraine,,0,National Average,1295,370,15,5,4,1295_370_15_5,
2017-05-15,Beetroots - Retail,KG,vegetables and fruits,6.42,UAH,Ukraine,,0,National Average,1295,370,15,5,4,1295_370_15_5,
2017-06-15,Beetroots - Retail,KG,vegetables and fruits,8.8333,UAH,Ukraine,,0,National Average,1295,370,15,5,4,1295_370_15_5,
2017-07-15,Beetroots - Retail,KG,vegetables and fruits,6.9033,UAH,Ukraine,,0,National Average,1295,370,15,5,4,1295_370_15_5,
2017-09-15,Beetroots - Retail,KG,vegetables and fruits,5.3233,UAH,Ukraine,,0,National Average,1295,370,15,5,4,1295_370_15_5,
2017-10-15,Beetroots - Retail,KG,vegetables and fruits,5.3267,UAH,Ukraine,,0,National Average,1295,370,15,5,4,1295_370_15_5,
2017-11-15,Beetroots - Retail,KG,vegetables and fruits,5.4533,UAH,Ukraine,,0,National Average,1295,370,15,5,4,1295_370_15_5,
2017-12-15,Beetroots - Retail,KG,vegetables and fruits,6.18,UAH,Ukraine,,0,National Average,1295,370,15,5,4,1295_370_15_5,
2014-03-15,Butter - Retail,KG,oil and fats,68.1333,UAH,Ukraine,,0,National Average,1295,372,15,5,6,1295_372_15_5,
2014-04-15,Butter - Retail,KG,oil and fats,69.34,UAH,Ukraine,,0,National Average,1295,372,15,5,6,1295_372_15_5,
2014-05-15,Butter - Retail,KG,oil and fats,69.8967,UAH,Ukraine,,0,National Average,1295,372,15,5,6,1295_372_15_5,
2014-06-15,Butter - Retail,KG,oil and fats,69.6467,UAH,Ukraine,,0,National Average,1295,372,15,5,6,1295_372_15_5,
2014-07-15,Butter - Retail,KG,oil and fats,68.83,UAH,Ukraine,,0,National Average,1295,372,15,5,6,1295_372_15_5,
2014-08-15,Butter - Retail,KG,oil and fats,68.4533,UAH,Ukraine,,0,National Average,1295,372,15,5,6,1295_372_15_5,
2014-09-15,Butter - Retail,KG,oil and fats,68.7267,UAH,Ukraine,,0,National Average,1295,372,15,5,6,1295_372_15_5,
2014-10-15,Butter - Retail,KG,oil and fats,70.3367,UAH,Ukraine,,0,National Average,1295,372,15,5,6,1295_372_15_5,
2014-11-15,Butter - Retail,KG,oil and fats,70.78,UAH,Ukraine,,0,National Average,1295,372,15,5,6,1295_372_15_5,
2014-12-15,Butter - Retail,KG,oil and fats,70.9733,UAH,Ukraine,,0,National Average,1295,372,15,5,6,1295_372_15_5,
2015-01-15,Butter - Retail,KG,oil and fats,72.7467,UAH,Ukraine,,0,National Average,1295,372,15,5,6,1295_372_15_5,
2015-02-15,Butter - Retail,KG,oil and fats,73.5267,UAH,Ukraine,,0,National Average,1295,372,15,5,6,1295_372_15_5,
2015-03-15,Butter - Retail,KG,oil and fats,78.3667,UAH,Ukraine,,0,National Average,1295,372,15,5,6,1295_372_15_5,
2015-04-15,Butter - Retail,KG,oil and fats,81.22,UAH,Ukraine,,0,National Average,1295,372,15,5,6,1295_372_15_5,
2015-05-15,Butter - Retail,KG,oil and fats,81.8433,UAH,Ukraine,,0,National Average,1295,372,15,5,6,1295_372_15_5,
2015-06-15,Butter - Retail,KG,oil and fats,81.51,UAH,Ukraine,,0,National Average,1295,372,15,5,6,1295_372_15_5,
2015-07-15,Butter - Retail,KG,oil and fats,82.2833,UAH,Ukraine,,0,National Average,1295,372,15,5,6,1295_372_15_5,
2015-08-15,Butter - Retail,KG,oil and fats,82.7633,UAH,Ukraine,,0,National Average,1295,372,15,5,6,1295_372_15_5,
2015-09-15,Butter - Retail,KG,oil and fats,83.61,UAH,Ukraine,,0,National Average,1295,372,15,5,6,1295_372_15_5,
2015-10-15,Butter - Retail,KG,oil and fats,86.9033,UAH,Ukraine,,0,National Average,1295,372,15,5,6,1295_372_15_5,
2015-11-15,Butter - Retail,KG,oil and fats,90.2667,UAH,Ukraine,,0,National Average,1295,372,15,5,6,1295_372_15_5,
2015-12-15,Butter - Retail,KG,oil and fats,96.0533,UAH,Ukraine,,0,National Average,1295,372,15,5,6,1295_372_15_5,
2016-01-15,Butter - Retail,KG,oil and fats,100.0767,UAH,Ukraine,,0,National Average,1295,372,15,5,6,1295_372_15_5,
2016-02-15,Butter - Retail,KG,oil and fats,103.6267,UAH,Ukraine,,0,National Average,1295,372,15,5,6,1295_372_15_5,
2016-03-15,Butter - Retail,KG,oil and fats,104.86,UAH,Ukraine,,0,National Average,1295,372,15,5,6,1295_372_15_5,
2016-04-15,Butter - Retail,KG,oil and fats,104.9867,UAH,Ukraine,,0,National Average,1295,372,15,5,6,1295_372_15_5,
2016-05-15,Butter - Retail,KG,oil and fats,105.2933,UAH,Ukraine,,0,National Average,1295,372,15,5,6,1295_372_15_5,
2016-06-15,Butter - Retail,KG,oil and fats,105.76,UAH,Ukraine,,0,National Average,1295,372,15,5,6,1295_372_15_5,
2016-07-15,Butter - Retail,KG,oil and fats,104.88,UAH,Ukraine,,0,National Average,1295,372,15,5,6,1295_372_15_5,
2016-08-15,Butter - Retail,KG,oil and fats,105.4,UAH,Ukraine,,0,National Average,1295,372,15,5,6,1295_372_15_5,
2016-09-15,Butter - Retail,KG,oil and fats,109.26,UAH,Ukraine,,0,National Average,1295,372,15,5,6,1295_372_15_5,
2016-10-15,Butter - Retail,KG,oil and fats,116.1367,UAH,Ukraine,,0,National Average,1295,372,15,5,6,1295_372_15_5,
2016-11-15,Butter - Retail,KG,oil and fats,125.9433,UAH,Ukraine,,0,National Average,1295,372,15,5,6,1295_372_15_5,
2016-12-15,Butter - Retail,KG,oil and fats,133.4033,UAH,Ukraine,,0,National Average,1295,372,15,5,6,1295_372_15_5,
2017-01-15,Butter - Retail,KG,oil and fats,136.85,UAH,Ukraine,,0,National Average,1295,372,15,5,6,1295_372_15_5,
2017-02-15,Butter - Retail,KG,oil and fats,141.4733,UAH,Ukraine,,0,National Average,1295,372,15,5,6,1295_372_15_5,
2017-03-15,Butter - Retail,KG,oil and fats,141.3267,UAH,Ukraine,,0,National Average,1295,372,15,5,6,1295_372_15_5,
2017-04-15,Butter - Retail,KG,oil and fats,140.5433,UAH,Ukraine,,0,National Average,1295,372,15,5,6,1295_372_15_5,
2017-05-15,Butter - Retail,KG,oil and fats,140.8133,UAH,Ukraine,,0,National Average,1295,372,15,5,6,1295_372_15_5,
2017-06-15,Butter - Retail,KG,oil and fats,140.1333,UAH,Ukraine,,0,National Average,1295,372,15,5,6,1295_372_15_5,
2017-07-15,Butter - Retail,KG,oil and fats,142.2667,UAH,Ukraine,,0,National Average,1295,372,15,5,6,1295_372_15_5,
2017-09-15,Butter - Retail,KG,oil and fats,148.13,UAH,Ukraine,,0,National Average,1295,372,15,5,6,1295_372_15_5,
2017-10-15,Butter - Retail,KG,oil and fats,152.8933,UAH,Ukraine,,0,National Average,1295,372,15,5,6,1295_372_15_5,
2017-11-15,Butter - Retail,KG,oil and fats,159.6033,UAH,Ukraine,,0,National Average,1295,372,15,5,6,1295_372_15_5,
2017-12-15,Butter - Retail,KG,oil and fats,161.8433,UAH,Ukraine,,0,National Average,1295,372,15,5,6,1295_372_15_5,
2014-03-15,Buckwheat grits - Retail,KG,cereals and tubers,7.4433,UAH,Ukraine,,0,National Average,1295,373,15,5,1,1295_373_15_5,
2014-04-15,Buckwheat grits - Retail,KG,cereals and tubers,8.0533,UAH,Ukraine,,0,National Average,1295,373,15,5,1,1295_373_15_5,
2014-05-15,Buckwheat grits - Retail,KG,cereals and tubers,8.12,UAH,Ukraine,,0,National Average,1295,373,15,5,1,1295_373_15_5,
2014-06-15,Buckwheat grits - Retail,KG,cereals and tubers,8.1733,UAH,Ukraine,,0,National Average,1295,373,15,5,1,1295_373_15_5,
2014-07-15,Buckwheat grits - Retail,KG,cereals and tubers,8.09,UAH,Ukraine,,0,National Average,1295,373,15,5,1,1295_373_15_5,
2014-08-15,Buckwheat grits - Retail,KG,cereals and tubers,8.0467,UAH,Ukraine,,0,National Average,1295,373,15,5,1,1295_373_15_5,
2014-09-15,Buckwheat grits - Retail,KG,cereals and tubers,7.99,UAH,Ukraine,,0,National Average,1295,373,15,5,1,1295_373_15_5,
2014-10-15,Buckwheat grits - Retail,KG,cereals and tubers,8.3333,UAH,Ukraine,,0,National Average,1295,373,15,5,1,1295_373_15_5,
2014-11-15,Buckwheat grits - Retail,KG,cereals and tubers,9.7733,UAH,Ukraine,,0,National Average,1295,373,15,5,1,1295_373_15_5,
2014-12-15,Buckwheat grits - Retail,KG,cereals and tubers,16.8567,UAH,Ukraine,,0,National Average,1295,373,15,5,1,1295_373_15_5,
2015-01-15,Buckwheat grits - Retail,KG,cereals and tubers,17.9867,UAH,Ukraine,,0,National Average,1295,373,15,5,1,1295_373_15_5,
2015-02-15,Buckwheat grits - Retail,KG,cereals and tubers,17.91,UAH,Ukraine,,0,National Average,1295,373,15,5,1,1295_373_15_5,
2015-03-15,Buckwheat grits - Retail,KG,cereals and tubers,20.7133,UAH,Ukraine,,0,National Average,1295,373,15,5,1,1295_373_15_5,
2015-04-15,Buckwheat grits - Retail,KG,cereals and tubers,21.0033,UAH,Ukraine,,0,National Average,1295,373,15,5,1,1295_373_15_5,
2015-05-15,Buckwheat grits - Retail,KG,cereals and tubers,19.6533,UAH,Ukraine,,0,National Average,1295,373,15,5,1,1295_373_15_5,
2015-06-15,Buckwheat grits - Retail,KG,cereals and tubers,19.0367,UAH,Ukraine,,0,National Average,1295,373,15,5,1,1295_373_15_5,
2015-07-15,Buckwheat grits - Retail,KG,cereals and tubers,19.7967,UAH,Ukraine,,0,National Average,1295,373,15,5,1,1295_373_15_5,
2015-08-15,Buckwheat grits - Retail,KG,cereals and tubers,20.8267,UAH,Ukraine,,0,National Average,1295,373,15,5,1,1295_373_15_5,
2015-09-15,Buckwheat grits - Retail,KG,cereals and tubers,20.5433,UAH,Ukraine,,0,National Average,1295,373,15,5,1,1295_373_15_5,
2015-10-15,Buckwheat grits - Retail,KG,cereals and tubers,22.9367,UAH,Ukraine,,0,National Average,1295,373,15,5,1,1295_373_15_5,
2015-11-15,Buckwheat grits - Retail,KG,cereals and tubers,24.9667,UAH,Ukraine,,0,National Average,1295,373,15,5,1,1295_373_15_5,
2015-12-15,Buckwheat grits - Retail,KG,cereals and tubers,25.24,UAH,Ukraine,,0,National Average,1295,373,15,5,1,1295_373_15_5,
2016-01-15,Buckwheat grits - Retail,KG,cereals and tubers,25.1133,UAH,Ukraine,,0,National Average,1295,373,15,5,1,1295_373_15_5,
2016-02-15,Buckwheat grits - Retail,KG,cereals and tubers,27.34,UAH,Ukraine,,0,National Average,1295,373,15,5,1,1295_373_15_5,
2016-03-15,Buckwheat grits - Retail,KG,cereals and tubers,29.6867,UAH,Ukraine,,0,National Average,1295,373,15,5,1,1295_373_15_5,
2016-04-15,Buckwheat grits - Retail,KG,cereals and tubers,31.5467,UAH,Ukraine,,0,National Average,1295,373,15,5,1,1295_373_15_5,
2016-05-15,Buckwheat grits - Retail,KG,cereals and tubers,33.0033,UAH,Ukraine,,0,National Average,1295,373,15,5,1,1295_373_15_5,
2016-06-15,Buckwheat grits - Retail,KG,cereals and tubers,37.01,UAH,Ukraine,,0,National Average,1295,373,15,5,1,1295_373_15_5,
2016-07-15,Buckwheat grits - Retail,KG,cereals and tubers,37.2867,UAH,Ukraine,,0,National Average,1295,373,15,5,1,1295_373_15_5,
2016-08-15,Buckwheat grits - Retail,KG,cereals and tubers,34.14,UAH,Ukraine,,0,National Average,1295,373,15,5,1,1295_373_15_5,
2016-09-15,Buckwheat grits - Retail,KG,cereals and tubers,28.2967,UAH,Ukraine,,0,National Average,1295,373,15,5,1,1295_373_15_5,
2016-10-15,Buckwheat grits - Retail,KG,cereals and tubers,26.9767,UAH,Ukraine,,0,National Average,1295,373,15,5,1,1295_373_15_5,
2016-11-15,Buckwheat grits - Retail,KG,cereals and tubers,27.7133,UAH,Ukraine,,0,National Average,1295,373,15,5,1,1295_373_15_5,
2016-12-15,Buckwheat grits - Retail,KG,cereals and tubers,28.07,UAH,Ukraine,,0,National Average,1295,373,15,5,1,1295_373_15_5,
2017-01-15,Buckwheat grits - Retail,KG,cereals and tubers,29.0267,UAH,Ukraine,,0,National Average,1295,373,15,5,1,1295_373_15_5,
2017-02-15,Buckwheat grits - Retail,KG,cereals and tubers,29.3633,UAH,Ukraine,,0,National Average,1295,373,15,5,1,1295_373_15_5,
2017-03-15,Buckwheat grits - Retail,KG,cereals and tubers,29.5533,UAH,Ukraine,,0,National Average,1295,373,15,5,1,1295_373_15_5,
2017-04-15,Buckwheat grits - Retail,KG,cereals and tubers,28.6833,UAH,Ukraine,,0,National Average,1295,373,15,5,1,1295_373_15_5,
2017-05-15,Buckwheat grits - Retail,KG,cereals and tubers,27.22,UAH,Ukraine,,0,National Average,1295,373,15,5,1,1295_373_15_5,
2017-06-15,Buckwheat grits - Retail,KG,cereals and tubers,25.65,UAH,Ukraine,,0,National Average,1295,373,15,5,1,1295_373_15_5,
2017-07-15,Buckwheat grits - Retail,KG,cereals and tubers,24.3167,UAH,Ukraine,,0,National Average,1295,373,15,5,1,1295_373_15_5,
2017-09-15,Buckwheat grits - Retail,KG,cereals and tubers,23.4067,UAH,Ukraine,,0,National Average,1295,373,15,5,1,1295_373_15_5,
2017-10-15,Buckwheat grits - Retail,KG,cereals and tubers,21.2533,UAH,Ukraine,,0,National Average,1295,373,15,5,1,1295_373_15_5,
2017-11-15,Buckwheat grits - Retail,KG,cereals and tubers,19.3367,UAH,Ukraine,,0,National Average,1295,373,15,5,1,1295_373_15_5,
2017-12-15,Buckwheat grits - Retail,KG,cereals and tubers,18.1933,UAH,Ukraine,,0,National Average,1295,373,15,5,1,1295_373_15_5,
2014-03-15,Bread (rye) - Retail,Loaf,cereals and tubers,4.96,UAH,Ukraine,,0,National Average,1295,374,15,37,1,1295_374_15_37,
2014-04-15,Bread (rye) - Retail,Loaf,cereals and tubers,5.0533,UAH,Ukraine,,0,National Average,1295,374,15,37,1,1295_374_15_37,
2014-05-15,Bread (rye) - Retail,Loaf,cereals and tubers,5.2967,UAH,Ukraine,,0,National Average,1295,374,15,37,1,1295_374_15_37,
2014-06-15,Bread (rye) - Retail,Loaf,cereals and tubers,5.4533,UAH,Ukraine,,0,National Average,1295,374,15,37,1,1295_374_15_37,
2014-07-15,Bread (rye) - Retail,Loaf,cereals and tubers,5.46,UAH,Ukraine,,0,National Average,1295,374,15,37,1,1295_374_15_37,
2014-08-15,Bread (rye) - Retail,Loaf,cereals and tubers,5.4467,UAH,Ukraine,,0,National Average,1295,374,15,37,1,1295_374_15_37,
2014-09-15,Bread (rye) - Retail,Loaf,cereals and tubers,5.7733,UAH,Ukraine,,0,National Average,1295,374,15,37,1,1295_374_15_37,
2014-10-15,Bread (rye) - Retail,Loaf,cereals and tubers,6.3633,UAH,Ukraine,,0,National Average,1295,374,15,37,1,1295_374_15_37,
2014-11-15,Bread (rye) - Retail,Loaf,cereals and tubers,6.2767,UAH,Ukraine,,0,National Average,1295,374,15,37,1,1295_374_15_37,
2014-12-15,Bread (rye) - Retail,Loaf,cereals and tubers,6.1667,UAH,Ukraine,,0,National Average,1295,374,15,37,1,1295_374_15_37,
2015-01-15,Bread (rye) - Retail,Loaf,cereals and tubers,6.7633,UAH,Ukraine,,0,National Average,1295,374,15,37,1,1295_374_15_37,
2015-02-15,Bread (rye) - Retail,Loaf,cereals and tubers,7.26,UAH,Ukraine,,0,National Average,1295,374,15,37,1,1295_374_15_37,
2015-03-15,Bread (rye) - Retail,Loaf,cereals and tubers,9.21,UAH,Ukraine,,0,National Average,1295,374,15,37,1,1295_374_15_37,
2015-04-15,Bread (rye) - Retail,Loaf,cereals and tubers,9.5667,UAH,Ukraine,,0,National Average,1295,374,15,37,1,1295_374_15_37,
2015-05-15,Bread (rye) - Retail,Loaf,cereals and tubers,9.5967,UAH,Ukraine,,0,National Average,1295,374,15,37,1,1295_374_15_37,
2015-06-15,Bread (rye) - Retail,Loaf,cereals and tubers,9.6067,UAH,Ukraine,,0,National Average,1295,374,15,37,1,1295_374_15_37,
2015-07-15,Bread (rye) - Retail,Loaf,cereals and tubers,9.6033,UAH,Ukraine,,0,National Average,1295,374,15,37,1,1295_374_15_37,
2015-08-15,Bread (rye) - Retail,Loaf,cereals and tubers,9.61,UAH,Ukraine,,0,National Average,1295,374,15,37,1,1295_374_15_37,
2015-09-15,Bread (rye) - Retail,Loaf,cereals and tubers,9.6067,UAH,Ukraine,,0,National Average,1295,374,15,37,1,1295_374_15_37,
2015-10-15,Bread (rye) - Retail,Loaf,cereals and tubers,9.5967,UAH,Ukraine,,0,National Average,1295,374,15,37,1,1295_374_15_37,
2015-11-15,Bread (rye) - Retail,Loaf,cereals and tubers,9.6067,UAH,Ukraine,,0,National Average,1295,374,15,37,1,1295_374_15_37,
2015-12-15,Bread (rye) - Retail,Loaf,cereals and tubers,9.87,UAH,Ukraine,,0,National Average,1295,374,15,37,1,1295_374_15_37,
2016-01-15,Bread (rye) - Retail,Loaf,cereals and tubers,9.9067,UAH,Ukraine,,0,National Average,1295,374,15,37,1,1295_374_15_37,
2016-02-15,Bread (rye) - Retail,Loaf,cereals and tubers,9.9667,UAH,Ukraine,,0,National Average,1295,374,15,37,1,1295_374_15_37,
2016-03-15,Bread (rye) - Retail,Loaf,cereals and tubers,9.9767,UAH,Ukraine,,0,National Average,1295,374,15,37,1,1295_374_15_37,
2016-04-15,Bread (rye) - Retail,Loaf,cereals and tubers,9.9967,UAH,Ukraine,,0,National Average,1295,374,15,37,1,1295_374_15_37,
2016-05-15,Bread (rye) - Retail,Loaf,cereals and tubers,10.0233,UAH,Ukraine,,0,National Average,1295,374,15,37,1,1295_374_15_37,
2016-06-15,Bread (rye) - Retail,Loaf,cereals and tubers,10.0767,UAH,Ukraine,,0,National Average,1295,374,15,37,1,1295_374_15_37,
2016-07-15,Bread (rye) - Retail,Loaf,cereals and tubers,10.1333,UAH,Ukraine,,0,National Average,1295,374,15,37,1,1295_374_15_37,
2016-08-15,Bread (rye) - Retail,Loaf,cereals and tubers,10.14,UAH,Ukraine,,0,National Average,1295,374,15,37,1,1295_374_15_37,
2016-09-15,Bread (rye) - Retail,Loaf,cereals and tubers,10.1733,UAH,Ukraine,,0,National Average,1295,374,15,37,1,1295_374_15_37,
2016-10-15,Bread (rye) - Retail,Loaf,cereals and tubers,10.2633,UAH,Ukraine,,0,National Average,1295,374,15,37,1,1295_374_15_37,
2016-11-15,Bread (rye) - Retail,Loaf,cereals and tubers,10.4167,UAH,Ukraine,,0,National Average,1295,374,15,37,1,1295_374_15_37,
2016-12-15,Bread (rye) - Retail,Loaf,cereals and tubers,10.5767,UAH,Ukraine,,0,National Average,1295,374,15,37,1,1295_374_15_37,
2017-01-15,Bread (rye) - Retail,Loaf,cereals and tubers,10.82,UAH,Ukraine,,0,National Average,1295,374,15,37,1,1295_374_15_37,
2017-02-15,Bread (rye) - Retail,Loaf,cereals and tubers,11.25,UAH,Ukraine,,0,National Average,1295,374,15,37,1,1295_374_15_37,
2017-03-15,Bread (rye) - Retail,Loaf,cereals and tubers,11.55,UAH,Ukraine,,0,National Average,1295,374,15,37,1,1295_374_15_37,
2017-04-15,Bread (rye) - Retail,Loaf,cereals and tubers,11.6667,UAH,Ukraine,,0,National Average,1295,374,15,37,1,1295_374_15_37,
2017-05-15,Bread (rye) - Retail,Loaf,cereals and tubers,11.7467,UAH,Ukraine,,0,National Average,1295,374,15,37,1,1295_374_15_37,
2017-06-15,Bread (rye) - Retail,Loaf,cereals and tubers,11.8833,UAH,Ukraine,,0,National Average,1295,374,15,37,1,1295_374_15_37,
2017-07-15,Bread (rye) - Retail,Loaf,cereals and tubers,11.9667,UAH,Ukraine,,0,National Average,1295,374,15,37,1,1295_374_15_37,
2017-09-15,Bread (rye) - Retail,Loaf,cereals and tubers,12.2167,UAH,Ukraine,,0,National Average,1295,374,15,37,1,1295_374_15_37,
2017-10-15,Bread (rye) - Retail,Loaf,cereals and tubers,12.4733,UAH,Ukraine,,0,National Average,1295,374,15,37,1,1295_374_15_37,
2017-11-15,Bread (rye) - Retail,Loaf,cereals and tubers,12.7567,UAH,Ukraine,,0,National Average,1295,374,15,37,1,1295_374_15_37,
2017-12-15,Bread (rye) - Retail,Loaf,cereals and tubers,12.9667,UAH,Ukraine,,0,National Average,1295,374,15,37,1,1295_374_15_37,
2014-03-15,Bread (wheat) - Retail,Loaf,cereals and tubers,4.84,UAH,Ukraine,,0,National Average,1295,375,15,37,1,1295_375_15_37,
2014-04-15,Bread (wheat) - Retail,Loaf,cereals and tubers,4.9667,UAH,Ukraine,,0,National Average,1295,375,15,37,1,1295_375_15_37,
2014-05-15,Bread (wheat) - Retail,Loaf,cereals and tubers,5.27,UAH,Ukraine,,0,National Average,1295,375,15,37,1,1295_375_15_37,
2014-06-15,Bread (wheat) - Retail,Loaf,cereals and tubers,5.4133,UAH,Ukraine,,0,National Average,1295,375,15,37,1,1295_375_15_37,
2014-07-15,Bread (wheat) - Retail,Loaf,cereals and tubers,5.5067,UAH,Ukraine,,0,National Average,1295,375,15,37,1,1295_375_15_37,
2014-08-15,Bread (wheat) - Retail,Loaf,cereals and tubers,5.5767,UAH,Ukraine,,0,National Average,1295,375,15,37,1,1295_375_15_37,
2014-09-15,Bread (wheat) - Retail,Loaf,cereals and tubers,5.9567,UAH,Ukraine,,0,National Average,1295,375,15,37,1,1295_375_15_37,
2014-10-15,Bread (wheat) - Retail,Loaf,cereals and tubers,6.38,UAH,Ukraine,,0,National Average,1295,375,15,37,1,1295_375_15_37,
2014-11-15,Bread (wheat) - Retail,Loaf,cereals and tubers,6.42,UAH,Ukraine,,0,National Average,1295,375,15,37,1,1295_375_15_37,
2014-12-15,Bread (wheat) - Retail,Loaf,cereals and tubers,6.5067,UAH,Ukraine,,0,National Average,1295,375,15,37,1,1295_375_15_37,
2015-01-15,Bread (wheat) - Retail,Loaf,cereals and tubers,7.0567,UAH,Ukraine,,0,National Average,1295,375,15,37,1,1295_375_15_37,
2015-02-15,Bread (wheat) - Retail,Loaf,cereals and tubers,7.6133,UAH,Ukraine,,0,National Average,1295,375,15,37,1,1295_375_15_37,
2015-03-15,Bread (wheat) - Retail,Loaf,cereals and tubers,9.5667,UAH,Ukraine,,0,National Average,1295,375,15,37,1,1295_375_15_37,
2015-04-15,Bread (wheat) - Retail,Loaf,cereals and tubers,9.9767,UAH,Ukraine,,0,National Average,1295,375,15,37,1,1295_375_15_37,
2015-05-15,Bread (wheat) - Retail,Loaf,cereals and tubers,10.0533,UAH,Ukraine,,0,National Average,1295,375,15,37,1,1295_375_15_37,
2015-06-15,Bread (wheat) - Retail,Loaf,cereals and tubers,10.0367,UAH,Ukraine,,0,National Average,1295,375,15,37,1,1295_375_15_37,
2015-07-15,Bread (wheat) - Retail,Loaf,cereals and tubers,10.0833,UAH,Ukraine,,0,National Average,1295,375,15,37,1,1295_375_15_37,
2015-08-15,Bread (wheat) - Retail,Loaf,cereals and tubers,10.0433,UAH,Ukraine,,0,National Average,1295,375,15,37,1,1295_375_15_37,
2015-09-15,Bread (wheat) - Retail,Loaf,cereals and tubers,10.0333,UAH,Ukraine,,0,National Average,1295,375,15,37,1,1295_375_15_37,
2015-10-15,Bread (wheat) - Retail,Loaf,cereals and tubers,10.0833,UAH,Ukraine,,0,National Average,1295,375,15,37,1,1295_375_15_37,
2015-11-15,Bread (wheat) - Retail,Loaf,cereals and tubers,10.1133,UAH,Ukraine,,0,National Average,1295,375,15,37,1,1295_375_15_37,
2015-12-15,Bread (wheat) - Retail,Loaf,cereals and tubers,10.3333,UAH,Ukraine,,0,National Average,1295,375,15,37,1,1295_375_15_37,
2016-01-15,Bread (wheat) - Retail,Loaf,cereals and tubers,10.2867,UAH,Ukraine,,0,National Average,1295,375,15,37,1,1295_375_15_37,
2016-02-15,Bread (wheat) - Retail,Loaf,cereals and tubers,10.3833,UAH,Ukraine,,0,National Average,1295,375,15,37,1,1295_375_15_37,
2016-03-15,Bread (wheat) - Retail,Loaf,cereals and tubers,10.4333,UAH,Ukraine,,0,National Average,1295,375,15,37,1,1295_375_15_37,
2016-04-15,Bread (wheat) - Retail,Loaf,cereals and tubers,10.4533,UAH,Ukraine,,0,National Average,1295,375,15,37,1,1295_375_15_37,
2016-05-15,Bread (wheat) - Retail,Loaf,cereals and tubers,10.47,UAH,Ukraine,,0,National Average,1295,375,15,37,1,1295_375_15_37,
2016-06-15,Bread (wheat) - Retail,Loaf,cereals and tubers,10.4533,UAH,Ukraine,,0,National Average,1295,375,15,37,1,1295_375_15_37,
2016-07-15,Bread (wheat) - Retail,Loaf,cereals and tubers,10.46,UAH,Ukraine,,0,National Average,1295,375,15,37,1,1295_375_15_37,
2016-08-15,Bread (wheat) - Retail,Loaf,cereals and tubers,10.46,UAH,Ukraine,,0,National Average,1295,375,15,37,1,1295_375_15_37,
2016-09-15,Bread (wheat) - Retail,Loaf,cereals and tubers,10.47,UAH,Ukraine,,0,National Average,1295,375,15,37,1,1295_375_15_37,
2016-10-15,Bread (wheat) - Retail,Loaf,cereals and tubers,10.52,UAH,Ukraine,,0,National Average,1295,375,15,37,1,1295_375_15_37,
2016-11-15,Bread (wheat) - Retail,Loaf,cereals and tubers,10.5833,UAH,Ukraine,,0,National Average,1295,375,15,37,1,1295_375_15_37,
2016-12-15,Bread (wheat) - Retail,Loaf,cereals and tubers,10.8267,UAH,Ukraine,,0,National Average,1295,375,15,37,1,1295_375_15_37,
2017-01-15,Bread (wheat) - Retail,Loaf,cereals and tubers,11.05,UAH,Ukraine,,0,National Average,1295,375,15,37,1,1295_375_15_37,
2017-02-15,Bread (wheat) - Retail,Loaf,cereals and tubers,11.5767,UAH,Ukraine,,0,National Average,1295,375,15,37,1,1295_375_15_37,
2017-03-15,Bread (wheat) - Retail,Loaf,cereals and tubers,11.8867,UAH,Ukraine,,0,National Average,1295,375,15,37,1,1295_375_15_37,
2017-04-15,Bread (wheat) - Retail,Loaf,cereals and tubers,12.01,UAH,Ukraine,,0,National Average,1295,375,15,37,1,1295_375_15_37,
2017-05-15,Bread (wheat) - Retail,Loaf,cereals and tubers,12.0433,UAH,Ukraine,,0,National Average,1295,375,15,37,1,1295_375_15_37,
2017-06-15,Bread (wheat) - Retail,Loaf,cereals and tubers,12.1167,UAH,Ukraine,,0,National Average,1295,375,15,37,1,1295_375_15_37,
2017-07-15,Bread (wheat) - Retail,Loaf,cereals and tubers,12.12,UAH,Ukraine,,0,National Average,1295,375,15,37,1,1295_375_15_37,
2017-09-15,Bread (wheat) - Retail,Loaf,cereals and tubers,12.38,UAH,Ukraine,,0,National Average,1295,375,15,37,1,1295_375_15_37,
2017-10-15,Bread (wheat) - Retail,Loaf,cereals and tubers,12.6833,UAH,Ukraine,,0,National Average,1295,375,15,37,1,1295_375_15_37,
2017-11-15,Bread (wheat) - Retail,Loaf,cereals and tubers,12.9667,UAH,Ukraine,,0,National Average,1295,375,15,37,1,1295_375_15_37,
2017-12-15,Bread (wheat) - Retail,Loaf,cereals and tubers,13.2333,UAH,Ukraine,,0,National Average,1295,375,15,37,1,1295_375_15_37,
2014-03-15,Fat (salo) - Retail,KG,oil and fats,24.1333,UAH,Ukraine,,0,National Average,1295,376,15,5,6,1295_376_15_5,
2014-04-15,Fat (salo) - Retail,KG,oil and fats,24.31,UAH,Ukraine,,0,National Average,1295,376,15,5,6,1295_376_15_5,
2014-05-15,Fat (salo) - Retail,KG,oil and fats,23.9533,UAH,Ukraine,,0,National Average,1295,376,15,5,6,1295_376_15_5,
2014-06-15,Fat (salo) - Retail,KG,oil and fats,23.81,UAH,Ukraine,,0,National Average,1295,376,15,5,6,1295_376_15_5,
2014-07-15,Fat (salo) - Retail,KG,oil and fats,23.9,UAH,Ukraine,,0,National Average,1295,376,15,5,6,1295_376_15_5,
2014-08-15,Fat (salo) - Retail,KG,oil and fats,24.6467,UAH,Ukraine,,0,National Average,1295,376,15,5,6,1295_376_15_5,
2014-09-15,Fat (salo) - Retail,KG,oil and fats,28.2933,UAH,Ukraine,,0,National Average,1295,376,15,5,6,1295_376_15_5,
2014-10-15,Fat (salo) - Retail,KG,oil and fats,33.84,UAH,Ukraine,,0,National Average,1295,376,15,5,6,1295_376_15_5,
2014-11-15,Fat (salo) - Retail,KG,oil and fats,35.06,UAH,Ukraine,,0,National Average,1295,376,15,5,6,1295_376_15_5,
2014-12-15,Fat (salo) - Retail,KG,oil and fats,34.9867,UAH,Ukraine,,0,National Average,1295,376,15,5,6,1295_376_15_5,
2015-01-15,Fat (salo) - Retail,KG,oil and fats,34.4467,UAH,Ukraine,,0,National Average,1295,376,15,5,6,1295_376_15_5,
2015-02-15,Fat (salo) - Retail,KG,oil and fats,35.1733,UAH,Ukraine,,0,National Average,1295,376,15,5,6,1295_376_15_5,
2015-03-15,Fat (salo) - Retail,KG,oil and fats,36.7567,UAH,Ukraine,,0,National Average,1295,376,15,5,6,1295_376_15_5,
2015-04-15,Fat (salo) - Retail,KG,oil and fats,36.38,UAH,Ukraine,,0,National Average,1295,376,15,5,6,1295_376_15_5,
2015-05-15,Fat (salo) - Retail,KG,oil and fats,35.6867,UAH,Ukraine,,0,National Average,1295,376,15,5,6,1295_376_15_5,
2015-06-15,Fat (salo) - Retail,KG,oil and fats,34.7767,UAH,Ukraine,,0,National Average,1295,376,15,5,6,1295_376_15_5,
2015-07-15,Fat (salo) - Retail,KG,oil and fats,35.7633,UAH,Ukraine,,0,National Average,1295,376,15,5,6,1295_376_15_5,
2015-08-15,Fat (salo) - Retail,KG,oil and fats,38.2967,UAH,Ukraine,,0,National Average,1295,376,15,5,6,1295_376_15_5,
2015-09-15,Fat (salo) - Retail,KG,oil and fats,41.15,UAH,Ukraine,,0,National Average,1295,376,15,5,6,1295_376_15_5,
2015-10-15,Fat (salo) - Retail,KG,oil and fats,44.5367,UAH,Ukraine,,0,National Average,1295,376,15,5,6,1295_376_15_5,
2015-11-15,Fat (salo) - Retail,KG,oil and fats,46.09,UAH,Ukraine,,0,National Average,1295,376,15,5,6,1295_376_15_5,
2015-12-15,Fat (salo) - Retail,KG,oil and fats,45.42,UAH,Ukraine,,0,National Average,1295,376,15,5,6,1295_376_15_5,
2016-01-15,Fat (salo) - Retail,KG,oil and fats,44.7667,UAH,Ukraine,,0,National Average,1295,376,15,5,6,1295_376_15_5,
2016-02-15,Fat (salo) - Retail,KG,oil and fats,43.07,UAH,Ukraine,,0,National Average,1295,376,15,5,6,1295_376_15_5,
2016-03-15,Fat (salo) - Retail,KG,oil and fats,41.45,UAH,Ukraine,,0,National Average,1295,376,15,5,6,1295_376_15_5,
2016-04-15,Fat (salo) - Retail,KG,oil and fats,40.2367,UAH,Ukraine,,0,National Average,1295,376,15,5,6,1295_376_15_5,
2016-05-15,Fat (salo) - Retail,KG,oil and fats,39.1767,UAH,Ukraine,,0,National Average,1295,376,15,5,6,1295_376_15_5,
2016-06-15,Fat (salo) - Retail,KG,oil and fats,37.52,UAH,Ukraine,,0,National Average,1295,376,15,5,6,1295_376_15_5,
2016-07-15,Fat (salo) - Retail,KG,oil and fats,36.72,UAH,Ukraine,,0,National Average,1295,376,15,5,6,1295_376_15_5,
2016-08-15,Fat (salo) - Retail,KG,oil and fats,36.12,UAH,Ukraine,,0,National Average,1295,376,15,5,6,1295_376_15_5,
2016-09-15,Fat (salo) - Retail,KG,oil and fats,37.33,UAH,Ukraine,,0,National Average,1295,376,15,5,6,1295_376_15_5,
2016-10-15,Fat (salo) - Retail,KG,oil and fats,39.3,UAH,Ukraine,,0,National Average,1295,376,15,5,6,1295_376_15_5,
2016-11-15,Fat (salo) - Retail,KG,oil and fats,40.5067,UAH,Ukraine,,0,National Average,1295,376,15,5,6,1295_376_15_5,
2016-12-15,Fat (salo) - Retail,KG,oil and fats,40.65,UAH,Ukraine,,0,National Average,1295,376,15,5,6,1295_376_15_5,
2017-01-15,Fat (salo) - Retail,KG,oil and fats,40.53,UAH,Ukraine,,0,National Average,1295,376,15,5,6,1295_376_15_5,
2017-02-15,Fat (salo) - Retail,KG,oil and fats,40.8067,UAH,Ukraine,,0,National Average,1295,376,15,5,6,1295_376_15_5,
2017-03-15,Fat (salo) - Retail,KG,oil and fats,40.3567,UAH,Ukraine,,0,National Average,1295,376,15,5,6,1295_376_15_5,
2017-04-15,Fat (salo) - Retail,KG,oil and fats,41.04,UAH,Ukraine,,0,National Average,1295,376,15,5,6,1295_376_15_5,
2017-05-15,Fat (salo) - Retail,KG,oil and fats,41.7333,UAH,Ukraine,,0,National Average,1295,376,15,5,6,1295_376_15_5,
2017-06-15,Fat (salo) - Retail,KG,oil and fats,44.15,UAH,Ukraine,,0,National Average,1295,376,15,5,6,1295_376_15_5,
2017-07-15,Fat (salo) - Retail,KG,oil and fats,46.9733,UAH,Ukraine,,0,National Average,1295,376,15,5,6,1295_376_15_5,
2017-09-15,Fat (salo) - Retail,KG,oil and fats,57.4733,UAH,Ukraine,,0,National Average,1295,376,15,5,6,1295_376_15_5,
2017-10-15,Fat (salo) - Retail,KG,oil and fats,64.7233,UAH,Ukraine,,0,National Average,1295,376,15,5,6,1295_376_15_5,
2017-11-15,Fat (salo) - Retail,KG,oil and fats,68.0667,UAH,Ukraine,,0,National Average,1295,376,15,5,6,1295_376_15_5,
2017-12-15,Fat (salo) - Retail,KG,oil and fats,68.2767,UAH,Ukraine,,0,National Average,1295,376,15,5,6,1295_376_15_5,
2014-03-15,Rice - Retail,KG,cereals and tubers,9.4067,UAH,Ukraine,,3148,Cherkasy,1858,52,15,5,1,1858_52_15_5,
2014-04-15,Rice - Retail,KG,cereals and tubers,9.9367,UAH,Ukraine,,3148,Cherkasy,1858,52,15,5,1,1858_52_15_5,
2014-05-15,Rice - Retail,KG,cereals and tubers,10.1833,UAH,Ukraine,,3148,Cherkasy,1858,52,15,5,1,1858_52_15_5,
2014-06-15,Rice - Retail,KG,cereals and tubers,10.49,UAH,Ukraine,,3148,Cherkasy,1858,52,15,5,1,1858_52_15_5,
2014-07-15,Rice - Retail,KG,cereals and tubers,10.7167,UAH,Ukraine,,3148,Cherkasy,1858,52,15,5,1,1858_52_15_5,
2014-08-15,Rice - Retail,KG,cereals and tubers,10.8,UAH,Ukraine,,3148,Cherkasy,1858,52,15,5,1,1858_52_15_5,
2014-09-15,Rice - Retail,KG,cereals and tubers,11.6633,UAH,Ukraine,,3148,Cherkasy,1858,52,15,5,1,1858_52_15_5,
2014-10-15,Rice - Retail,KG,cereals and tubers,12.6833,UAH,Ukraine,,3148,Cherkasy,1858,52,15,5,1,1858_52_15_5,
2014-11-15,Rice - Retail,KG,cereals and tubers,13.4067,UAH,Ukraine,,3148,Cherkasy,1858,52,15,5,1,1858_52_15_5,
2014-12-15,Rice - Retail,KG,cereals and tubers,16.0367,UAH,Ukraine,,3148,Cherkasy,1858,52,15,5,1,1858_52_15_5,
2015-01-15,Rice - Retail,KG,cereals and tubers,17.14,UAH,Ukraine,,3148,Cherkasy,1858,52,15,5,1,1858_52_15_5,
2015-02-15,Rice - Retail,KG,cereals and tubers,19.5567,UAH,Ukraine,,3148,Cherkasy,1858,52,15,5,1,1858_52_15_5,
2015-03-15,Rice - Retail,KG,cereals and tubers,25.94,UAH,Ukraine,,3148,Cherkasy,1858,52,15,5,1,1858_52_15_5,
2015-04-15,Rice - Retail,KG,cereals and tubers,24.2567,UAH,Ukraine,,3148,Cherkasy,1858,52,15,5,1,1858_52_15_5,
2015-05-15,Rice - Retail,KG,cereals and tubers,20.9467,UAH,Ukraine,,3148,Cherkasy,1858,52,15,5,1,1858_52_15_5,
2015-06-15,Rice - Retail,KG,cereals and tubers,19.4233,UAH,Ukraine,,3148,Cherkasy,1858,52,15,5,1,1858_52_15_5,
2015-07-15,Rice - Retail,KG,cereals and tubers,18.29,UAH,Ukraine,,3148,Cherkasy,1858,52,15,5,1,1858_52_15_5,
2015-08-15,Rice - Retail,KG,cereals and tubers,17.98,UAH,Ukraine,,3148,Cherkasy,1858,52,15,5,1,1858_52_15_5,
2015-09-15,Rice - Retail,KG,cereals and tubers,17.5433,UAH,Ukraine,,3148,Cherkasy,1858,52,15,5,1,1858_52_15_5,
2015-10-15,Rice - Retail,KG,cereals and tubers,16.8333,UAH,Ukraine,,3148,Cherkasy,1858,52,15,5,1,1858_52_15_5,
2015-11-15,Rice - Retail,KG,cereals and tubers,17.0933,UAH,Ukraine,,3148,Cherkasy,1858,52,15,5,1,1858_52_15_5,
2015-12-15,Rice - Retail,KG,cereals and tubers,17.9067,UAH,Ukraine,,3148,Cherkasy,1858,52,15,5,1,1858_52_15_5,
2016-01-15,Rice - Retail,KG,cereals and tubers,17.6233,UAH,Ukraine,,3148,Cherkasy,1858,52,15,5,1,1858_52_15_5,
2016-02-15,Rice - Retail,KG,cereals and tubers,16.7567,UAH,Ukraine,,3148,Cherkasy,1858,52,15,5,1,1858_52_15_5,
2016-03-15,Rice - Retail,KG,cereals and tubers,16.0833,UAH,Ukraine,,3148,Cherkasy,1858,52,15,5,1,1858_52_15_5,
2016-04-15,Rice - Retail,KG,cereals and tubers,15.62,UAH,Ukraine,,3148,Cherkasy,1858,52,15,5,1,1858_52_15_5,
2016-05-15,Rice - Retail,KG,cereals and tubers,15.0867,UAH,Ukraine,,3148,Cherkasy,1858,52,15,5,1,1858_52_15_5,
2016-06-15,Rice - Retail,KG,cereals and tubers,14.86,UAH,Ukraine,,3148,Cherkasy,1858,52,15,5,1,1858_52_15_5,
2016-07-15,Rice - Retail,KG,cereals and tubers,15.16,UAH,Ukraine,,3148,Cherkasy,1858,52,15,5,1,1858_52_15_5,
2016-08-15,Rice - Retail,KG,cereals and tubers,15.61,UAH,Ukraine,,3148,Cherkasy,1858,52,15,5,1,1858_52_15_5,
2016-09-15,Rice - Retail,KG,cereals and tubers,16.5233,UAH,Ukraine,,3148,Cherkasy,1858,52,15,5,1,1858_52_15_5,
2016-10-15,Rice - Retail,KG,cereals and tubers,16.2833,UAH,Ukraine,,3148,Cherkasy,1858,52,15,5,1,1858_52_15_5,
2016-11-15,Rice - Retail,KG,cereals and tubers,16.38,UAH,Ukraine,,3148,Cherkasy,1858,52,15,5,1,1858_52_15_5,
2016-12-15,Rice - Retail,KG,cereals and tubers,16.6833,UAH,Ukraine,,3148,Cherkasy,1858,52,15,5,1,1858_52_15_5,
2017-01-15,Rice - Retail,KG,cereals and tubers,16.5433,UAH,Ukraine,,3148,Cherkasy,1858,52,15,5,1,1858_52_15_5,
2017-02-15,Rice - Retail,KG,cereals and tubers,17.11,UAH,Ukraine,,3148,Cherkasy,1858,52,15,5,1,1858_52_15_5,
2017-03-15,Rice - Retail,KG,cereals and tubers,17.5967,UAH,Ukraine,,3148,Cherkasy,1858,52,15,5,1,1858_52_15_5,
2017-04-15,Rice - Retail,KG,cereals and tubers,17.4467,UAH,Ukraine,,3148,Cherkasy,1858,52,15,5,1,1858_52_15_5,
2017-05-15,Rice - Retail,KG,cereals and tubers,18.3433,UAH,Ukraine,,3148,Cherkasy,1858,52,15,5,1,1858_52_15_5,
2017-06-15,Rice - Retail,KG,cereals and tubers,19.06,UAH,Ukraine,,3148,Cherkasy,1858,52,15,5,1,1858_52_15_5,
2017-07-15,Rice - Retail,KG,cereals and tubers,19.7867,UAH,Ukraine,,3148,Cherkasy,1858,52,15,5,1,1858_52_15_5,
2017-09-15,Rice - Retail,KG,cereals and tubers,21.0867,UAH,Ukraine,,3148,Cherkasy,1858,52,15,5,1,1858_52_15_5,
2017-10-15,Rice - Retail,KG,cereals and tubers,21.5367,UAH,Ukraine,,3148,Cherkasy,1858,52,15,5,1,1858_52_15_5,
2017-11-15,Rice - Retail,KG,cereals and tubers,21.7967,UAH,Ukraine,,3148,Cherkasy,1858,52,15,5,1,1858_52_15_5,
2017-12-15,Rice - Retail,KG,cereals and tubers,21.67,UAH,Ukraine,,3148,Cherkasy,1858,52,15,5,1,1858_52_15_5,
2014-03-15,Milk - Retail,L,milk and dairy,8.4667,UAH,Ukraine,,3148,Cherkasy,1858,81,15,15,3,1858_81_15_15,
2014-04-15,Milk - Retail,L,milk and dairy,8.55,UAH,Ukraine,,3148,Cherkasy,1858,81,15,15,3,1858_81_15_15,
2014-05-15,Milk - Retail,L,milk and dairy,8.55,UAH,Ukraine,,3148,Cherkasy,1858,81,15,15,3,1858_81_15_15,
2014-06-15,Milk - Retail,L,milk and dairy,8.5033,UAH,Ukraine,,3148,Cherkasy,1858,81,15,15,3,1858_81_15_15,
2014-07-15,Milk - Retail,L,milk and dairy,8.3967,UAH,Ukraine,,3148,Cherkasy,1858,81,15,15,3,1858_81_15_15,
2014-08-15,Milk - Retail,L,milk and dairy,8.4367,UAH,Ukraine,,3148,Cherkasy,1858,81,15,15,3,1858_81_15_15,
2014-09-15,Milk - Retail,L,milk and dairy,8.54,UAH,Ukraine,,3148,Cherkasy,1858,81,15,15,3,1858_81_15_15,
2014-10-15,Milk - Retail,L,milk and dairy,8.5767,UAH,Ukraine,,3148,Cherkasy,1858,81,15,15,3,1858_81_15_15,
2014-11-15,Milk - Retail,L,milk and dairy,8.6133,UAH,Ukraine,,3148,Cherkasy,1858,81,15,15,3,1858_81_15_15,
2014-12-15,Milk - Retail,L,milk and dairy,8.7633,UAH,Ukraine,,3148,Cherkasy,1858,81,15,15,3,1858_81_15_15,
2015-01-15,Milk - Retail,L,milk and dairy,8.8967,UAH,Ukraine,,3148,Cherkasy,1858,81,15,15,3,1858_81_15_15,
2015-02-15,Milk - Retail,L,milk and dairy,9.0,UAH,Ukraine,,3148,Cherkasy,1858,81,15,15,3,1858_81_15_15,
2015-03-15,Milk - Retail,L,milk and dairy,9.3867,UAH,Ukraine,,3148,Cherkasy,1858,81,15,15,3,1858_81_15_15,
2015-04-15,Milk - Retail,L,milk and dairy,10.0267,UAH,Ukraine,,3148,Cherkasy,1858,81,15,15,3,1858_81_15_15,
2015-05-15,Milk - Retail,L,milk and dairy,10.27,UAH,Ukraine,,3148,Cherkasy,1858,81,15,15,3,1858_81_15_15,
2015-06-15,Milk - Retail,L,milk and dairy,10.67,UAH,Ukraine,,3148,Cherkasy,1858,81,15,15,3,1858_81_15_15,
2015-07-15,Milk - Retail,L,milk and dairy,11.0233,UAH,Ukraine,,3148,Cherkasy,1858,81,15,15,3,1858_81_15_15,
2015-08-15,Milk - Retail,L,milk and dairy,10.85,UAH,Ukraine,,3148,Cherkasy,1858,81,15,15,3,1858_81_15_15,
2015-09-15,Milk - Retail,L,milk and dairy,10.9433,UAH,Ukraine,,3148,Cherkasy,1858,81,15,15,3,1858_81_15_15,
2015-10-15,Milk - Retail,L,milk and dairy,11.1333,UAH,Ukraine,,3148,Cherkasy,1858,81,15,15,3,1858_81_15_15,
2015-11-15,Milk - Retail,L,milk and dairy,11.29,UAH,Ukraine,,3148,Cherkasy,1858,81,15,15,3,1858_81_15_15,
2015-12-15,Milk - Retail,L,milk and dairy,11.58,UAH,Ukraine,,3148,Cherkasy,1858,81,15,15,3,1858_81_15_15,
2016-01-15,Milk - Retail,L,milk and dairy,11.6267,UAH,Ukraine,,3148,Cherkasy,1858,81,15,15,3,1858_81_15_15,
2016-02-15,Milk - Retail,L,milk and dairy,11.5,UAH,Ukraine,,3148,Cherkasy,1858,81,15,15,3,1858_81_15_15,
2016-03-15,Milk - Retail,L,milk and dairy,11.54,UAH,Ukraine,,3148,Cherkasy,1858,81,15,15,3,1858_81_15_15,
2016-04-15,Milk - Retail,L,milk and dairy,11.6867,UAH,Ukraine,,3148,Cherkasy,1858,81,15,15,3,1858_81_15_15,
2016-05-15,Milk - Retail,L,milk and dairy,11.68,UAH,Ukraine,,3148,Cherkasy,1858,81,15,15,3,1858_81_15_15,
2016-06-15,Milk - Retail,L,milk and dairy,11.69,UAH,Ukraine,,3148,Cherkasy,1858,81,15,15,3,1858_81_15_15,
2016-07-15,Milk - Retail,L,milk and dairy,11.64,UAH,Ukraine,,3148,Cherkasy,1858,81,15,15,3,1858_81_15_15,
2016-08-15,Milk - Retail,L,milk and dairy,11.66,UAH,Ukraine,,3148,Cherkasy,1858,81,15,15,3,1858_81_15_15,
2016-09-15,Milk - Retail,L,milk and dairy,11.7067,UAH,Ukraine,,3148,Cherkasy,1858,81,15,15,3,1858_81_15_15,
2016-10-15,Milk - Retail,L,milk and dairy,12.2533,UAH,Ukraine,,3148,Cherkasy,1858,81,15,15,3,1858_81_15_15,
2016-11-15,Milk - Retail,L,milk and dairy,13.2367,UAH,Ukraine,,3148,Cherkasy,1858,81,15,15,3,1858_81_15_15,
2016-12-15,Milk - Retail,L,milk and dairy,14.53,UAH,Ukraine,,3148,Cherkasy,1858,81,15,15,3,1858_81_15_15,
2017-01-15,Milk - Retail,L,milk and dairy,16.4367,UAH,Ukraine,,3148,Cherkasy,1858,81,15,15,3,1858_81_15_15,
2017-02-15,Milk - Retail,L,milk and dairy,16.49,UAH,Ukraine,,3148,Cherkasy,1858,81,15,15,3,1858_81_15_15,
2017-03-15,Milk - Retail,L,milk and dairy,16.4167,UAH,Ukraine,,3148,Cherkasy,1858,81,15,15,3,1858_81_15_15,
2017-04-15,Milk - Retail,L,milk and dairy,16.8933,UAH,Ukraine,,3148,Cherkasy,1858,81,15,15,3,1858_81_15_15,
2017-05-15,Milk - Retail,L,milk and dairy,17.09,UAH,Ukraine,,3148,Cherkasy,1858,81,15,15,3,1858_81_15_15,
2017-06-15,Milk - Retail,L,milk and dairy,17.3167,UAH,Ukraine,,3148,Cherkasy,1858,81,15,15,3,1858_81_15_15,
2017-07-15,Milk - Retail,L,milk and dairy,16.9167,UAH,Ukraine,,3148,Cherkasy,1858,81,15,15,3,1858_81_15_15,
2017-09-15,Milk - Retail,L,milk and dairy,16.8267,UAH,Ukraine,,3148,Cherkasy,1858,81,15,15,3,1858_81_15_15,
2017-10-15,Milk - Retail,L,milk and dairy,17.3633,UAH,Ukraine,,3148,Cherkasy,1858,81,15,15,3,1858_81_15_15,
2017-11-15,Milk - Retail,L,milk and dairy,18.0433,UAH,Ukraine,,3148,Cherkasy,1858,81,15,15,3,1858_81_15_15,
2017-12-15,Milk - Retail,L,milk and dairy,18.2667,UAH,Ukraine,,3148,Cherkasy,1858,81,15,15,3,1858_81_15_15,
2014-03-15,Potatoes - Retail,KG,cereals and tubers,6.9933,UAH,Ukraine,,3148,Cherkasy,1858,83,15,5,1,1858_83_15_5,
2014-04-15,Potatoes - Retail,KG,cereals and tubers,6.98,UAH,Ukraine,,3148,Cherkasy,1858,83,15,5,1,1858_83_15_5,
2014-05-15,Potatoes - Retail,KG,cereals and tubers,7.7533,UAH,Ukraine,,3148,Cherkasy,1858,83,15,5,1,1858_83_15_5,
2014-06-15,Potatoes - Retail,KG,cereals and tubers,7.2133,UAH,Ukraine,,3148,Cherkasy,1858,83,15,5,1,1858_83_15_5,
2014-07-15,Potatoes - Retail,KG,cereals and tubers,4.1367,UAH,Ukraine,,3148,Cherkasy,1858,83,15,5,1,1858_83_15_5,
2014-08-15,Potatoes - Retail,KG,cereals and tubers,3.0567,UAH,Ukraine,,3148,Cherkasy,1858,83,15,5,1,1858_83_15_5,
2014-09-15,Potatoes - Retail,KG,cereals and tubers,2.96,UAH,Ukraine,,3148,Cherkasy,1858,83,15,5,1,1858_83_15_5,
2014-10-15,Potatoes - Retail,KG,cereals and tubers,2.74,UAH,Ukraine,,3148,Cherkasy,1858,83,15,5,1,1858_83_15_5,
2014-11-15,Potatoes - Retail,KG,cereals and tubers,2.7333,UAH,Ukraine,,3148,Cherkasy,1858,83,15,5,1,1858_83_15_5,
2014-12-15,Potatoes - Retail,KG,cereals and tubers,3.0467,UAH,Ukraine,,3148,Cherkasy,1858,83,15,5,1,1858_83_15_5,
2015-01-15,Potatoes - Retail,KG,cereals and tubers,3.4867,UAH,Ukraine,,3148,Cherkasy,1858,83,15,5,1,1858_83_15_5,
2015-02-15,Potatoes - Retail,KG,cereals and tubers,3.57,UAH,Ukraine,,3148,Cherkasy,1858,83,15,5,1,1858_83_15_5,
2015-03-15,Potatoes - Retail,KG,cereals and tubers,3.9133,UAH,Ukraine,,3148,Cherkasy,1858,83,15,5,1,1858_83_15_5,
2015-04-15,Potatoes - Retail,KG,cereals and tubers,3.48,UAH,Ukraine,,3148,Cherkasy,1858,83,15,5,1,1858_83_15_5,
2015-05-15,Potatoes - Retail,KG,cereals and tubers,3.2767,UAH,Ukraine,,3148,Cherkasy,1858,83,15,5,1,1858_83_15_5,
2015-06-15,Potatoes - Retail,KG,cereals and tubers,5.8867,UAH,Ukraine,,3148,Cherkasy,1858,83,15,5,1,1858_83_15_5,
2015-07-15,Potatoes - Retail,KG,cereals and tubers,4.65,UAH,Ukraine,,3148,Cherkasy,1858,83,15,5,1,1858_83_15_5,
2015-08-15,Potatoes - Retail,KG,cereals and tubers,3.8033,UAH,Ukraine,,3148,Cherkasy,1858,83,15,5,1,1858_83_15_5,
2015-09-15,Potatoes - Retail,KG,cereals and tubers,3.7933,UAH,Ukraine,,3148,Cherkasy,1858,83,15,5,1,1858_83_15_5,
2015-10-15,Potatoes - Retail,KG,cereals and tubers,4.48,UAH,Ukraine,,3148,Cherkasy,1858,83,15,5,1,1858_83_15_5,
2015-11-15,Potatoes - Retail,KG,cereals and tubers,5.2433,UAH,Ukraine,,3148,Cherkasy,1858,83,15,5,1,1858_83_15_5,
2015-12-15,Potatoes - Retail,KG,cereals and tubers,5.2333,UAH,Ukraine,,3148,Cherkasy,1858,83,15,5,1,1858_83_15_5,
2016-01-15,Potatoes - Retail,KG,cereals and tubers,5.8867,UAH,Ukraine,,3148,Cherkasy,1858,83,15,5,1,1858_83_15_5,
2016-02-15,Potatoes - Retail,KG,cereals and tubers,5.25,UAH,Ukraine,,3148,Cherkasy,1858,83,15,5,1,1858_83_15_5,
2016-03-15,Potatoes - Retail,KG,cereals and tubers,4.62,UAH,Ukraine,,3148,Cherkasy,1858,83,15,5,1,1858_83_15_5,
2016-04-15,Potatoes - Retail,KG,cereals and tubers,4.5833,UAH,Ukraine,,3148,Cherkasy,1858,83,15,5,1,1858_83_15_5,
2016-05-15,Potatoes - Retail,KG,cereals and tubers,5.0967,UAH,Ukraine,,3148,Cherkasy,1858,83,15,5,1,1858_83_15_5,
2016-06-15,Potatoes - Retail,KG,cereals and tubers,6.1867,UAH,Ukraine,,3148,Cherkasy,1858,83,15,5,1,1858_83_15_5,
2016-07-15,Potatoes - Retail,KG,cereals and tubers,5.29,UAH,Ukraine,,3148,Cherkasy,1858,83,15,5,1,1858_83_15_5,
2016-08-15,Potatoes - Retail,KG,cereals and tubers,4.61,UAH,Ukraine,,3148,Cherkasy,1858,83,15,5,1,1858_83_15_5,
2016-09-15,Potatoes - Retail,KG,cereals and tubers,4.5267,UAH,Ukraine,,3148,Cherkasy,1858,83,15,5,1,1858_83_15_5,
2016-10-15,Potatoes - Retail,KG,cereals and tubers,4.54,UAH,Ukraine,,3148,Cherkasy,1858,83,15,5,1,1858_83_15_5,
2016-11-15,Potatoes - Retail,KG,cereals and tubers,4.7633,UAH,Ukraine,,3148,Cherkasy,1858,83,15,5,1,1858_83_15_5,
2016-12-15,Potatoes - Retail,KG,cereals and tubers,5.2,UAH,Ukraine,,3148,Cherkasy,1858,83,15,5,1,1858_83_15_5,
2017-01-15,Potatoes - Retail,KG,cereals and tubers,5.9,UAH,Ukraine,,3148,Cherkasy,1858,83,15,5,1,1858_83_15_5,
2017-02-15,Potatoes - Retail,KG,cereals and tubers,6.3833,UAH,Ukraine,,3148,Cherkasy,1858,83,15,5,1,1858_83_15_5,
2017-03-15,Potatoes - Retail,KG,cereals and tubers,6.0867,UAH,Ukraine,,3148,Cherkasy,1858,83,15,5,1,1858_83_15_5,
2017-04-15,Potatoes - Retail,KG,cereals and tubers,6.36,UAH,Ukraine,,3148,Cherkasy,1858,83,15,5,1,1858_83_15_5,
2017-05-15,Potatoes - Retail,KG,cereals and tubers,8.8767,UAH,Ukraine,,3148,Cherkasy,1858,83,15,5,1,1858_83_15_5,
2017-06-15,Potatoes - Retail,KG,cereals and tubers,11.6,UAH,Ukraine,,3148,Cherkasy,1858,83,15,5,1,1858_83_15_5,
2017-07-15,Potatoes - Retail,KG,cereals and tubers,9.7067,UAH,Ukraine,,3148,Cherkasy,1858,83,15,5,1,1858_83_15_5,
2017-09-15,Potatoes - Retail,KG,cereals and tubers,6.7133,UAH,Ukraine,,3148,Cherkasy,1858,83,15,5,1,1858_83_15_5,
2017-10-15,Potatoes - Retail,KG,cereals and tubers,6.2467,UAH,Ukraine,,3148,Cherkasy,1858,83,15,5,1,1858_83_15_5,
2017-11-15,Potatoes - Retail,KG,cereals and tubers,6.1933,UAH,Ukraine,,3148,Cherkasy,1858,83,15,5,1,1858_83_15_5,
2017-12-15,Potatoes - Retail,KG,cereals and tubers,6.4467,UAH,Ukraine,,3148,Cherkasy,1858,83,15,5,1,1858_83_15_5,
"2014-03-15,Eggs - Retail,10 pcs,""meat, fish and eggs"",8.75,UAH,Ukraine,,3148,Cherkasy,1858,92,15,81,2,1858_92_15_81,"
"2014-04-15,Eggs - Retail,10 pcs,""meat, fish and eggs"",7.72,UAH,Ukraine,,3148,Cherkasy,1858,92,15,81,2,1858_92_15_81,"
"2014-05-15,Eggs - Retail,10 pcs,""meat, fish and eggs"",7.4067,UAH,Ukraine,,3148,Cherkasy,1858,92,15,81,2,1858_92_15_81,"
"2014-06-15,Eggs - Retail,10 pcs,""meat, fish and eggs"",6.6733,UAH,Ukraine,,3148,Cherkasy,1858,92,15,81,2,1858_92_15_81,"
"2014-07-15,Eggs - Retail,10 pcs,""meat, fish and eggs"",8.47,UAH,Ukraine,,3148,Cherkasy,1858,92,15,81,2,1858_92_15_81,"
"2014-08-15,Eggs - Retail,10 pcs,""meat, fish and eggs"",10.2067,UAH,Ukraine,,3148,Cherkasy,1858,92,15,81,2,1858_92_15_81,"
"2014-09-15,Eggs - Retail,10 pcs,""meat, fish and eggs"",11.67,UAH,Ukraine,,3148,Cherkasy,1858,92,15,81,2,1858_92_15_81,"
"2014-10-15,Eggs - Retail,10 pcs,""meat, fish and eggs"",12.85,UAH,Ukraine,,3148,Cherkasy,1858,92,15,81,2,1858_92_15_81,"
"2014-11-15,Eggs - Retail,10 pcs,""meat, fish and eggs"",12.98,UAH,Ukraine,,3148,Cherkasy,1858,92,15,81,2,1858_92_15_81,"
"2014-12-15,Eggs - Retail,10 pcs,""meat, fish and eggs"",14.06,UAH,Ukraine,,3148,Cherkasy,1858,92,15,81,2,1858_92_15_81,"
"2015-01-15,Eggs - Retail,10 pcs,""meat, fish and eggs"",14.2167,UAH,Ukraine,,3148,Cherkasy,1858,92,15,81,2,1858_92_15_81,"
"2015-02-15,Eggs - Retail,10 pcs,""meat, fish and eggs"",13.9833,UAH,Ukraine,,3148,Cherkasy,1858,92,15,81,2,1858_92_15_81,"
"2015-03-15,Eggs - Retail,10 pcs,""meat, fish and eggs"",13.78,UAH,Ukraine,,3148,Cherkasy,1858,92,15,81,2,1858_92_15_81,"
"2015-04-15,Eggs - Retail,10 pcs,""meat, fish and eggs"",12.8333,UAH,Ukraine,,3148,Cherkasy,1858,92,15,81,2,1858_92_15_81,"
"2015-05-15,Eggs - Retail,10 pcs,""meat, fish and eggs"",14.86,UAH,Ukraine,,3148,Cherkasy,1858,92,15,81,2,1858_92_15_81,"
"2015-06-15,Eggs - Retail,10 pcs,""meat, fish and eggs"",14.7533,UAH,Ukraine,,3148,Cherkasy,1858,92,15,81,2,1858_92_15_81,"
"2015-07-15,Eggs - Retail,10 pcs,""meat, fish and eggs"",13.56,UAH,Ukraine,,3148,Cherkasy,1858,92,15,81,2,1858_92_15_81,"
"2015-08-15,Eggs - Retail,10 pcs,""meat, fish and eggs"",14.83,UAH,Ukraine,,3148,Cherkasy,1858,92,15,81,2,1858_92_15_81,"
"2015-09-15,Eggs - Retail,10 pcs,""meat, fish and eggs"",16.79,UAH,Ukraine,,3148,Cherkasy,1858,92,15,81,2,1858_92_15_81,"
"2015-10-15,Eggs - Retail,10 pcs,""meat, fish and eggs"",18.05,UAH,Ukraine,,3148,Cherkasy,1858,92,15,81,2,1858_92_15_81,"
"2015-11-15,Eggs - Retail,10 pcs,""meat, fish and eggs"",21.0,UAH,Ukraine,,3148,Cherkasy,1858,92,15,81,2,1858_92_15_81,"
"2015-12-15,Eggs - Retail,10 pcs,""meat, fish and eggs"",23.8867,UAH,Ukraine,,3148,Cherkasy,1858,92,15,81,2,1858_92_15_81,"
"2016-01-15,Eggs - Retail,10 pcs,""meat, fish and eggs"",22.64,UAH,Ukraine,,3148,Cherkasy,1858,92,15,81,2,1858_92_15_81,"
"2016-02-15,Eggs - Retail,10 pcs,""meat, fish and eggs"",14.58,UAH,Ukraine,,3148,Cherkasy,1858,92,15,81,2,1858_92_15_81,"
"2016-03-15,Eggs - Retail,10 pcs,""meat, fish and eggs"",11.1967,UAH,Ukraine,,3148,Cherkasy,1858,92,15,81,2,1858_92_15_81,"
"2016-04-15,Eggs - Retail,10 pcs,""meat, fish and eggs"",9.7033,UAH,Ukraine,,3148,Cherkasy,1858,92,15,81,2,1858_92_15_81,"
"2016-05-15,Eggs - Retail,10 pcs,""meat, fish and eggs"",11.37,UAH,Ukraine,,3148,Cherkasy,1858,92,15,81,2,1858_92_15_81,"
"2016-06-15,Eggs - Retail,10 pcs,""meat, fish and eggs"",11.9467,UAH,Ukraine,,3148,Cherkasy,1858,92,15,81,2,1858_92_15_81,"
"2016-07-15,Eggs - Retail,10 pcs,""meat, fish and eggs"",12.56,UAH,Ukraine,,3148,Cherkasy,1858,92,15,81,2,1858_92_15_81,"
"2016-08-15,Eggs - Retail,10 pcs,""meat, fish and eggs"",13.19,UAH,Ukraine,,3148,Cherkasy,1858,92,15,81,2,1858_92_15_81,"
"2016-09-15,Eggs - Retail,10 pcs,""meat, fish and eggs"",13.5467,UAH,Ukraine,,3148,Cherkasy,1858,92,15,81,2,1858_92_15_81,"
"2016-10-15,Eggs - Retail,10 pcs,""meat, fish and eggs"",21.9933,UAH,Ukraine,,3148,Cherkasy,1858,92,15,81,2,1858_92_15_81,"
"2016-11-15,Eggs - Retail,10 pcs,""meat, fish and eggs"",19.8133,UAH,Ukraine,,3148,Cherkasy,1858,92,15,81,2,1858_92_15_81,"
"2016-12-15,Eggs - Retail,10 pcs,""meat, fish and eggs"",20.4433,UAH,Ukraine,,3148,Cherkasy,1858,92,15,81,2,1858_92_15_81,"
"2017-01-15,Eggs - Retail,10 pcs,""meat, fish and eggs"",19.49,UAH,Ukraine,,3148,Cherkasy,1858,92,15,81,2,1858_92_15_81,"
"2017-02-15,Eggs - Retail,10 pcs,""meat, fish and eggs"",14.66,UAH,Ukraine,,3148,Cherkasy,1858,92,15,81,2,1858_92_15_81,"
"2017-03-15,Eggs - Retail,10 pcs,""meat, fish and eggs"",13.8833,UAH,Ukraine,,3148,Cherkasy,1858,92,15,81,2,1858_92_15_81,"
"2017-04-15,Eggs - Retail,10 pcs,""meat, fish and eggs"",11.1367,UAH,Ukraine,,3148,Cherkasy,1858,92,15,81,2,1858_92_15_81,"
"2017-05-15,Eggs - Retail,10 pcs,""meat, fish and eggs"",9.3267,UAH,Ukraine,,3148,Cherkasy,1858,92,15,81,2,1858_92_15_81,"
"2017-06-15,Eggs - Retail,10 pcs,""meat, fish and eggs"",12.2933,UAH,Ukraine,,3148,Cherkasy,1858,92,15,81,2,1858_92_15_81,"
"2017-07-15,Eggs - Retail,10 pcs,""meat, fish and eggs"",10.2567,UAH,Ukraine,,3148,Cherkasy,1858,92,15,81,2,1858_92_15_81,"
"2017-09-15,Eggs - Retail,10 pcs,""meat, fish and eggs"",19.5333,UAH,Ukraine,,3148,Cherkasy,1858,92,15,81,2,1858_92_15_81,"
"2017-10-15,Eggs - Retail,10 pcs,""meat, fish and eggs"",22.28,UAH,Ukraine,,3148,Cherkasy,1858,92,15,81,2,1858_92_15_81,"
"2017-11-15,Eggs - Retail,10 pcs,""meat, fish and eggs"",24.6133,UAH,Ukraine,,3148,Cherkasy,1858,92,15,81,2,1858_92_15_81,"
"2017-12-15,Eggs - Retail,10 pcs,""meat, fish and eggs"",26.0633,UAH,Ukraine,,3148,Cherkasy,1858,92,15,81,2,1858_92_15_81,"
2014-03-15,Sugar - Retail,KG,miscellaneous food,8.9167,UAH,Ukraine,,3148,Cherkasy,1858,97,15,5,7,1858_97_15_5,
2014-04-15,Sugar - Retail,KG,miscellaneous food,9.46,UAH,Ukraine,,3148,Cherkasy,1858,97,15,5,7,1858_97_15_5,
2014-05-15,Sugar - Retail,KG,miscellaneous food,10.0433,UAH,Ukraine,,3148,Cherkasy,1858,97,15,5,7,1858_97_15_5,
2014-06-15,Sugar - Retail,KG,miscellaneous food,9.8,UAH,Ukraine,,3148,Cherkasy,1858,97,15,5,7,1858_97_15_5,
2014-07-15,Sugar - Retail,KG,miscellaneous food,9.73,UAH,Ukraine,,3148,Cherkasy,1858,97,15,5,7,1858_97_15_5,
2014-08-15,Sugar - Retail,KG,miscellaneous food,9.9833,UAH,Ukraine,,3148,Cherkasy,1858,97,15,5,7,1858_97_15_5,
2014-09-15,Sugar - Retail,KG,miscellaneous food,9.8467,UAH,Ukraine,,3148,Cherkasy,1858,97,15,5,7,1858_97_15_5,
2014-10-15,Sugar - Retail,KG,miscellaneous food,8.7767,UAH,Ukraine,,3148,Cherkasy,1858,97,15,5,7,1858_97_15_5,
2014-11-15,Sugar - Retail,KG,miscellaneous food,8.14,UAH,Ukraine,,3148,Cherkasy,1858,97,15,5,7,1858_97_15_5,
2014-12-15,Sugar - Retail,KG,miscellaneous food,7.9667,UAH,Ukraine,,3148,Cherkasy,1858,97,15,5,7,1858_97_15_5,
2015-01-15,Sugar - Retail,KG,miscellaneous food,8.44,UAH,Ukraine,,3148,Cherkasy,1858,97,15,5,7,1858_97_15_5,
2015-02-15,Sugar - Retail,KG,miscellaneous food,10.2733,UAH,Ukraine,,3148,Cherkasy,1858,97,15,5,7,1858_97_15_5,
2015-03-15,Sugar - Retail,KG,miscellaneous food,13.14,UAH,Ukraine,,3148,Cherkasy,1858,97,15,5,7,1858_97_15_5,
2015-04-15,Sugar - Retail,KG,miscellaneous food,11.1833,UAH,Ukraine,,3148,Cherkasy,1858,97,15,5,7,1858_97_15_5,
2015-05-15,Sugar - Retail,KG,miscellaneous food,10.79,UAH,Ukraine,,3148,Cherkasy,1858,97,15,5,7,1858_97_15_5,
2015-06-15,Sugar - Retail,KG,miscellaneous food,10.92,UAH,Ukraine,,3148,Cherkasy,1858,97,15,5,7,1858_97_15_5,
2015-07-15,Sugar - Retail,KG,miscellaneous food,11.6367,UAH,Ukraine,,3148,Cherkasy,1858,97,15,5,7,1858_97_15_5,
2015-08-15,Sugar - Retail,KG,miscellaneous food,11.4667,UAH,Ukraine,,3148,Cherkasy,1858,97,15,5,7,1858_97_15_5,
2015-09-15,Sugar - Retail,KG,miscellaneous food,11.9533,UAH,Ukraine,,3148,Cherkasy,1858,97,15,5,7,1858_97_15_5,
2015-10-15,Sugar - Retail,KG,miscellaneous food,14.2567,UAH,Ukraine,,3148,Cherkasy,1858,97,15,5,7,1858_97_15_5,
2015-11-15,Sugar - Retail,KG,miscellaneous food,15.15,UAH,Ukraine,,3148,Cherkasy,1858,97,15,5,7,1858_97_15_5,
2015-12-15,Sugar - Retail,KG,miscellaneous food,15.3567,UAH,Ukraine,,3148,Cherkasy,1858,97,15,5,7,1858_97_15_5,
2016-01-15,Sugar - Retail,KG,miscellaneous food,15.0433,UAH,Ukraine,,3148,Cherkasy,1858,97,15,5,7,1858_97_15_5,
2016-02-15,Sugar - Retail,KG,miscellaneous food,14.9167,UAH,Ukraine,,3148,Cherkasy,1858,97,15,5,7,1858_97_15_5,
2016-03-15,Sugar - Retail,KG,miscellaneous food,14.7033,UAH,Ukraine,,3148,Cherkasy,1858,97,15,5,7,1858_97_15_5,
2016-04-15,Sugar - Retail,KG,miscellaneous food,14.31,UAH,Ukraine,,3148,Cherkasy,1858,97,15,5,7,1858_97_15_5,
2016-05-15,Sugar - Retail,KG,miscellaneous food,13.87,UAH,Ukraine,,3148,Cherkasy,1858,97,15,5,7,1858_97_15_5,
2016-06-15,Sugar - Retail,KG,miscellaneous food,13.6267,UAH,Ukraine,,3148,Cherkasy,1858,97,15,5,7,1858_97_15_5,
2016-07-15,Sugar - Retail,KG,miscellaneous food,13.8833,UAH,Ukraine,,3148,Cherkasy,1858,97,15,5,7,1858_97_15_5,
2016-08-15,Sugar - Retail,KG,miscellaneous food,13.74,UAH,Ukraine,,3148,Cherkasy,1858,97,15,5,7,1858_97_15_5,
2016-09-15,Sugar - Retail,KG,miscellaneous food,13.65,UAH,Ukraine,,3148,Cherkasy,1858,97,15,5,7,1858_97_15_5,
2016-10-15,Sugar - Retail,KG,miscellaneous food,13.8133,UAH,Ukraine,,3148,Cherkasy,1858,97,15,5,7,1858_97_15_5,
2016-11-15,Sugar - Retail,KG,miscellaneous food,14.8067,UAH,Ukraine,,3148,Cherkasy,1858,97,15,5,7,1858_97_15_5,
2016-12-15,Sugar - Retail,KG,miscellaneous food,14.5633,UAH,Ukraine,,3148,Cherkasy,1858,97,15,5,7,1858_97_15_5,
2017-01-15,Sugar - Retail,KG,miscellaneous food,14.7167,UAH,Ukraine,,3148,Cherkasy,1858,97,15,5,7,1858_97_15_5,
2017-02-15,Sugar - Retail,KG,miscellaneous food,15.61,UAH,Ukraine,,3148,Cherkasy,1858,97,15,5,7,1858_97_15_5,
2017-03-15,Sugar - Retail,KG,miscellaneous food,16.02,UAH,Ukraine,,3148,Cherkasy,1858,97,15,5,7,1858_97_15_5,
2017-04-15,Sugar - Retail,KG,miscellaneous food,16.3,UAH,Ukraine,,3148,Cherkasy,1858,97,15,5,7,1858_97_15_5,
2017-05-15,Sugar - Retail,KG,miscellaneous food,16.2633,UAH,Ukraine,,3148,Cherkasy,1858,97,15,5,7,1858_97_15_5,
2017-06-15,Sugar - Retail,KG,miscellaneous food,16.5567,UAH,Ukraine,,3148,Cherkasy,1858,97,15,5,7,1858_97_15_5,
2017-07-15,Sugar - Retail,KG,miscellaneous food,16.52,UAH,Ukraine,,3148,Cherkasy,1858,97,15,5,7,1858_97_15_5,
2017-09-15,Sugar - Retail,KG,miscellaneous food,16.0933,UAH,Ukraine,,3148,Cherkasy,1858,97,15,5,7,1858_97_15_5,
2017-10-15,Sugar - Retail,KG,miscellaneous food,14.1967,UAH,Ukraine,,3148,Cherkasy,1858,97,15,5,7,1858_97_15_5,
2017-11-15,Sugar - Retail,KG,miscellaneous food,13.1067,UAH,Ukraine,,3148,Cherkasy,1858,97,15,5,7,1858_97_15_5,
2017-12-15,Sugar - Retail,KG,miscellaneous food,12.5233,UAH,Ukraine,,3148,Cherkasy,1858,97,15,5,7,1858_97_15_5,
2014-03-15,Pasta - Retail,KG,cereals and tubers,5.2567,UAH,Ukraine,,3148,Cherkasy,1858,112,15,5,1,1858_112_15_5,
2014-04-15,Pasta - Retail,KG,cereals and tubers,5.7467,UAH,Ukraine,,3148,Cherkasy,1858,112,15,5,1,1858_112_15_5,
2014-05-15,Pasta - Retail,KG,cereals and tubers,6.21,UAH,Ukraine,,3148,Cherkasy,1858,112,15,5,1,1858_112_15_5,
2014-06-15,Pasta - Retail,KG,cereals and tubers,6.51,UAH,Ukraine,,3148,Cherkasy,1858,112,15,5,1,1858_112_15_5,
2014-07-15,Pasta - Retail,KG,cereals and tubers,6.58,UAH,Ukraine,,3148,Cherkasy,1858,112,15,5,1,1858_112_15_5,
2014-08-15,Pasta - Retail,KG,cereals and tubers,6.57,UAH,Ukraine,,3148,Cherkasy,1858,112,15,5,1,1858_112_15_5,
2014-09-15,Pasta - Retail,KG,cereals and tubers,6.5933,UAH,Ukraine,,3148,Cherkasy,1858,112,15,5,1,1858_112_15_5,
2014-10-15,Pasta - Retail,KG,cereals and tubers,6.6067,UAH,Ukraine,,3148,Cherkasy,1858,112,15,5,1,1858_112_15_5,
2014-11-15,Pasta - Retail,KG,cereals and tubers,6.9533,UAH,Ukraine,,3148,Cherkasy,1858,112,15,5,1,1858_112_15_5,
2014-12-15,Pasta - Retail,KG,cereals and tubers,7.22,UAH,Ukraine,,3148,Cherkasy,1858,112,15,5,1,1858_112_15_5,
2015-01-15,Pasta - Retail,KG,cereals and tubers,7.67,UAH,Ukraine,,3148,Cherkasy,1858,112,15,5,1,1858_112_15_5,
2015-02-15,Pasta - Retail,KG,cereals and tubers,8.2033,UAH,Ukraine,,3148,Cherkasy,1858,112,15,5,1,1858_112_15_5,
2015-03-15,Pasta - Retail,KG,cereals and tubers,10.74,UAH,Ukraine,,3148,Cherkasy,1858,112,15,5,1,1858_112_15_5,
2015-04-15,Pasta - Retail,KG,cereals and tubers,11.1167,UAH,Ukraine,,3148,Cherkasy,1858,112,15,5,1,1858_112_15_5,
2015-05-15,Pasta - Retail,KG,cereals and tubers,11.0267,UAH,Ukraine,,3148,Cherkasy,1858,112,15,5,1,1858_112_15_5,
2015-06-15,Pasta - Retail,KG,cereals and tubers,9.85,UAH,Ukraine,,3148,Cherkasy,1858,112,15,5,1,1858_112_15_5,
2015-07-15,Pasta - Retail,KG,cereals and tubers,9.1367,UAH,Ukraine,,3148,Cherkasy,1858,112,15,5,1,1858_112_15_5,
2015-08-15,Pasta - Retail,KG,cereals and tubers,8.89,UAH,Ukraine,,3148,Cherkasy,1858,112,15,5,1,1858_112_15_5,
2015-09-15,Pasta - Retail,KG,cereals and tubers,8.6733,UAH,Ukraine,,3148,Cherkasy,1858,112,15,5,1,1858_112_15_5,
2015-10-15,Pasta - Retail,KG,cereals and tubers,8.65,UAH,Ukraine,,3148,Cherkasy,1858,112,15,5,1,1858_112_15_5,
2015-11-15,Pasta - Retail,KG,cereals and tubers,9.0533,UAH,Ukraine,,3148,Cherkasy,1858,112,15,5,1,1858_112_15_5,
2015-12-15,Pasta - Retail,KG,cereals and tubers,9.61,UAH,Ukraine,,3148,Cherkasy,1858,112,15,5,1,1858_112_15_5,
2016-01-15,Pasta - Retail,KG,cereals and tubers,9.9133,UAH,Ukraine,,3148,Cherkasy,1858,112,15,5,1,1858_112_15_5,
2016-02-15,Pasta - Retail,KG,cereals and tubers,9.95,UAH,Ukraine,,3148,Cherkasy,1858,112,15,5,1,1858_112_15_5,
2016-03-15,Pasta - Retail,KG,cereals and tubers,9.6233,UAH,Ukraine,,3148,Cherkasy,1858,112,15,5,1,1858_112_15_5,
2016-04-15,Pasta - Retail,KG,cereals and tubers,9.6267,UAH,Ukraine,,3148,Cherkasy,1858,112,15,5,1,1858_112_15_5,
2016-05-15,Pasta - Retail,KG,cereals and tubers,9.4,UAH,Ukraine,,3148,Cherkasy,1858,112,15,5,1,1858_112_15_5,
2016-06-15,Pasta - Retail,KG,cereals and tubers,9.0767,UAH,Ukraine,,3148,Cherkasy,1858,112,15,5,1,1858_112_15_5,
2016-07-15,Pasta - Retail,KG,cereals and tubers,9.1,UAH,Ukraine,,3148,Cherkasy,1858,112,15,5,1,1858_112_15_5,
2016-08-15,Pasta - Retail,KG,cereals and tubers,9.09,UAH,Ukraine,,3148,Cherkasy,1858,112,15,5,1,1858_112_15_5,
2016-09-15,Pasta - Retail,KG,cereals and tubers,9.06,UAH,Ukraine,,3148,Cherkasy,1858,112,15,5,1,1858_112_15_5,
2016-10-15,Pasta - Retail,KG,cereals and tubers,9.1433,UAH,Ukraine,,3148,Cherkasy,1858,112,15,5,1,1858_112_15_5,
2016-11-15,Pasta - Retail,KG,cereals and tubers,9.2533,UAH,Ukraine,,3148,Cherkasy,1858,112,15,5,1,1858_112_15_5,
2016-12-15,Pasta - Retail,KG,cereals and tubers,9.16,UAH,Ukraine,,3148,Cherkasy,1858,112,15,5,1,1858_112_15_5,
2017-01-15,Pasta - Retail,KG,cereals and tubers,9.4667,UAH,Ukraine,,3148,Cherkasy,1858,112,15,5,1,1858_112_15_5,
2017-02-15,Pasta - Retail,KG,cereals and tubers,9.84,UAH,Ukraine,,3148,Cherkasy,1858,112,15,5,1,1858_112_15_5,
2017-03-15,Pasta - Retail,KG,cereals and tubers,9.6233,UAH,Ukraine,,3148,Cherkasy,1858,112,15,5,1,1858_112_15_5,
2017-04-15,Pasta - Retail,KG,cereals and tubers,9.7067,UAH,Ukraine,,3148,Cherkasy,1858,112,15,5,1,1858_112_15_5,
2017-05-15,Pasta - Retail,KG,cereals and tubers,9.6933,UAH,Ukraine,,3148,Cherkasy,1858,112,15,5,1,1858_112_15_5,
2017-06-15,Pasta - Retail,KG,cereals and tubers,9.6133,UAH,Ukraine,,3148,Cherkasy,1858,112,15,5,1,1858_112_15_5,
2017-07-15,Pasta - Retail,KG,cereals and tubers,9.57,UAH,Ukraine,,3148,Cherkasy,1858,112,15,5,1,1858_112_15_5,
2017-09-15,Pasta - Retail,KG,cereals and tubers,10.3167,UAH,Ukraine,,3148,Cherkasy,1858,112,15,5,1,1858_112_15_5,
2017-10-15,Pasta - Retail,KG,cereals and tubers,10.4933,UAH,Ukraine,,3148,Cherkasy,1858,112,15,5,1,1858_112_15_5,
2017-11-15,Pasta - Retail,KG,cereals and tubers,10.79,UAH,Ukraine,,3148,Cherkasy,1858,112,15,5,1,1858_112_15_5,
2017-12-15,Pasta - Retail,KG,cereals and tubers,10.8533,UAH,Ukraine,,3148,Cherkasy,1858,112,15,5,1,1858_112_15_5,
"2014-03-15,""Meat (chicken, whole) - Retail"",KG,""meat, fish and eggs"",21.72,UAH,Ukraine,,3148,Cherkasy,1858,125,15,5,2,1858_125_15_5,"
"2014-04-15,""Meat (chicken, whole) - Retail"",KG,""meat, fish and eggs"",22.6733,UAH,Ukraine,,3148,Cherkasy,1858,125,15,5,2,1858_125_15_5,"
"2014-05-15,""Meat (chicken, whole) - Retail"",KG,""meat, fish and eggs"",25.6033,UAH,Ukraine,,3148,Cherkasy,1858,125,15,5,2,1858_125_15_5,"
"2014-06-15,""Meat (chicken, whole) - Retail"",KG,""meat, fish and eggs"",27.0467,UAH,Ukraine,,3148,Cherkasy,1858,125,15,5,2,1858_125_15_5,"
"2014-07-15,""Meat (chicken, whole) - Retail"",KG,""meat, fish and eggs"",29.5533,UAH,Ukraine,,3148,Cherkasy,1858,125,15,5,2,1858_125_15_5,"
"2014-08-15,""Meat (chicken, whole) - Retail"",KG,""meat, fish and eggs"",29.33,UAH,Ukraine,,3148,Cherkasy,1858,125,15,5,2,1858_125_15_5,"
"2014-09-15,""Meat (chicken, whole) - Retail"",KG,""meat, fish and eggs"",28.69,UAH,Ukraine,,3148,Cherkasy,1858,125,15,5,2,1858_125_15_5,"
"2014-10-15,""Meat (chicken, whole) - Retail"",KG,""meat, fish and eggs"",30.9,UAH,Ukraine,,3148,Cherkasy,1858,125,15,5,2,1858_125_15_5,"
"2014-11-15,""Meat (chicken, whole) - Retail"",KG,""meat, fish and eggs"",30.6667,UAH,Ukraine,,3148,Cherkasy,1858,125,15,5,2,1858_125_15_5,"
"2014-12-15,""Meat (chicken, whole) - Retail"",KG,""meat, fish and eggs"",31.0133,UAH,Ukraine,,3148,Cherkasy,1858,125,15,5,2,1858_125_15_5,"
"2015-01-15,""Meat (chicken, whole) - Retail"",KG,""meat, fish and eggs"",30.4767,UAH,Ukraine,,3148,Cherkasy,1858,125,15,5,2,1858_125_15_5,"
"2015-02-15,""Meat (chicken, whole) - Retail"",KG,""meat, fish and eggs"",29.4367,UAH,Ukraine,,3148,Cherkasy,1858,125,15,5,2,1858_125_15_5,"
"2015-03-15,""Meat (chicken, whole) - Retail"",KG,""meat, fish and eggs"",32.9233,UAH,Ukraine,,3148,Cherkasy,1858,125,15,5,2,1858_125_15_5,"
"2015-04-15,""Meat (chicken, whole) - Retail"",KG,""meat, fish and eggs"",35.89,UAH,Ukraine,,3148,Cherkasy,1858,125,15,5,2,1858_125_15_5,"
"2015-05-15,""Meat (chicken, whole) - Retail"",KG,""meat, fish and eggs"",36.3667,UAH,Ukraine,,3148,Cherkasy,1858,125,15,5,2,1858_125_15_5,"
"2015-06-15,""Meat (chicken, whole) - Retail"",KG,""meat, fish and eggs"",36.3733,UAH,Ukraine,,3148,Cherkasy,1858,125,15,5,2,1858_125_15_5,"
"2015-07-15,""Meat (chicken, whole) - Retail"",KG,""meat, fish and eggs"",35.61,UAH,Ukraine,,3148,Cherkasy,1858,125,15,5,2,1858_125_15_5,"
"2015-08-15,""Meat (chicken, whole) - Retail"",KG,""meat, fish and eggs"",35.65,UAH,Ukraine,,3148,Cherkasy,1858,125,15,5,2,1858_125_15_5,"
"2015-09-15,""Meat (chicken, whole) - Retail"",KG,""meat, fish and eggs"",37.0,UAH,Ukraine,,3148,Cherkasy,1858,125,15,5,2,1858_125_15_5,"
"2015-10-15,""Meat (chicken, whole) - Retail"",KG,""meat, fish and eggs"",36.91,UAH,Ukraine,,3148,Cherkasy,1858,125,15,5,2,1858_125_15_5,"
"2015-11-15,""Meat (chicken, whole) - Retail"",KG,""meat, fish and eggs"",39.5067,UAH,Ukraine,,3148,Cherkasy,1858,125,15,5,2,1858_125_15_5,"
"2015-12-15,""Meat (chicken, whole) - Retail"",KG,""meat, fish and eggs"",39.77,UAH,Ukraine,,3148,Cherkasy,1858,125,15,5,2,1858_125_15_5,"
"2016-01-15,""Meat (chicken, whole) - Retail"",KG,""meat, fish and eggs"",40.5767,UAH,Ukraine,,3148,Cherkasy,1858,125,15,5,2,1858_125_15_5,"
"2016-02-15,""Meat (chicken, whole) - Retail"",KG,""meat, fish and eggs"",39.0933,UAH,Ukraine,,3148,Cherkasy,1858,125,15,5,2,1858_125_15_5,"
"2016-03-15,""Meat (chicken, whole) - Retail"",KG,""meat, fish and eggs"",37.9667,UAH,Ukraine,,3148,Cherkasy,1858,125,15,5,2,1858_125_15_5,"
"2016-04-15,""Meat (chicken, whole) - Retail"",KG,""meat, fish and eggs"",38.9233,UAH,Ukraine,,3148,Cherkasy,1858,125,15,5,2,1858_125_15_5,"
"2016-05-15,""Meat (chicken, whole) - Retail"",KG,""meat, fish and eggs"",41.1967,UAH,Ukraine,,3148,Cherkasy,1858,125,15,5,2,1858_125_15_5,"
"2016-06-15,""Meat (chicken, whole) - Retail"",KG,""meat, fish and eggs"",39.0067,UAH,Ukraine,,3148,Cherkasy,1858,125,15,5,2,1858_125_15_5,"
"2016-07-15,""Meat (chicken, whole) - Retail"",KG,""meat, fish and eggs"",39.14,UAH,Ukraine,,3148,Cherkasy,1858,125,15,5,2,1858_125_15_5,"
"2016-08-15,""Meat (chicken, whole) - Retail"",KG,""meat, fish and eggs"",40.2,UAH,Ukraine,,3148,Cherkasy,1858,125,15,5,2,1858_125_15_5,"
"2016-09-15,""Meat (chicken, whole) - Retail"",KG,""meat, fish and eggs"",42.3467,UAH,Ukraine,,3148,Cherkasy,1858,125,15,5,2,1858_125_15_5,"
"2016-10-15,""Meat (chicken, whole) - Retail"",KG,""meat, fish and eggs"",42.1833,UAH,Ukraine,,3148,Cherkasy,1858,125,15,5,2,1858_125_15_5,"
"2016-11-15,""Meat (chicken, whole) - Retail"",KG,""meat, fish and eggs"",40.49,UAH,Ukraine,,3148,Cherkasy,1858,125,15,5,2,1858_125_15_5,"
"2016-12-15,""Meat (chicken, whole) - Retail"",KG,""meat, fish and eggs"",40.3367,UAH,Ukraine,,3148,Cherkasy,1858,125,15,5,2,1858_125_15_5,"
"2017-01-15,""Meat (chicken, whole) - Retail"",KG,""meat, fish and eggs"",42.54,UAH,Ukraine,,3148,Cherkasy,1858,125,15,5,2,1858_125_15_5,"
"2017-02-15,""Meat (chicken, whole) - Retail"",KG,""meat, fish and eggs"",41.83,UAH,Ukraine,,3148,Cherkasy,1858,125,15,5,2,1858_125_15_5,"
"2017-03-15,""Meat (chicken, whole) - Retail"",KG,""meat, fish and eggs"",41.88,UAH,Ukraine,,3148,Cherkasy,1858,125,15,5,2,1858_125_15_5,"
"2017-04-15,""Meat (chicken, whole) - Retail"",KG,""meat, fish and eggs"",43.7233,UAH,Ukraine,,3148,Cherkasy,1858,125,15,5,2,1858_125_15_5,"
"2017-05-15,""Meat (chicken, whole) - Retail"",KG,""meat, fish and eggs"",43.6067,UAH,Ukraine,,3148,Cherkasy,1858,125,15,5,2,1858_125_15_5,"
"2017-06-15,""Meat (chicken, whole) - Retail"",KG,""meat, fish and eggs"",44.19,UAH,Ukraine,,3148,Cherkasy,1858,125,15,5,2,1858_125_15_5,"
"2017-07-15,""Meat (chicken, whole) - Retail"",KG,""meat, fish and eggs"",49.04,UAH,Ukraine,,3148,Cherkasy,1858,125,15,5,2,1858_125_15_5,"
"2017-09-15,""Meat (chicken, whole) - Retail"",KG,""meat, fish and eggs"",54.5267,UAH,Ukraine,,3148,Cherkasy,1858,125,15,5,2,1858_125_15_5,"
"2017-10-15,""Meat (chicken, whole) - Retail"",KG,""meat, fish and eggs"",53.95,UAH,Ukraine,,3148,Cherkasy,1858,125,15,5,2,1858_125_15_5,"
"2017-11-15,""Meat (chicken, whole) - Retail"",KG,""meat, fish and eggs"",50.75,UAH,Ukraine,,3148,Cherkasy,1858,125,15,5,2,1858_125_15_5,"
"2017-12-15,""Meat (chicken, whole) - Retail"",KG,""meat, fish and eggs"",50.4133,UAH,Ukraine,,3148,Cherkasy,1858,125,15,5,2,1858_125_15_5,"
"2014-03-15,Meat (pork) - Retail,KG,""meat, fish and eggs"",45.69,UAH,Ukraine,,3148,Cherkasy,1858,140,15,5,2,1858_140_15_5,"
"2014-04-15,Meat (pork) - Retail,KG,""meat, fish and eggs"",49.9233,UAH,Ukraine,,3148,Cherkasy,1858,140,15,5,2,1858_140_15_5,"
"2014-05-15,Meat (pork) - Retail,KG,""meat, fish and eggs"",50.9167,UAH,Ukraine,,3148,Cherkasy,1858,140,15,5,2,1858_140_15_5,"
"2014-06-15,Meat (pork) - Retail,KG,""meat, fish and eggs"",51.19,UAH,Ukraine,,3148,Cherkasy,1858,140,15,5,2,1858_140_15_5,"
"2014-07-15,Meat (pork) - Retail,KG,""meat, fish and eggs"",51.4333,UAH,Ukraine,,3148,Cherkasy,1858,140,15,5,2,1858_140_15_5,"
"2014-08-15,Meat (pork) - Retail,KG,""meat, fish and eggs"",53.0,UAH,Ukraine,,3148,Cherkasy,1858,140,15,5,2,1858_140_15_5,"
"2014-09-15,Meat (pork) - Retail,KG,""meat, fish and eggs"",55.9667,UAH,Ukraine,,3148,Cherkasy,1858,140,15,5,2,1858_140_15_5,"
"2014-10-15,Meat (pork) - Retail,KG,""meat, fish and eggs"",56.8467,UAH,Ukraine,,3148,Cherkasy,1858,140,15,5,2,1858_140_15_5,"
"2014-11-15,Meat (pork) - Retail,KG,""meat, fish and eggs"",56.7433,UAH,Ukraine,,3148,Cherkasy,1858,140,15,5,2,1858_140_15_5,"
"2014-12-15,Meat (pork) - Retail,KG,""meat, fish and eggs"",58.1667,UAH,Ukraine,,3148,Cherkasy,1858,140,15,5,2,1858_140_15_5,"
"2015-01-15,Meat (pork) - Retail,KG,""meat, fish and eggs"",56.7267,UAH,Ukraine,,3148,Cherkasy,1858,140,15,5,2,1858_140_15_5,"
"2015-02-15,Meat (pork) - Retail,KG,""meat, fish and eggs"",56.3033,UAH,Ukraine,,3148,Cherkasy,1858,140,15,5,2,1858_140_15_5,"
"2015-03-15,Meat (pork) - Retail,KG,""meat, fish and eggs"",59.8233,UAH,Ukraine,,3148,Cherkasy,1858,140,15,5,2,1858_140_15_5,"
"2015-04-15,Meat (pork) - Retail,KG,""meat, fish and eggs"",61.8033,UAH,Ukraine,,3148,Cherkasy,1858,140,15,5,2,1858_140_15_5,"
"2015-05-15,Meat (pork) - Retail,KG,""meat, fish and eggs"",62.77,UAH,Ukraine,,3148,Cherkasy,1858,140,15,5,2,1858_140_15_5,"
"2015-06-15,Meat (pork) - Retail,KG,""meat, fish and eggs"",65.2567,UAH,Ukraine,,3148,Cherkasy,1858,140,15,5,2,1858_140_15_5,"
"2015-07-15,Meat (pork) - Retail,KG,""meat, fish and eggs"",67.88,UAH,Ukraine,,3148,Cherkasy,1858,140,15,5,2,1858_140_15_5,"
"2015-08-15,Meat (pork) - Retail,KG,""meat, fish and eggs"",68.76,UAH,Ukraine,,3148,Cherkasy,1858,140,15,5,2,1858_140_15_5,"
"2015-09-15,Meat (pork) - Retail,KG,""meat, fish and eggs"",69.7333,UAH,Ukraine,,3148,Cherkasy,1858,140,15,5,2,1858_140_15_5,"
"2015-10-15,Meat (pork) - Retail,KG,""meat, fish and eggs"",68.3,UAH,Ukraine,,3148,Cherkasy,1858,140,15,5,2,1858_140_15_5,"
"2015-11-15,Meat (pork) - Retail,KG,""meat, fish and eggs"",67.6167,UAH,Ukraine,,3148,Cherkasy,1858,140,15,5,2,1858_140_15_5,"
"2015-12-15,Meat (pork) - Retail,KG,""meat, fish and eggs"",65.0333,UAH,Ukraine,,3148,Cherkasy,1858,140,15,5,2,1858_140_15_5,"
"2016-01-15,Meat (pork) - Retail,KG,""meat, fish and eggs"",63.9233,UAH,Ukraine,,3148,Cherkasy,1858,140,15,5,2,1858_140_15_5,"
"2016-02-15,Meat (pork) - Retail,KG,""meat, fish and eggs"",61.94,UAH,Ukraine,,3148,Cherkasy,1858,140,15,5,2,1858_140_15_5,"
"2016-03-15,Meat (pork) - Retail,KG,""meat, fish and eggs"",62.2533,UAH,Ukraine,,3148,Cherkasy,1858,140,15,5,2,1858_140_15_5,"
"2016-04-15,Meat (pork) - Retail,KG,""meat, fish and eggs"",63.98,UAH,Ukraine,,3148,Cherkasy,1858,140,15,5,2,1858_140_15_5,"
"2016-05-15,Meat (pork) - Retail,KG,""meat, fish and eggs"",65.8667,UAH,Ukraine,,3148,Cherkasy,1858,140,15,5,2,1858_140_15_5,"
"2016-06-15,Meat (pork) - Retail,KG,""meat, fish and eggs"",64.8233,UAH,Ukraine,,3148,Cherkasy,1858,140,15,5,2,1858_140_15_5,"
"2016-07-15,Meat (pork) - Retail,KG,""meat, fish and eggs"",65.5933,UAH,Ukraine,,3148,Cherkasy,1858,140,15,5,2,1858_140_15_5,"
"2016-08-15,Meat (pork) - Retail,KG,""meat, fish and eggs"",65.2,UAH,Ukraine,,3148,Cherkasy,1858,140,15,5,2,1858_140_15_5,"
"2016-09-15,Meat (pork) - Retail,KG,""meat, fish and eggs"",66.74,UAH,Ukraine,,3148,Cherkasy,1858,140,15,5,2,1858_140_15_5,"
"2016-10-15,Meat (pork) - Retail,KG,""meat, fish and eggs"",65.9133,UAH,Ukraine,,3148,Cherkasy,1858,140,15,5,2,1858_140_15_5,"
"2016-11-15,Meat (pork) - Retail,KG,""meat, fish and eggs"",65.76,UAH,Ukraine,,3148,Cherkasy,1858,140,15,5,2,1858_140_15_5,"
"2016-12-15,Meat (pork) - Retail,KG,""meat, fish and eggs"",67.5833,UAH,Ukraine,,3148,Cherkasy,1858,140,15,5,2,1858_140_15_5,"
"2017-01-15,Meat (pork) - Retail,KG,""meat, fish and eggs"",67.58,UAH,Ukraine,,3148,Cherkasy,1858,140,15,5,2,1858_140_15_5,"
"2017-02-15,Meat (pork) - Retail,KG,""meat, fish and eggs"",70.7267,UAH,Ukraine,,3148,Cherkasy,1858,140,15,5,2,1858_140_15_5,"
"2017-03-15,Meat (pork) - Retail,KG,""meat, fish and eggs"",73.11,UAH,Ukraine,,3148,Cherkasy,1858,140,15,5,2,1858_140_15_5,"
"2017-04-15,Meat (pork) - Retail,KG,""meat, fish and eggs"",75.1567,UAH,Ukraine,,3148,Cherkasy,1858,140,15,5,2,1858_140_15_5,"
"2017-05-15,Meat (pork) - Retail,KG,""meat, fish and eggs"",82.8233,UAH,Ukraine,,3148,Cherkasy,1858,140,15,5,2,1858_140_15_5,"
"2017-06-15,Meat (pork) - Retail,KG,""meat, fish and eggs"",87.9667,UAH,Ukraine,,3148,Cherkasy,1858,140,15,5,2,1858_140_15_5,"
"2017-07-15,Meat (pork) - Retail,KG,""meat, fish and eggs"",90.38,UAH,Ukraine,,3148,Cherkasy,1858,140,15,5,2,1858_140_15_5,"
"2017-09-15,Meat (pork) - Retail,KG,""meat, fish and eggs"",96.7833,UAH,Ukraine,,3148,Cherkasy,1858,140,15,5,2,1858_140_15_5,"
"2017-10-15,Meat (pork) - Retail,KG,""meat, fish and eggs"",97.22,UAH,Ukraine,,3148,Cherkasy,1858,140,15,5,2,1858_140_15_5,"
"2017-11-15,Meat (pork) - Retail,KG,""meat, fish and eggs"",98.65,UAH,Ukraine,,3148,Cherkasy,1858,140,15,5,2,1858_140_15_5,"
"2017-12-15,Meat (pork) - Retail,KG,""meat, fish and eggs"",97.28,UAH,Ukraine,,3148,Cherkasy,1858,140,15,5,2,1858_140_15_5,"
"2014-03-15,Meat (beef) - Retail,KG,""meat, fish and eggs"",55.13,UAH,Ukraine,,3148,Cherkasy,1858,141,15,5,2,1858_141_15_5,"
"2014-04-15,Meat (beef) - Retail,KG,""meat, fish and eggs"",55.6833,UAH,Ukraine,,3148,Cherkasy,1858,141,15,5,2,1858_141_15_5,"
"2014-05-15,Meat (beef) - Retail,KG,""meat, fish and eggs"",55.79,UAH,Ukraine,,3148,Cherkasy,1858,141,15,5,2,1858_141_15_5,"
"2014-06-15,Meat (beef) - Retail,KG,""meat, fish and eggs"",55.79,UAH,Ukraine,,3148,Cherkasy,1858,141,15,5,2,1858_141_15_5,"
"2014-07-15,Meat (beef) - Retail,KG,""meat, fish and eggs"",56.8867,UAH,Ukraine,,3148,Cherkasy,1858,141,15,5,2,1858_141_15_5,"
"2014-08-15,Meat (beef) - Retail,KG,""meat, fish and eggs"",59.08,UAH,Ukraine,,3148,Cherkasy,1858,141,15,5,2,1858_141_15_5,"
"2014-09-15,Meat (beef) - Retail,KG,""meat, fish and eggs"",59.6667,UAH,Ukraine,,3148,Cherkasy,1858,141,15,5,2,1858_141_15_5,"
"2014-10-15,Meat (beef) - Retail,KG,""meat, fish and eggs"",61.3133,UAH,Ukraine,,3148,Cherkasy,1858,141,15,5,2,1858_141_15_5,"
"2014-11-15,Meat (beef) - Retail,KG,""meat, fish and eggs"",62.9267,UAH,Ukraine,,3148,Cherkasy,1858,141,15,5,2,1858_141_15_5,"
"2014-12-15,Meat (beef) - Retail,KG,""meat, fish and eggs"",63.7067,UAH,Ukraine,,3148,Cherkasy,1858,141,15,5,2,1858_141_15_5,"
"2015-01-15,Meat (beef) - Retail,KG,""meat, fish and eggs"",65.8333,UAH,Ukraine,,3148,Cherkasy,1858,141,15,5,2,1858_141_15_5,"
"2015-02-15,Meat (beef) - Retail,KG,""meat, fish and eggs"",69.7,UAH,Ukraine,,3148,Cherkasy,1858,141,15,5,2,1858_141_15_5,"
"2015-03-15,Meat (beef) - Retail,KG,""meat, fish and eggs"",73.6833,UAH,Ukraine,,3148,Cherkasy,1858,141,15,5,2,1858_141_15_5,"
"2015-04-15,Meat (beef) - Retail,KG,""meat, fish and eggs"",73.89,UAH,Ukraine,,3148,Cherkasy,1858,141,15,5,2,1858_141_15_5,"
"2015-05-15,Meat (beef) - Retail,KG,""meat, fish and eggs"",73.97,UAH,Ukraine,,3148,Cherkasy,1858,141,15,5,2,1858_141_15_5,"
"2015-06-15,Meat (beef) - Retail,KG,""meat, fish and eggs"",74.55,UAH,Ukraine,,3148,Cherkasy,1858,141,15,5,2,1858_141_15_5,"
"2015-07-15,Meat (beef) - Retail,KG,""meat, fish and eggs"",74.55,UAH,Ukraine,,3148,Cherkasy,1858,141,15,5,2,1858_141_15_5,"
"2015-08-15,Meat (beef) - Retail,KG,""meat, fish and eggs"",78.3,UAH,Ukraine,,3148,Cherkasy,1858,141,15,5,2,1858_141_15_5,"
"2015-09-15,Meat (beef) - Retail,KG,""meat, fish and eggs"",81.85,UAH,Ukraine,,3148,Cherkasy,1858,141,15,5,2,1858_141_15_5,"
"2015-10-15,Meat (beef) - Retail,KG,""meat, fish and eggs"",82.4367,UAH,Ukraine,,3148,Cherkasy,1858,141,15,5,2,1858_141_15_5,"
"2015-11-15,Meat (beef) - Retail,KG,""meat, fish and eggs"",82.13,UAH,Ukraine,,3148,Cherkasy,1858,141,15,5,2,1858_141_15_5,"
"2015-12-15,Meat (beef) - Retail,KG,""meat, fish and eggs"",82.13,UAH,Ukraine,,3148,Cherkasy,1858,141,15,5,2,1858_141_15_5,"
"2016-01-15,Meat (beef) - Retail,KG,""meat, fish and eggs"",82.13,UAH,Ukraine,,3148,Cherkasy,1858,141,15,5,2,1858_141_15_5,"
"2016-02-15,Meat (beef) - Retail,KG,""meat, fish and eggs"",81.83,UAH,Ukraine,,3148,Cherkasy,1858,141,15,5,2,1858_141_15_5,"
"2016-03-15,Meat (beef) - Retail,KG,""meat, fish and eggs"",81.49,UAH,Ukraine,,3148,Cherkasy,1858,141,15,5,2,1858_141_15_5,"
"2016-04-15,Meat (beef) - Retail,KG,""meat, fish and eggs"",82.04,UAH,Ukraine,,3148,Cherkasy,1858,141,15,5,2,1858_141_15_5,"
"2016-05-15,Meat (beef) - Retail,KG,""meat, fish and eggs"",81.4433,UAH,Ukraine,,3148,Cherkasy,1858,141,15,5,2,1858_141_15_5,"
"2016-06-15,Meat (beef) - Retail,KG,""meat, fish and eggs"",81.2033,UAH,Ukraine,,3148,Cherkasy,1858,141,15,5,2,1858_141_15_5,"
"2016-07-15,Meat (beef) - Retail,KG,""meat, fish and eggs"",78.2633,UAH,Ukraine,,3148,Cherkasy,1858,141,15,5,2,1858_141_15_5,"
"2016-08-15,Meat (beef) - Retail,KG,""meat, fish and eggs"",77.92,UAH,Ukraine,,3148,Cherkasy,1858,141,15,5,2,1858_141_15_5,"
"2016-09-15,Meat (beef) - Retail,KG,""meat, fish and eggs"",78.95,UAH,Ukraine,,3148,Cherkasy,1858,141,15,5,2,1858_141_15_5,"
"2016-10-15,Meat (beef) - Retail,KG,""meat, fish and eggs"",79.72,UAH,Ukraine,,3148,Cherkasy,1858,141,15,5,2,1858_141_15_5,"
"2016-11-15,Meat (beef) - Retail,KG,""meat, fish and eggs"",79.8,UAH,Ukraine,,3148,Cherkasy,1858,141,15,5,2,1858_141_15_5,"
"2016-12-15,Meat (beef) - Retail,KG,""meat, fish and eggs"",80.2167,UAH,Ukraine,,3148,Cherkasy,1858,141,15,5,2,1858_141_15_5,"
"2017-01-15,Meat (beef) - Retail,KG,""meat, fish and eggs"",83.6967,UAH,Ukraine,,3148,Cherkasy,1858,141,15,5,2,1858_141_15_5,"
"2017-02-15,Meat (beef) - Retail,KG,""meat, fish and eggs"",88.6533,UAH,Ukraine,,3148,Cherkasy,1858,141,15,5,2,1858_141_15_5,"
"2017-03-15,Meat (beef) - Retail,KG,""meat, fish and eggs"",92.7433,UAH,Ukraine,,3148,Cherkasy,1858,141,15,5,2,1858_141_15_5,"
"2017-04-15,Meat (beef) - Retail,KG,""meat, fish and eggs"",94.1667,UAH,Ukraine,,3148,Cherkasy,1858,141,15,5,2,1858_141_15_5,"
"2017-05-15,Meat (beef) - Retail,KG,""meat, fish and eggs"",94.75,UAH,Ukraine,,3148,Cherkasy,1858,141,15,5,2,1858_141_15_5,"
"2017-06-15,Meat (beef) - Retail,KG,""meat, fish and eggs"",95.0567,UAH,Ukraine,,3148,Cherkasy,1858,141,15,5,2,1858_141_15_5,"
"2017-07-15,Meat (beef) - Retail,KG,""meat, fish and eggs"",97.2667,UAH,Ukraine,,3148,Cherkasy,1858,141,15,5,2,1858_141_15_5,"
"2017-09-15,Meat (beef) - Retail,KG,""meat, fish and eggs"",97.7033,UAH,Ukraine,,3148,Cherkasy,1858,141,15,5,2,1858_141_15_5,"
"2017-10-15,Meat (beef) - Retail,KG,""meat, fish and eggs"",98.6033,UAH,Ukraine,,3148,Cherkasy,1858,141,15,5,2,1858_141_15_5,"
"2017-11-15,Meat (beef) - Retail,KG,""meat, fish and eggs"",98.7867,UAH,Ukraine,,3148,Cherkasy,1858,141,15,5,2,1858_141_15_5,"
"2017-12-15,Meat (beef) - Retail,KG,""meat, fish and eggs"",100.5667,UAH,Ukraine,,3148,Cherkasy,1858,141,15,5,2,1858_141_15_5,"
2014-03-15,Carrots - Retail,KG,vegetables and fruits,4.11,UAH,Ukraine,,3148,Cherkasy,1858,166,15,5,4,1858_166_15_5,
2014-04-15,Carrots - Retail,KG,vegetables and fruits,5.3967,UAH,Ukraine,,3148,Cherkasy,1858,166,15,5,4,1858_166_15_5,
2014-05-15,Carrots - Retail,KG,vegetables and fruits,6.8267,UAH,Ukraine,,3148,Cherkasy,1858,166,15,5,4,1858_166_15_5,
2014-06-15,Carrots - Retail,KG,vegetables and fruits,7.98,UAH,Ukraine,,3148,Cherkasy,1858,166,15,5,4,1858_166_15_5,
2014-07-15,Carrots - Retail,KG,vegetables and fruits,4.36,UAH,Ukraine,,3148,Cherkasy,1858,166,15,5,4,1858_166_15_5,
2014-08-15,Carrots - Retail,KG,vegetables and fruits,2.7,UAH,Ukraine,,3148,Cherkasy,1858,166,15,5,4,1858_166_15_5,
2014-09-15,Carrots - Retail,KG,vegetables and fruits,2.4767,UAH,Ukraine,,3148,Cherkasy,1858,166,15,5,4,1858_166_15_5,
2014-10-15,Carrots - Retail,KG,vegetables and fruits,2.53,UAH,Ukraine,,3148,Cherkasy,1858,166,15,5,4,1858_166_15_5,
2014-11-15,Carrots - Retail,KG,vegetables and fruits,2.5067,UAH,Ukraine,,3148,Cherkasy,1858,166,15,5,4,1858_166_15_5,
2014-12-15,Carrots - Retail,KG,vegetables and fruits,3.0633,UAH,Ukraine,,3148,Cherkasy,1858,166,15,5,4,1858_166_15_5,
2015-01-15,Carrots - Retail,KG,vegetables and fruits,3.6033,UAH,Ukraine,,3148,Cherkasy,1858,166,15,5,4,1858_166_15_5,
2015-02-15,Carrots - Retail,KG,vegetables and fruits,4.5733,UAH,Ukraine,,3148,Cherkasy,1858,166,15,5,4,1858_166_15_5,
2015-03-15,Carrots - Retail,KG,vegetables and fruits,6.44,UAH,Ukraine,,3148,Cherkasy,1858,166,15,5,4,1858_166_15_5,
2015-04-15,Carrots - Retail,KG,vegetables and fruits,9.58,UAH,Ukraine,,3148,Cherkasy,1858,166,15,5,4,1858_166_15_5,
2015-05-15,Carrots - Retail,KG,vegetables and fruits,15.3933,UAH,Ukraine,,3148,Cherkasy,1858,166,15,5,4,1858_166_15_5,
2015-06-15,Carrots - Retail,KG,vegetables and fruits,23.0967,UAH,Ukraine,,3148,Cherkasy,1858,166,15,5,4,1858_166_15_5,
2015-07-15,Carrots - Retail,KG,vegetables and fruits,16.88,UAH,Ukraine,,3148,Cherkasy,1858,166,15,5,4,1858_166_15_5,
2015-08-15,Carrots - Retail,KG,vegetables and fruits,8.0533,UAH,Ukraine,,3148,Cherkasy,1858,166,15,5,4,1858_166_15_5,
2015-09-15,Carrots - Retail,KG,vegetables and fruits,7.52,UAH,Ukraine,,3148,Cherkasy,1858,166,15,5,4,1858_166_15_5,
2015-10-15,Carrots - Retail,KG,vegetables and fruits,9.7433,UAH,Ukraine,,3148,Cherkasy,1858,166,15,5,4,1858_166_15_5,
2015-11-15,Carrots - Retail,KG,vegetables and fruits,10.21,UAH,Ukraine,,3148,Cherkasy,1858,166,15,5,4,1858_166_15_5,
2015-12-15,Carrots - Retail,KG,vegetables and fruits,9.97,UAH,Ukraine,,3148,Cherkasy,1858,166,15,5,4,1858_166_15_5,
2016-01-15,Carrots - Retail,KG,vegetables and fruits,11.1167,UAH,Ukraine,,3148,Cherkasy,1858,166,15,5,4,1858_166_15_5,
2016-02-15,Carrots - Retail,KG,vegetables and fruits,11.9967,UAH,Ukraine,,3148,Cherkasy,1858,166,15,5,4,1858_166_15_5,
2016-03-15,Carrots - Retail,KG,vegetables and fruits,11.72,UAH,Ukraine,,3148,Cherkasy,1858,166,15,5,4,1858_166_15_5,
2016-04-15,Carrots - Retail,KG,vegetables and fruits,11.7,UAH,Ukraine,,3148,Cherkasy,1858,166,15,5,4,1858_166_15_5,
2016-05-15,Carrots - Retail,KG,vegetables and fruits,14.44,UAH,Ukraine,,3148,Cherkasy,1858,166,15,5,4,1858_166_15_5,
2016-06-15,Carrots - Retail,KG,vegetables and fruits,10.18,UAH,Ukraine,,3148,Cherkasy,1858,166,15,5,4,1858_166_15_5,
2016-07-15,Carrots - Retail,KG,vegetables and fruits,5.6033,UAH,Ukraine,,3148,Cherkasy,1858,166,15,5,4,1858_166_15_5,
2016-08-15,Carrots - Retail,KG,vegetables and fruits,4.94,UAH,Ukraine,,3148,Cherkasy,1858,166,15,5,4,1858_166_15_5,
2016-09-15,Carrots - Retail,KG,vegetables and fruits,4.17,UAH,Ukraine,,3148,Cherkasy,1858,166,15,5,4,1858_166_15_5,
2016-10-15,Carrots - Retail,KG,vegetables and fruits,4.34,UAH,Ukraine,,3148,Cherkasy,1858,166,15,5,4,1858_166_15_5,
2016-11-15,Carrots - Retail,KG,vegetables and fruits,3.9833,UAH,Ukraine,,3148,Cherkasy,1858,166,15,5,4,1858_166_15_5,
2016-12-15,Carrots - Retail,KG,vegetables and fruits,4.07,UAH,Ukraine,,3148,Cherkasy,1858,166,15,5,4,1858_166_15_5,
2017-01-15,Carrots - Retail,KG,vegetables and fruits,4.4133,UAH,Ukraine,,3148,Cherkasy,1858,166,15,5,4,1858_166_15_5,
2017-02-15,Carrots - Retail,KG,vegetables and fruits,4.4,UAH,Ukraine,,3148,Cherkasy,1858,166,15,5,4,1858_166_15_5,
2017-03-15,Carrots - Retail,KG,vegetables and fruits,4.71,UAH,Ukraine,,3148,Cherkasy,1858,166,15,5,4,1858_166_15_5,
2017-04-15,Carrots - Retail,KG,vegetables and fruits,7.28,UAH,Ukraine,,3148,Cherkasy,1858,166,15,5,4,1858_166_15_5,
2017-05-15,Carrots - Retail,KG,vegetables and fruits,13.38,UAH,Ukraine,,3148,Cherkasy,1858,166,15,5,4,1858_166_15_5,
2017-06-15,Carrots - Retail,KG,vegetables and fruits,13.9967,UAH,Ukraine,,3148,Cherkasy,1858,166,15,5,4,1858_166_15_5,
2017-07-15,Carrots - Retail,KG,vegetables and fruits,13.4633,UAH,Ukraine,,3148,Cherkasy,1858,166,15,5,4,1858_166_15_5,
2017-09-15,Carrots - Retail,KG,vegetables and fruits,8.47,UAH,Ukraine,,3148,Cherkasy,1858,166,15,5,4,1858_166_15_5,
2017-10-15,Carrots - Retail,KG,vegetables and fruits,7.32,UAH,Ukraine,,3148,Cherkasy,1858,166,15,5,4,1858_166_15_5,
2017-11-15,Carrots - Retail,KG,vegetables and fruits,6.8233,UAH,Ukraine,,3148,Cherkasy,1858,166,15,5,4,1858_166_15_5,
2017-12-15,Carrots - Retail,KG,vegetables and fruits,6.9133,UAH,Ukraine,,3148,Cherkasy,1858,166,15,5,4,1858_166_15_5,
2014-03-15,Onions - Retail,KG,vegetables and fruits,7.7333,UAH,Ukraine,,3148,Cherkasy,1858,173,15,5,4,1858_173_15_5,
2014-04-15,Onions - Retail,KG,vegetables and fruits,10.5467,UAH,Ukraine,,3148,Cherkasy,1858,173,15,5,4,1858_173_15_5,
2014-05-15,Onions - Retail,KG,vegetables and fruits,12.0833,UAH,Ukraine,,3148,Cherkasy,1858,173,15,5,4,1858_173_15_5,
2014-06-15,Onions - Retail,KG,vegetables and fruits,10.8,UAH,Ukraine,,3148,Cherkasy,1858,173,15,5,4,1858_173_15_5,
2014-07-15,Onions - Retail,KG,vegetables and fruits,4.39,UAH,Ukraine,,3148,Cherkasy,1858,173,15,5,4,1858_173_15_5,
2014-08-15,Onions - Retail,KG,vegetables and fruits,2.7633,UAH,Ukraine,,3148,Cherkasy,1858,173,15,5,4,1858_173_15_5,
2014-09-15,Onions - Retail,KG,vegetables and fruits,2.7733,UAH,Ukraine,,3148,Cherkasy,1858,173,15,5,4,1858_173_15_5,
2014-10-15,Onions - Retail,KG,vegetables and fruits,2.5833,UAH,Ukraine,,3148,Cherkasy,1858,173,15,5,4,1858_173_15_5,
2014-11-15,Onions - Retail,KG,vegetables and fruits,2.7167,UAH,Ukraine,,3148,Cherkasy,1858,173,15,5,4,1858_173_15_5,
2014-12-15,Onions - Retail,KG,vegetables and fruits,2.9533,UAH,Ukraine,,3148,Cherkasy,1858,173,15,5,4,1858_173_15_5,
2015-01-15,Onions - Retail,KG,vegetables and fruits,3.3433,UAH,Ukraine,,3148,Cherkasy,1858,173,15,5,4,1858_173_15_5,
2015-02-15,Onions - Retail,KG,vegetables and fruits,5.1033,UAH,Ukraine,,3148,Cherkasy,1858,173,15,5,4,1858_173_15_5,
2015-03-15,Onions - Retail,KG,vegetables and fruits,6.2867,UAH,Ukraine,,3148,Cherkasy,1858,173,15,5,4,1858_173_15_5,
2015-04-15,Onions - Retail,KG,vegetables and fruits,6.48,UAH,Ukraine,,3148,Cherkasy,1858,173,15,5,4,1858_173_15_5,
2015-05-15,Onions - Retail,KG,vegetables and fruits,8.9567,UAH,Ukraine,,3148,Cherkasy,1858,173,15,5,4,1858_173_15_5,
2015-06-15,Onions - Retail,KG,vegetables and fruits,9.2933,UAH,Ukraine,,3148,Cherkasy,1858,173,15,5,4,1858_173_15_5,
2015-07-15,Onions - Retail,KG,vegetables and fruits,7.12,UAH,Ukraine,,3148,Cherkasy,1858,173,15,5,4,1858_173_15_5,
2015-08-15,Onions - Retail,KG,vegetables and fruits,5.86,UAH,Ukraine,,3148,Cherkasy,1858,173,15,5,4,1858_173_15_5,
2015-09-15,Onions - Retail,KG,vegetables and fruits,5.77,UAH,Ukraine,,3148,Cherkasy,1858,173,15,5,4,1858_173_15_5,
2015-10-15,Onions - Retail,KG,vegetables and fruits,9.86,UAH,Ukraine,,3148,Cherkasy,1858,173,15,5,4,1858_173_15_5,
2015-11-15,Onions - Retail,KG,vegetables and fruits,10.6633,UAH,Ukraine,,3148,Cherkasy,1858,173,15,5,4,1858_173_15_5,
2015-12-15,Onions - Retail,KG,vegetables and fruits,9.2233,UAH,Ukraine,,3148,Cherkasy,1858,173,15,5,4,1858_173_15_5,
2016-01-15,Onions - Retail,KG,vegetables and fruits,9.4367,UAH,Ukraine,,3148,Cherkasy,1858,173,15,5,4,1858_173_15_5,
2016-02-15,Onions - Retail,KG,vegetables and fruits,9.16,UAH,Ukraine,,3148,Cherkasy,1858,173,15,5,4,1858_173_15_5,
2016-03-15,Onions - Retail,KG,vegetables and fruits,8.4733,UAH,Ukraine,,3148,Cherkasy,1858,173,15,5,4,1858_173_15_5,
2016-04-15,Onions - Retail,KG,vegetables and fruits,7.6467,UAH,Ukraine,,3148,Cherkasy,1858,173,15,5,4,1858_173_15_5,
2016-05-15,Onions - Retail,KG,vegetables and fruits,7.7333,UAH,Ukraine,,3148,Cherkasy,1858,173,15,5,4,1858_173_15_5,
2016-06-15,Onions - Retail,KG,vegetables and fruits,7.7967,UAH,Ukraine,,3148,Cherkasy,1858,173,15,5,4,1858_173_15_5,
2016-07-15,Onions - Retail,KG,vegetables and fruits,5.25,UAH,Ukraine,,3148,Cherkasy,1858,173,15,5,4,1858_173_15_5,
2016-08-15,Onions - Retail,KG,vegetables and fruits,4.47,UAH,Ukraine,,3148,Cherkasy,1858,173,15,5,4,1858_173_15_5,
2016-09-15,Onions - Retail,KG,vegetables and fruits,4.6267,UAH,Ukraine,,3148,Cherkasy,1858,173,15,5,4,1858_173_15_5,
2016-10-15,Onions - Retail,KG,vegetables and fruits,4.38,UAH,Ukraine,,3148,Cherkasy,1858,173,15,5,4,1858_173_15_5,
2016-11-15,Onions - Retail,KG,vegetables and fruits,4.1433,UAH,Ukraine,,3148,Cherkasy,1858,173,15,5,4,1858_173_15_5,
2016-12-15,Onions - Retail,KG,vegetables and fruits,4.1067,UAH,Ukraine,,3148,Cherkasy,1858,173,15,5,4,1858_173_15_5,
2017-01-15,Onions - Retail,KG,vegetables and fruits,4.3833,UAH,Ukraine,,3148,Cherkasy,1858,173,15,5,4,1858_173_15_5,
2017-02-15,Onions - Retail,KG,vegetables and fruits,4.1467,UAH,Ukraine,,3148,Cherkasy,1858,173,15,5,4,1858_173_15_5,
2017-03-15,Onions - Retail,KG,vegetables and fruits,3.8967,UAH,Ukraine,,3148,Cherkasy,1858,173,15,5,4,1858_173_15_5,
2017-04-15,Onions - Retail,KG,vegetables and fruits,4.7933,UAH,Ukraine,,3148,Cherkasy,1858,173,15,5,4,1858_173_15_5,
2017-05-15,Onions - Retail,KG,vegetables and fruits,8.4533,UAH,Ukraine,,3148,Cherkasy,1858,173,15,5,4,1858_173_15_5,
2017-06-15,Onions - Retail,KG,vegetables and fruits,11.5633,UAH,Ukraine,,3148,Cherkasy,1858,173,15,5,4,1858_173_15_5,
2017-07-15,Onions - Retail,KG,vegetables and fruits,11.42,UAH,Ukraine,,3148,Cherkasy,1858,173,15,5,4,1858_173_15_5,
2017-09-15,Onions - Retail,KG,vegetables and fruits,6.97,UAH,Ukraine,,3148,Cherkasy,1858,173,15,5,4,1858_173_15_5,
2017-10-15,Onions - Retail,KG,vegetables and fruits,5.5333,UAH,Ukraine,,3148,Cherkasy,1858,173,15,5,4,1858_173_15_5,
2017-11-15,Onions - Retail,KG,vegetables and fruits,5.19,UAH,Ukraine,,3148,Cherkasy,1858,173,15,5,4,1858_173_15_5,
